Organisation Name,Organisation Code,Unique Ref No,Effective Date,Directorate  where expenditure incurred,Supplier name ,Payment Date,Net Amount,Procurement Classification (Higher Level),Purpose of Spend,Procurement Classification (Lower Level),Capital/Revenue
Walsall Council,http://opendatacommunities.org/id/metropolitan-district-council/walsall,WC74-1,30/11/2016,Economy & Environment,118 PHARMACY LIMITED,14/11/2016,300.00,71007-CONTRIBUTION TO PCT,PUBLIC HEALTH BUSINESS SUPPORT,Third Party Payments,Revenue
Walsall Council,http://opendatacommunities.org/id/metropolitan-district-council/walsall,WC74-2,30/11/2016,Childrens,247 CARS (WILLENHALL) LIMITED,11/11/2016,"3,748.40",52000-WITH DRIVER-HIRE OF VEHICLES,SCHOOL TRANSPORT,Transport,Revenue
Walsall Council,http://opendatacommunities.org/id/metropolitan-district-council/walsall,WC74-3,30/11/2016,Economy & Environment,2TOTANGO LIMITED,01/11/2016,394.23,60529-SHOP STOCK-MATERIALS,NAG - NEW ART GALLERY SHOP STOCK,Supplies & Services,Revenue
Walsall Council,http://opendatacommunities.org/id/metropolitan-district-council/walsall,WC74-4,30/11/2016,Childrens,5 CARE SERVICES LTD,07/11/2016,"1,111.50",63000-PROFESSIONAL FEES AND SERVICES,DIRECTLY COMMISSIONED NURSING SERVICES,Supplies & Services,Revenue
Walsall Council,http://opendatacommunities.org/id/metropolitan-district-council/walsall,WC74-5,30/11/2016,Childrens,5 CARE SERVICES LTD,07/11/2016,"1,170.00",63000-PROFESSIONAL FEES AND SERVICES,DIRECTLY COMMISSIONED NURSING SERVICES,Supplies & Services,Revenue
Walsall Council,http://opendatacommunities.org/id/metropolitan-district-council/walsall,WC74-6,30/11/2016,Childrens,5 CARE SERVICES LTD,07/11/2016,"1,794.00",63000-PROFESSIONAL FEES AND SERVICES,DIRECTLY COMMISSIONED NURSING SERVICES,Supplies & Services,Revenue
Walsall Council,http://opendatacommunities.org/id/metropolitan-district-council/walsall,WC74-7,30/11/2016,Adult Social Care,5 CARE SERVICES LTD,09/11/2016,"40,298.93",73372-DOMICILIARY CARE,OP COMMISSIONING,Third Party Payments,Revenue
Walsall Council,http://opendatacommunities.org/id/metropolitan-district-council/walsall,WC74-8,30/11/2016,Change and Governance,A & M ELLIS,25/11/2016,"2,580.00",62008-OUTWORK-PRINT ROOM,PRINTING SERVICES,Supplies & Services,Revenue
Walsall Council,http://opendatacommunities.org/id/metropolitan-district-council/walsall,WC74-9,30/11/2016,Change and Governance,A D T FIRE AND SECURITY PLC,23/11/2016,251.84,73002-SECURITY-PRIV CONTRACTOR FEES,CENTRALISED MAINTENANCE,Third Party Payments,Revenue
Walsall Council,http://opendatacommunities.org/id/metropolitan-district-council/walsall,WC74-10,30/11/2016,Change and Governance,A D T FIRE AND SECURITY PLC,22/11/2016,371.46,73002-SECURITY-PRIV CONTRACTOR FEES,CENTRALISED MAINTENANCE,Third Party Payments,Revenue
Walsall Council,http://opendatacommunities.org/id/metropolitan-district-council/walsall,WC74-11,30/11/2016,Change and Governance,A D T FIRE AND SECURITY PLC,15/11/2016,"1,050.00",73002-SECURITY-PRIV CONTRACTOR FEES,CENTRALISED MAINTENANCE,Third Party Payments,Revenue
Walsall Council,http://opendatacommunities.org/id/metropolitan-district-council/walsall,WC74-12,30/11/2016,Adult Social Care,A F BLAKEMORE & SON LTD,07/11/2016,260.42,61016-FOOD AND BEVERAGES-PROVISIONS,GOSCOTE,Supplies & Services,Revenue
Walsall Council,http://opendatacommunities.org/id/metropolitan-district-council/walsall,WC74-13,30/11/2016,Economy & Environment,A F BLAKEMORE & SON LTD,18/11/2016,297.28,61002-DRY FOODS-PROVISIONS,DARLASTON LEISURE CENTRE,Supplies & Services,Revenue
Walsall Council,http://opendatacommunities.org/id/metropolitan-district-council/walsall,WC74-14,30/11/2016,Economy & Environment,A F BLAKEMORE & SON LTD,02/11/2016,299.14,61016-FOOD AND BEVERAGES-PROVISIONS,OAK PARK,Supplies & Services,Revenue
Walsall Council,http://opendatacommunities.org/id/metropolitan-district-council/walsall,WC74-15,30/11/2016,Economy & Environment,A F BLAKEMORE & SON LTD,01/11/2016,299.18,61002-DRY FOODS-PROVISIONS,OAK PARK,Supplies & Services,Revenue
Walsall Council,http://opendatacommunities.org/id/metropolitan-district-council/walsall,WC74-16,30/11/2016,Adult Social Care,A F BLAKEMORE & SON LTD,07/11/2016,309.42,61016-FOOD AND BEVERAGES-PROVISIONS,GOSCOTE,Supplies & Services,Revenue
Walsall Council,http://opendatacommunities.org/id/metropolitan-district-council/walsall,WC74-17,30/11/2016,Economy & Environment,A F BLAKEMORE & SON LTD,09/11/2016,316.77,61002-DRY FOODS-PROVISIONS,BLOXWICH LEISURE CENTRE,Supplies & Services,Revenue
Walsall Council,http://opendatacommunities.org/id/metropolitan-district-council/walsall,WC74-18,30/11/2016,Economy & Environment,A F BLAKEMORE & SON LTD,18/11/2016,345.76,61009-BEVERAGES-PROVISIONS,DARLASTON LEISURE CENTRE,Supplies & Services,Revenue
Walsall Council,http://opendatacommunities.org/id/metropolitan-district-council/walsall,WC74-19,30/11/2016,Adult Social Care,A F BLAKEMORE & SON LTD,28/11/2016,365.26,61016-FOOD AND BEVERAGES-PROVISIONS,REABLEMENT TEAM - HOLLY BANK,Supplies & Services,Revenue
Walsall Council,http://opendatacommunities.org/id/metropolitan-district-council/walsall,WC74-20,30/11/2016,Adult Social Care,A F BLAKEMORE & SON LTD,28/11/2016,382.77,61016-FOOD AND BEVERAGES-PROVISIONS,REABLEMENT TEAM - HOLLY BANK,Supplies & Services,Revenue
Walsall Council,http://opendatacommunities.org/id/metropolitan-district-council/walsall,WC74-21,30/11/2016,Economy & Environment,A F BLAKEMORE & SON LTD,23/11/2016,412.10,61016-FOOD AND BEVERAGES-PROVISIONS,BLOXWICH LEISURE CENTRE,Supplies & Services,Revenue
Walsall Council,http://opendatacommunities.org/id/metropolitan-district-council/walsall,WC74-22,30/11/2016,Adult Social Care,A F BLAKEMORE & SON LTD,24/11/2016,497.44,61016-FOOD AND BEVERAGES-PROVISIONS,GOSCOTE,Supplies & Services,Revenue
Walsall Council,http://opendatacommunities.org/id/metropolitan-district-council/walsall,WC74-23,30/11/2016,Adult Social Care,A F BLAKEMORE & SON LTD,23/11/2016,685.25,61016-FOOD AND BEVERAGES-PROVISIONS,REABLEMENT TEAM - HOLLY BANK,Supplies & Services,Revenue
Walsall Council,http://opendatacommunities.org/id/metropolitan-district-council/walsall,WC74-24,30/11/2016,Economy & Environment,A F BLAKEMORE & SON LTD,22/11/2016,728.56,61008-CONFECTIONERY/SNACKS-PROVISIONS,OAK PARK,Supplies & Services,Revenue
Walsall Council,http://opendatacommunities.org/id/metropolitan-district-council/walsall,WC74-25,30/11/2016,Economy & Environment,A F BLAKEMORE & SON LTD,01/11/2016,"1,052.77",61002-DRY FOODS-PROVISIONS,BLOXWICH LEISURE CENTRE,Supplies & Services,Revenue
Walsall Council,http://opendatacommunities.org/id/metropolitan-district-council/walsall,WC74-26,30/11/2016,Childrens,REDACTED,21/11/2016,340.16,74006-HOLIDAY/CHRISTMAS ALLOWANCE-FOSTER CARERS-OTH AGENCY PROVISION,INTERNAL FOSTER CARE PROVISION,Third Party Payments,Revenue
Walsall Council,http://opendatacommunities.org/id/metropolitan-district-council/walsall,WC74-27,30/11/2016,Economy & Environment,A KARIMS CHUCKERY PHARMACY,14/11/2016,300.00,71007-CONTRIBUTION TO PCT,PUBLIC HEALTH BUSINESS SUPPORT,Third Party Payments,Revenue
Walsall Council,http://opendatacommunities.org/id/metropolitan-district-council/walsall,WC74-28,30/11/2016,Economy & Environment,A KARIMS CHUCKERY PHARMACY,16/11/2016,300.00,71007-CONTRIBUTION TO PCT,PUBLIC HEALTH BUSINESS SUPPORT,Third Party Payments,Revenue
Walsall Council,http://opendatacommunities.org/id/metropolitan-district-council/walsall,WC74-29,30/11/2016,Economy & Environment,A KARIMS CHUCKERY PHARMACY,16/11/2016,"1,317.84",63000-PROFESSIONAL FEES AND SERVICES,HEALTH CHECKS,Supplies & Services,Revenue
Walsall Council,http://opendatacommunities.org/id/metropolitan-district-council/walsall,WC74-30,30/11/2016,Childrens,A1 EXPRESS TAXIS,01/11/2016,308.00,52001-HIRE OF VEHICLES,CHILDRENS TAXI BUDGET,Transport,Revenue
Walsall Council,http://opendatacommunities.org/id/metropolitan-district-council/walsall,WC74-31,30/11/2016,Childrens,A1 EXPRESS TAXIS,15/11/2016,352.00,52001-HIRE OF VEHICLES,CHILDRENS TAXI BUDGET,Transport,Revenue
Walsall Council,http://opendatacommunities.org/id/metropolitan-district-council/walsall,WC74-32,30/11/2016,Childrens,A1 EXPRESS TAXIS,15/11/2016,360.00,52001-HIRE OF VEHICLES,CHILDRENS TAXI BUDGET,Transport,Revenue
Walsall Council,http://opendatacommunities.org/id/metropolitan-district-council/walsall,WC74-33,30/11/2016,Childrens,A1 EXPRESS TAXIS,01/11/2016,480.00,52001-HIRE OF VEHICLES,CHILDRENS TAXI BUDGET,Transport,Revenue
Walsall Council,http://opendatacommunities.org/id/metropolitan-district-council/walsall,WC74-34,30/11/2016,Childrens,A1 EXPRESS TAXIS,15/11/2016,527.00,52001-HIRE OF VEHICLES,CHILDRENS TAXI BUDGET,Transport,Revenue
Walsall Council,http://opendatacommunities.org/id/metropolitan-district-council/walsall,WC74-35,30/11/2016,Childrens,A1 EXPRESS TAXIS,01/11/2016,612.00,52001-HIRE OF VEHICLES,CHILDRENS TAXI BUDGET,Transport,Revenue
Walsall Council,http://opendatacommunities.org/id/metropolitan-district-council/walsall,WC74-36,30/11/2016,Childrens,A1 EXPRESS TAXIS,15/11/2016,690.00,52001-HIRE OF VEHICLES,CHILDRENS TAXI BUDGET,Transport,Revenue
Walsall Council,http://opendatacommunities.org/id/metropolitan-district-council/walsall,WC74-37,30/11/2016,Childrens,A1 EXPRESS TAXIS,01/11/2016,805.00,52001-HIRE OF VEHICLES,CHILDRENS TAXI BUDGET,Transport,Revenue
Walsall Council,http://opendatacommunities.org/id/metropolitan-district-council/walsall,WC74-38,30/11/2016,Childrens,REDACTED,07/11/2016,378.00,76422-DIRECT PAYMENTS TO SOCIAL SERVICES CLIENTS,FAMILY SUPPORT - DIRECT PAYMENTS,Transfer Payments,Revenue
Walsall Council,http://opendatacommunities.org/id/metropolitan-district-council/walsall,WC74-39,30/11/2016,Childrens,ABACUS FOSTERING LTD,21/11/2016,"4,071.43",74037-INDEPENDENT FOSTER CARE-OTH AGENCY PROVISION,EXTERNAL FOSTER CARE PROVISION,Third Party Payments,Revenue
Walsall Council,http://opendatacommunities.org/id/metropolitan-district-council/walsall,WC74-40,30/11/2016,Childrens,REDACTED,21/11/2016,255.72,74006-HOLIDAY/CHRISTMAS ALLOWANCE-FOSTER CARERS-OTH AGENCY PROVISION,INTERNAL FOSTER CARE PROVISION,Third Party Payments,Revenue
Walsall Council,http://opendatacommunities.org/id/metropolitan-district-council/walsall,WC74-41,30/11/2016,Adult Social Care,ABBEY COURT NURSING & RESIDEN,15/11/2016,"1,728.77",73373-RESIDENTIAL & NURSING CARE PLACEMENTS,OP COMMISSIONING,Third Party Payments,Revenue
Walsall Council,http://opendatacommunities.org/id/metropolitan-district-council/walsall,WC74-42,30/11/2016,Adult Social Care,ABBEY COURT NURSING & RESIDEN,15/11/2016,"1,728.77",73373-RESIDENTIAL & NURSING CARE PLACEMENTS,OP COMMISSIONING,Third Party Payments,Revenue
Walsall Council,http://opendatacommunities.org/id/metropolitan-district-council/walsall,WC74-43,30/11/2016,Adult Social Care,ABBEY COURT NURSING & RESIDEN,01/11/2016,"1,786.43",73373-RESIDENTIAL & NURSING CARE PLACEMENTS,OP COMMISSIONING,Third Party Payments,Revenue
Walsall Council,http://opendatacommunities.org/id/metropolitan-district-council/walsall,WC74-44,30/11/2016,Adult Social Care,ABBEY COURT NURSING & RESIDEN,15/11/2016,"1,818.30",73373-RESIDENTIAL & NURSING CARE PLACEMENTS,MH COMMISSIONING,Third Party Payments,Revenue
Walsall Council,http://opendatacommunities.org/id/metropolitan-district-council/walsall,WC74-45,30/11/2016,Adult Social Care,ABBEY COURT NURSING & RESIDEN,01/11/2016,"2,381.85",73373-RESIDENTIAL & NURSING CARE PLACEMENTS,OP COMMISSIONING,Third Party Payments,Revenue
Walsall Council,http://opendatacommunities.org/id/metropolitan-district-council/walsall,WC74-46,30/11/2016,Adult Social Care,ABBEY HEALTHCARE HOMES LTD,08/11/2016,"1,699.16",73373-RESIDENTIAL & NURSING CARE PLACEMENTS,PD COMMISSIONING,Third Party Payments,Revenue
Walsall Council,http://opendatacommunities.org/id/metropolitan-district-council/walsall,WC74-47,30/11/2016,Adult Social Care,ABBEY HEALTHCARE HOMES LTD,08/11/2016,"2,294.08",73373-RESIDENTIAL & NURSING CARE PLACEMENTS,PD COMMISSIONING,Third Party Payments,Revenue
Walsall Council,http://opendatacommunities.org/id/metropolitan-district-council/walsall,WC74-48,30/11/2016,Childrens,ABC CHILDRENS HOME,14/11/2016,"15,500.00",74036-EXTERNAL RESIDENTIAL CARE-OTH AGENCY PROVISION,INDEPENDENT RESIDENTIAL HOMES,Third Party Payments,Revenue
Walsall Council,http://opendatacommunities.org/id/metropolitan-district-council/walsall,WC74-49,30/11/2016,Childrens,ABC DAY NURSERY (WILLENHALL) LIMITED,07/11/2016,375.00,63000-PROFESSIONAL FEES AND SERVICES,SAFEGUARDING & FAMILY SUPPORT,Supplies & Services,Revenue
Walsall Council,http://opendatacommunities.org/id/metropolitan-district-council/walsall,WC74-50,30/11/2016,Childrens,ABC FOSTERING,17/11/2016,"2,795.91",74037-INDEPENDENT FOSTER CARE-OTH AGENCY PROVISION,EXTERNAL FOSTER CARE PROVISION,Third Party Payments,Revenue
Walsall Council,http://opendatacommunities.org/id/metropolitan-district-council/walsall,WC74-51,30/11/2016,Childrens,ABC FOSTERING,17/11/2016,"2,917.50",74037-INDEPENDENT FOSTER CARE-OTH AGENCY PROVISION,EXTERNAL FOSTER CARE PROVISION,Third Party Payments,Revenue
Walsall Council,http://opendatacommunities.org/id/metropolitan-district-council/walsall,WC74-52,30/11/2016,Childrens,ABC FOSTERING,17/11/2016,"2,917.50",74037-INDEPENDENT FOSTER CARE-OTH AGENCY PROVISION,EXTERNAL FOSTER CARE PROVISION,Third Party Payments,Revenue
Walsall Council,http://opendatacommunities.org/id/metropolitan-district-council/walsall,WC74-53,30/11/2016,Childrens,ABC FOSTERING,17/11/2016,"2,917.54",74037-INDEPENDENT FOSTER CARE-OTH AGENCY PROVISION,EXTERNAL FOSTER CARE PROVISION,Third Party Payments,Revenue
Walsall Council,http://opendatacommunities.org/id/metropolitan-district-council/walsall,WC74-54,30/11/2016,Childrens,ABC FOSTERING,17/11/2016,"2,917.54",74037-INDEPENDENT FOSTER CARE-OTH AGENCY PROVISION,EXTERNAL FOSTER CARE PROVISION,Third Party Payments,Revenue
Walsall Council,http://opendatacommunities.org/id/metropolitan-district-council/walsall,WC74-55,30/11/2016,Childrens,ABC FOSTERING,17/11/2016,"3,108.86",74037-INDEPENDENT FOSTER CARE-OTH AGENCY PROVISION,EXTERNAL FOSTER CARE PROVISION,Third Party Payments,Revenue
Walsall Council,http://opendatacommunities.org/id/metropolitan-district-council/walsall,WC74-56,30/11/2016,Childrens,ABC FOSTERING,17/11/2016,"3,306.55",74037-INDEPENDENT FOSTER CARE-OTH AGENCY PROVISION,EXTERNAL FOSTER CARE PROVISION,Third Party Payments,Revenue
Walsall Council,http://opendatacommunities.org/id/metropolitan-district-council/walsall,WC74-57,30/11/2016,Childrens,ABC FOSTERING,17/11/2016,"3,306.55",74037-INDEPENDENT FOSTER CARE-OTH AGENCY PROVISION,EXTERNAL FOSTER CARE PROVISION,Third Party Payments,Revenue
Walsall Council,http://opendatacommunities.org/id/metropolitan-district-council/walsall,WC74-58,30/11/2016,Adult Social Care,REDACTED,07/11/2016,"1,557.68",76422-DIRECT PAYMENTS TO SOCIAL SERVICES CLIENTS,LD COMMISSIONING,Transfer Payments,Revenue
Walsall Council,http://opendatacommunities.org/id/metropolitan-district-council/walsall,WC74-59,30/11/2016,Adult Social Care,REDACTED,07/11/2016,"2,357.99",76422-DIRECT PAYMENTS TO SOCIAL SERVICES CLIENTS,LD COMMISSIONING,Transfer Payments,Revenue
Walsall Council,http://opendatacommunities.org/id/metropolitan-district-council/walsall,WC74-60,30/11/2016,Childrens,ABLEWELL CARS,17/11/2016,477.00,52000-WITH DRIVER-HIRE OF VEHICLES,SCHOOL TRANSPORT,Transport,Revenue
Walsall Council,http://opendatacommunities.org/id/metropolitan-district-council/walsall,WC74-61,30/11/2016,Childrens,ABLEWELL CARS,22/11/2016,742.00,52000-WITH DRIVER-HIRE OF VEHICLES,SCHOOL TRANSPORT,Transport,Revenue
Walsall Council,http://opendatacommunities.org/id/metropolitan-district-council/walsall,WC74-62,30/11/2016,Childrens,ABLEWELL CARS,17/11/2016,815.00,52000-WITH DRIVER-HIRE OF VEHICLES,SCHOOL TRANSPORT,Transport,Revenue
Walsall Council,http://opendatacommunities.org/id/metropolitan-district-council/walsall,WC74-63,30/11/2016,Childrens,ACCORD HOUSING ASSOCIATION LTD#135,10/11/2016,278.04,43000-RENTS,SAFEGUARDING & FAMILY SUPPORT,Premises,Revenue
Walsall Council,http://opendatacommunities.org/id/metropolitan-district-council/walsall,WC74-64,30/11/2016,Childrens,ACCORD HOUSING ASSOCIATION LTD#135,10/11/2016,924.92,43000-RENTS,SAFEGUARDING & FAMILY SUPPORT,Premises,Revenue
Walsall Council,http://opendatacommunities.org/id/metropolitan-district-council/walsall,WC74-65,30/11/2016,Adult Social Care,ACCORD HOUSING ASSOCIATION LTD#135,08/11/2016,"4,744.90",73373-RESIDENTIAL & NURSING CARE PLACEMENTS,LD COMMISSIONING,Third Party Payments,Revenue
Walsall Council,http://opendatacommunities.org/id/metropolitan-district-council/walsall,WC74-66,30/11/2016,Adult Social Care,ACCORD HOUSING ASSOCIATION LTD#135,08/11/2016,"4,744.90",73373-RESIDENTIAL & NURSING CARE PLACEMENTS,LD COMMISSIONING,Third Party Payments,Revenue
Walsall Council,http://opendatacommunities.org/id/metropolitan-district-council/walsall,WC74-67,30/11/2016,Adult Social Care,ACCORD HOUSING ASSOCIATION LTD#135,08/11/2016,"4,744.90",73373-RESIDENTIAL & NURSING CARE PLACEMENTS,LD COMMISSIONING,Third Party Payments,Revenue
Walsall Council,http://opendatacommunities.org/id/metropolitan-district-council/walsall,WC74-68,30/11/2016,Adult Social Care,ACCORD HOUSING ASSOCIATION LTD#135,08/11/2016,"4,744.90",73373-RESIDENTIAL & NURSING CARE PLACEMENTS,LD COMMISSIONING,Third Party Payments,Revenue
Walsall Council,http://opendatacommunities.org/id/metropolitan-district-council/walsall,WC74-69,30/11/2016,Adult Social Care,ACCORD HOUSING ASSOCIATION LTD#135,08/11/2016,"6,622.35",73373-RESIDENTIAL & NURSING CARE PLACEMENTS,LD COMMISSIONING,Third Party Payments,Revenue
Walsall Council,http://opendatacommunities.org/id/metropolitan-district-council/walsall,WC74-70,30/11/2016,Adult Social Care,ACCORD HOUSING ASSOCIATION LTD#135,08/11/2016,"6,622.35",73373-RESIDENTIAL & NURSING CARE PLACEMENTS,LD COMMISSIONING,Third Party Payments,Revenue
Walsall Council,http://opendatacommunities.org/id/metropolitan-district-council/walsall,WC74-71,30/11/2016,Adult Social Care,ACCORD HOUSING ASSOCIATION LTD#135,08/11/2016,"6,622.35",73373-RESIDENTIAL & NURSING CARE PLACEMENTS,LD COMMISSIONING,Third Party Payments,Revenue
Walsall Council,http://opendatacommunities.org/id/metropolitan-district-council/walsall,WC74-72,30/11/2016,Adult Social Care,ACCORD HOUSING ASSOCIATION LTD#135,09/11/2016,"8,992.59",73372-DOMICILIARY CARE,OP COMMISSIONING,Third Party Payments,Revenue
Walsall Council,http://opendatacommunities.org/id/metropolitan-district-council/walsall,WC74-73,30/11/2016,Adult Social Care,ACCORD HOUSING ASSOCIATION LTD#135,07/11/2016,"11,164.00",73365-BLOCK GROSS-SUPPORTING PEOPLE,EXTERNAL SP,Third Party Payments,Revenue
Walsall Council,http://opendatacommunities.org/id/metropolitan-district-council/walsall,WC74-74,30/11/2016,Adult Social Care,ACCORD HOUSING ASSOCIATION LTD#135,15/11/2016,"11,462.06",73373-RESIDENTIAL & NURSING CARE PLACEMENTS,OP COMMISSIONING,Third Party Payments,Revenue
Walsall Council,http://opendatacommunities.org/id/metropolitan-district-council/walsall,WC74-75,30/11/2016,Adult Social Care,ACCORD HOUSING ASSOCIATION LTD#135,15/11/2016,"13,164.34",73373-RESIDENTIAL & NURSING CARE PLACEMENTS,OP COMMISSIONING,Third Party Payments,Revenue
Walsall Council,http://opendatacommunities.org/id/metropolitan-district-council/walsall,WC74-76,30/11/2016,Adult Social Care,ACCORD HOUSING ASSOCIATION LTD#135,07/11/2016,"29,330.75",73365-BLOCK GROSS-SUPPORTING PEOPLE,EXTERNAL SP,Third Party Payments,Revenue
Walsall Council,http://opendatacommunities.org/id/metropolitan-district-council/walsall,WC74-77,30/11/2016,Adult Social Care,ACCORD HOUSING ASSOCIATION LTD#135,09/11/2016,"31,186.55",73372-DOMICILIARY CARE,OP COMMISSIONING,Third Party Payments,Revenue
Walsall Council,http://opendatacommunities.org/id/metropolitan-district-council/walsall,WC74-78,30/11/2016,Adult Social Care,ACE CARE AGENCY,21/11/2016,294.58,73372-DOMICILIARY CARE,OP COMMISSIONING,Third Party Payments,Revenue
Walsall Council,http://opendatacommunities.org/id/metropolitan-district-council/walsall,WC74-79,30/11/2016,Adult Social Care,ACE CARE AGENCY,21/11/2016,546.00,73372-DOMICILIARY CARE,OP COMMISSIONING,Third Party Payments,Revenue
Walsall Council,http://opendatacommunities.org/id/metropolitan-district-council/walsall,WC74-80,30/11/2016,Adult Social Care,ACE CARE AGENCY,21/11/2016,607.05,73372-DOMICILIARY CARE,MH COMMISSIONING,Third Party Payments,Revenue
Walsall Council,http://opendatacommunities.org/id/metropolitan-district-council/walsall,WC74-81,30/11/2016,Adult Social Care,ACE CARE AGENCY,15/11/2016,614.25,73372-DOMICILIARY CARE,OP COMMISSIONING,Third Party Payments,Revenue
Walsall Council,http://opendatacommunities.org/id/metropolitan-district-council/walsall,WC74-82,30/11/2016,Adult Social Care,ACE CARE AGENCY,15/11/2016,819.00,73372-DOMICILIARY CARE,OP COMMISSIONING,Third Party Payments,Revenue
Walsall Council,http://opendatacommunities.org/id/metropolitan-district-council/walsall,WC74-83,30/11/2016,Adult Social Care,ACE CARE AGENCY,15/11/2016,819.00,73372-DOMICILIARY CARE,OP COMMISSIONING,Third Party Payments,Revenue
Walsall Council,http://opendatacommunities.org/id/metropolitan-district-council/walsall,WC74-84,30/11/2016,Adult Social Care,ACE CARE AGENCY,21/11/2016,819.00,73372-DOMICILIARY CARE,OP COMMISSIONING,Third Party Payments,Revenue
Walsall Council,http://opendatacommunities.org/id/metropolitan-district-council/walsall,WC74-85,30/11/2016,Adult Social Care,ACEPAY LTD (COTTAGE NUR HOME),08/11/2016,"1,203.41",73373-RESIDENTIAL & NURSING CARE PLACEMENTS,OP COMMISSIONING,Third Party Payments,Revenue
Walsall Council,http://opendatacommunities.org/id/metropolitan-district-council/walsall,WC74-86,30/11/2016,Adult Social Care,ACEPAY LTD (COTTAGE NUR HOME),08/11/2016,"1,219.43",73373-RESIDENTIAL & NURSING CARE PLACEMENTS,OP COMMISSIONING,Third Party Payments,Revenue
Walsall Council,http://opendatacommunities.org/id/metropolitan-district-council/walsall,WC74-87,30/11/2016,Adult Social Care,ACEPAY LTD (COTTAGE NUR HOME),08/11/2016,"1,219.43",73373-RESIDENTIAL & NURSING CARE PLACEMENTS,OP COMMISSIONING,Third Party Payments,Revenue
Walsall Council,http://opendatacommunities.org/id/metropolitan-district-council/walsall,WC74-88,30/11/2016,Adult Social Care,ACEPAY LTD (COTTAGE NUR HOME),08/11/2016,"1,219.44",73373-RESIDENTIAL & NURSING CARE PLACEMENTS,OP COMMISSIONING,Third Party Payments,Revenue
Walsall Council,http://opendatacommunities.org/id/metropolitan-district-council/walsall,WC74-89,30/11/2016,Adult Social Care,ACEPAY LTD (COTTAGE NUR HOME),22/11/2016,"1,220.64",73373-RESIDENTIAL & NURSING CARE PLACEMENTS,OP COMMISSIONING,Third Party Payments,Revenue
Walsall Council,http://opendatacommunities.org/id/metropolitan-district-council/walsall,WC74-90,30/11/2016,Adult Social Care,ACEPAY LTD (COTTAGE NUR HOME),22/11/2016,"1,220.64",73373-RESIDENTIAL & NURSING CARE PLACEMENTS,OP COMMISSIONING,Third Party Payments,Revenue
Walsall Council,http://opendatacommunities.org/id/metropolitan-district-council/walsall,WC74-91,30/11/2016,Adult Social Care,ACEPAY LTD (COTTAGE NUR HOME),08/11/2016,"2,274.80",73373-RESIDENTIAL & NURSING CARE PLACEMENTS,OP COMMISSIONING,Third Party Payments,Revenue
Walsall Council,http://opendatacommunities.org/id/metropolitan-district-council/walsall,WC74-92,30/11/2016,Adult Social Care,ACEPAY LTD (COTTAGE NUR HOME),08/11/2016,"2,274.80",73373-RESIDENTIAL & NURSING CARE PLACEMENTS,OP COMMISSIONING,Third Party Payments,Revenue
Walsall Council,http://opendatacommunities.org/id/metropolitan-district-council/walsall,WC74-93,30/11/2016,Adult Social Care,ACEPAY LTD (COTTAGE NUR HOME),08/11/2016,"2,274.80",73373-RESIDENTIAL & NURSING CARE PLACEMENTS,OP COMMISSIONING,Third Party Payments,Revenue
Walsall Council,http://opendatacommunities.org/id/metropolitan-district-council/walsall,WC74-94,30/11/2016,Adult Social Care,ACEPAY LTD (COTTAGE NUR HOME),08/11/2016,"2,320.80",73373-RESIDENTIAL & NURSING CARE PLACEMENTS,OP COMMISSIONING,Third Party Payments,Revenue
Walsall Council,http://opendatacommunities.org/id/metropolitan-district-council/walsall,WC74-95,30/11/2016,Adult Social Care,ACEPAY LTD (COTTAGE NUR HOME),08/11/2016,"2,320.80",73373-RESIDENTIAL & NURSING CARE PLACEMENTS,OP COMMISSIONING,Third Party Payments,Revenue
Walsall Council,http://opendatacommunities.org/id/metropolitan-district-council/walsall,WC74-96,30/11/2016,Adult Social Care,ACEPAY LTD (COTTAGE NUR HOME),08/11/2016,"2,320.80",73373-RESIDENTIAL & NURSING CARE PLACEMENTS,OP COMMISSIONING,Third Party Payments,Revenue
Walsall Council,http://opendatacommunities.org/id/metropolitan-district-council/walsall,WC74-97,30/11/2016,Adult Social Care,ACEPAY LTD (COTTAGE NUR HOME),08/11/2016,"9,586.66",73373-RESIDENTIAL & NURSING CARE PLACEMENTS,OP COMMISSIONING,Third Party Payments,Revenue
Walsall Council,http://opendatacommunities.org/id/metropolitan-district-council/walsall,WC74-98,30/11/2016,Childrens,ACORN CARE & EDUCATION LTD (SALES),07/11/2016,"12,650.00",66502-TOP UP FUNDING -GRANTS TO SCHOOLS,INDEPENDENT PROVIDERS - SPECIAL & AP,Third Party Payments,Revenue
Walsall Council,http://opendatacommunities.org/id/metropolitan-district-council/walsall,WC74-99,30/11/2016,Childrens,ACORN CARE & EDUCATION LTD (SALES),07/11/2016,"12,650.00",66502-TOP UP FUNDING -GRANTS TO SCHOOLS,INDEPENDENT PROVIDERS - SPECIAL & AP,Third Party Payments,Revenue
Walsall Council,http://opendatacommunities.org/id/metropolitan-district-council/walsall,WC74-100,30/11/2016,Adult Social Care,ACORN CARE LTD,22/11/2016,"14,684.70",73373-RESIDENTIAL & NURSING CARE PLACEMENTS,LD COMMISSIONING,Third Party Payments,Revenue
Walsall Council,http://opendatacommunities.org/id/metropolitan-district-council/walsall,WC74-101,30/11/2016,Adult Social Care,ACORN REST HOME,22/11/2016,"1,620.00",73373-RESIDENTIAL & NURSING CARE PLACEMENTS,OP COMMISSIONING,Third Party Payments,Revenue
Walsall Council,http://opendatacommunities.org/id/metropolitan-district-council/walsall,WC74-102,30/11/2016,Childrens,ACORNS CHILDRENS HOSPICE TRUST,01/11/2016,750.00,63000-PROFESSIONAL FEES AND SERVICES,DIRECTLY COMMISSIONED NURSING SERVICES,Supplies & Services,Revenue
Walsall Council,http://opendatacommunities.org/id/metropolitan-district-council/walsall,WC74-103,30/11/2016,Adult Social Care,ACTION ON HEARING LOSS,02/11/2016,503.69,60520-HEALTH & SAFETY-MATERIALS,SENSORY/DEAF SERVICES,Supplies & Services,Revenue
Walsall Council,http://opendatacommunities.org/id/metropolitan-district-council/walsall,WC74-104,30/11/2016,Adult Social Care,ACTON BANKS LTD,24/11/2016,254.37,34305-AGENCY STAFF-EMPLOYEES,REABLEMENT TEAM - HOLLY BANK,Employees,Revenue
Walsall Council,http://opendatacommunities.org/id/metropolitan-district-council/walsall,WC74-105,30/11/2016,Adult Social Care,ACTON BANKS LTD,24/11/2016,"1,952.93",34305-AGENCY STAFF-EMPLOYEES,REABLEMENT TEAM - HOLLY BANK,Employees,Revenue
Walsall Council,http://opendatacommunities.org/id/metropolitan-district-council/walsall,WC74-106,30/11/2016,Adult Social Care,ACTON BANKS LTD,24/11/2016,"1,981.71",34305-AGENCY STAFF-EMPLOYEES,REABLEMENT TEAM - HOLLY BANK,Employees,Revenue
Walsall Council,http://opendatacommunities.org/id/metropolitan-district-council/walsall,WC74-107,30/11/2016,Adult Social Care,ACTON BANKS LTD,24/11/2016,"2,227.41",34305-AGENCY STAFF-EMPLOYEES,REABLEMENT TEAM - HOLLY BANK,Employees,Revenue
Walsall Council,http://opendatacommunities.org/id/metropolitan-district-council/walsall,WC74-108,30/11/2016,Childrens,REDACTED,07/11/2016,684.00,76422-DIRECT PAYMENTS TO SOCIAL SERVICES CLIENTS,FAMILY SUPPORT - DIRECT PAYMENTS,Transfer Payments,Revenue
Walsall Council,http://opendatacommunities.org/id/metropolitan-district-council/walsall,WC74-109,30/11/2016,Adult Social Care,REDACTED,07/11/2016,486.00,76422-DIRECT PAYMENTS TO SOCIAL SERVICES CLIENTS,LD COMMISSIONING,Transfer Payments,Revenue
Walsall Council,http://opendatacommunities.org/id/metropolitan-district-council/walsall,WC74-110,30/11/2016,Adult Social Care,REDACTED,07/11/2016,964.00,76422-DIRECT PAYMENTS TO SOCIAL SERVICES CLIENTS,OP COMMISSIONING,Transfer Payments,Revenue
Walsall Council,http://opendatacommunities.org/id/metropolitan-district-council/walsall,WC74-111,30/11/2016,Change and Governance,ADMIRAL SELF STORAGE LTD,01/11/2016,940.00,63000-PROFESSIONAL FEES AND SERVICES,FINANCE ADMIN,Supplies & Services,Revenue
Walsall Council,http://opendatacommunities.org/id/metropolitan-district-council/walsall,WC74-112,30/11/2016,Economy & Environment,ADMIRAL SELF STORAGE LTD,21/11/2016,"1,877.14",63000-PROFESSIONAL FEES AND SERVICES,EMERGENCY PLANNING 2012/2013,Supplies & Services,Revenue
Walsall Council,http://opendatacommunities.org/id/metropolitan-district-council/walsall,WC74-113,30/11/2016,Childrens,REDACTED,21/11/2016,694.24,74006-HOLIDAY/CHRISTMAS ALLOWANCE-FOSTER CARERS-OTH AGENCY PROVISION,INTERNAL FOSTER CARE PROVISION,Third Party Payments,Revenue
Walsall Council,http://opendatacommunities.org/id/metropolitan-district-council/walsall,WC74-114,30/11/2016,Economy & Environment,ADS ELECTRICAL & HIGHWAY SERVICES LTD,25/11/2016,600.00,52001-HIRE OF VEHICLES,FESTIVE DECORATIONS,Transport,Revenue
Walsall Council,http://opendatacommunities.org/id/metropolitan-district-council/walsall,WC74-115,30/11/2016,Adult Social Care,ADVANCE HEALTH CARE (UK) LTD,10/11/2016,307.85,73025-PROFESSIONAL SERVICES-PRIV CONTRACTOR & OTHER AGENCIES,COMMUNITY INTERMEDIATE CARE,Third Party Payments,Revenue
Walsall Council,http://opendatacommunities.org/id/metropolitan-district-council/walsall,WC74-116,30/11/2016,Adult Social Care,ADVANCE HEALTH CARE (UK) LTD,10/11/2016,312.00,73025-PROFESSIONAL SERVICES-PRIV CONTRACTOR & OTHER AGENCIES,COMMUNITY INTERMEDIATE CARE,Third Party Payments,Revenue
Walsall Council,http://opendatacommunities.org/id/metropolitan-district-council/walsall,WC74-117,30/11/2016,Adult Social Care,ADVANCE HEALTH CARE (UK) LTD,10/11/2016,477.75,73025-PROFESSIONAL SERVICES-PRIV CONTRACTOR & OTHER AGENCIES,COMMUNITY INTERMEDIATE CARE,Third Party Payments,Revenue
Walsall Council,http://opendatacommunities.org/id/metropolitan-district-council/walsall,WC74-118,30/11/2016,Adult Social Care,ADVANCE HEALTH CARE (UK) LTD,10/11/2016,546.00,73025-PROFESSIONAL SERVICES-PRIV CONTRACTOR & OTHER AGENCIES,COMMUNITY INTERMEDIATE CARE,Third Party Payments,Revenue
Walsall Council,http://opendatacommunities.org/id/metropolitan-district-council/walsall,WC74-119,30/11/2016,Adult Social Care,ADVANCE HEALTH CARE (UK) LTD,24/11/2016,"1,090.60",73025-PROFESSIONAL SERVICES-PRIV CONTRACTOR & OTHER AGENCIES,COMMUNITY INTERMEDIATE CARE,Third Party Payments,Revenue
Walsall Council,http://opendatacommunities.org/id/metropolitan-district-council/walsall,WC74-120,30/11/2016,Adult Social Care,ADVANCE HEALTH CARE (UK) LTD,24/11/2016,"1,224.87",73025-PROFESSIONAL SERVICES-PRIV CONTRACTOR & OTHER AGENCIES,COMMUNITY INTERMEDIATE CARE,Third Party Payments,Revenue
Walsall Council,http://opendatacommunities.org/id/metropolitan-district-council/walsall,WC74-121,30/11/2016,Adult Social Care,ADVANCE HEALTH CARE (UK) LTD,24/11/2016,"1,251.07",73025-PROFESSIONAL SERVICES-PRIV CONTRACTOR & OTHER AGENCIES,COMMUNITY INTERMEDIATE CARE,Third Party Payments,Revenue
Walsall Council,http://opendatacommunities.org/id/metropolitan-district-council/walsall,WC74-122,30/11/2016,Adult Social Care,ADVANCE HEALTH CARE (UK) LTD,24/11/2016,"4,205.10",73025-PROFESSIONAL SERVICES-PRIV CONTRACTOR & OTHER AGENCIES,COMMUNITY INTERMEDIATE CARE,Third Party Payments,Revenue
Walsall Council,http://opendatacommunities.org/id/metropolitan-district-council/walsall,WC74-123,30/11/2016,Adult Social Care,ADVANCE HEALTH CARE (UK) LTD,16/11/2016,"4,755.30",73025-PROFESSIONAL SERVICES-PRIV CONTRACTOR & OTHER AGENCIES,COMMUNITY INTERMEDIATE CARE,Third Party Payments,Revenue
Walsall Council,http://opendatacommunities.org/id/metropolitan-district-council/walsall,WC74-124,30/11/2016,Adult Social Care,ADVANCE HEALTH CARE (UK) LTD,24/11/2016,"4,863.38",73025-PROFESSIONAL SERVICES-PRIV CONTRACTOR & OTHER AGENCIES,COMMUNITY INTERMEDIATE CARE,Third Party Payments,Revenue
Walsall Council,http://opendatacommunities.org/id/metropolitan-district-council/walsall,WC74-125,30/11/2016,Adult Social Care,ADVANCE HEALTH CARE (UK) LTD,24/11/2016,"4,948.53",73025-PROFESSIONAL SERVICES-PRIV CONTRACTOR & OTHER AGENCIES,COMMUNITY INTERMEDIATE CARE,Third Party Payments,Revenue
Walsall Council,http://opendatacommunities.org/id/metropolitan-district-council/walsall,WC74-126,30/11/2016,Adult Social Care,ADVANCE HEALTH CARE (UK) LTD,09/11/2016,"52,254.10",73372-DOMICILIARY CARE,OP COMMISSIONING,Third Party Payments,Revenue
Walsall Council,http://opendatacommunities.org/id/metropolitan-district-council/walsall,WC74-127,30/11/2016,Change and Governance,ADVANCED DIGITAL IMAGING,16/11/2016,450.00,60500-GENERAL MATERIALS,PRINTING SERVICES,Supplies & Services,Revenue
Walsall Council,http://opendatacommunities.org/id/metropolitan-district-council/walsall,WC74-128,30/11/2016,Change and Governance,AFGHAN COMMUNITY & WELFARE CENTRE,16/11/2016,"1,500.00",66500-GRANTS TO OTHER ORGS,COHESION,Third Party Payments,Revenue
Walsall Council,http://opendatacommunities.org/id/metropolitan-district-council/walsall,WC74-129,30/11/2016,Adult Social Care,AGE UK WALSALL,14/11/2016,512.50,76423-DIRECT PAYMENTS SUPPORT,STRATEGIC DEVELOPMENT MANAGEMENT TEAM,Transfer Payments,Revenue
Walsall Council,http://opendatacommunities.org/id/metropolitan-district-council/walsall,WC74-130,30/11/2016,Adult Social Care,AGE UK WALSALL,02/11/2016,"6,700.00",76423-DIRECT PAYMENTS SUPPORT,INDIVIDUAL BUDGET - SUPPORT,Transfer Payments,Revenue
Walsall Council,http://opendatacommunities.org/id/metropolitan-district-council/walsall,WC74-131,30/11/2016,Adult Social Care,AGE UK WALSALL,25/11/2016,"8,525.00",76423-DIRECT PAYMENTS SUPPORT,INDIVIDUAL BUDGET - SUPPORT,Transfer Payments,Revenue
Walsall Council,http://opendatacommunities.org/id/metropolitan-district-council/walsall,WC74-132,30/11/2016,Change and Governance,AGGORA TECHNICAL LTD,18/11/2016,"1,039.00",60006-NEW-FURNITURE & EQUIPMENT,CA MOORCROFT WOOD,Supplies & Services,Revenue
Walsall Council,http://opendatacommunities.org/id/metropolitan-district-council/walsall,WC74-133,30/11/2016,Adult Social Care,REDACTED,07/11/2016,"1,882.00",76422-DIRECT PAYMENTS TO SOCIAL SERVICES CLIENTS,LD COMMISSIONING,Transfer Payments,Revenue
Walsall Council,http://opendatacommunities.org/id/metropolitan-district-council/walsall,WC74-134,30/11/2016,Adult Social Care,REDACTED,07/11/2016,914.20,76422-DIRECT PAYMENTS TO SOCIAL SERVICES CLIENTS,OP COMMISSIONING,Transfer Payments,Revenue
Walsall Council,http://opendatacommunities.org/id/metropolitan-district-council/walsall,WC74-135,30/11/2016,Childrens,AJK TRAVEL,02/11/2016,"14,334.84",52000-WITH DRIVER-HIRE OF VEHICLES,SCHOOL TRANSPORT,Transport,Revenue
Walsall Council,http://opendatacommunities.org/id/metropolitan-district-council/walsall,WC74-136,30/11/2016,Childrens,ALAN CRITCHLEY ASSOCIATES,02/11/2016,"4,812.50",63102-CONSULTANTS FEES - CORPORATE,SAFEGUARDING BOARD,Supplies & Services,Revenue
Walsall Council,http://opendatacommunities.org/id/metropolitan-district-council/walsall,WC74-137,30/11/2016,Childrens,ALBRIGHTON CARE LTD,23/11/2016,"9,626.57",74036-EXTERNAL RESIDENTIAL CARE-OTH AGENCY PROVISION,INDEPENDENT RESIDENTIAL HOMES,Third Party Payments,Revenue
Walsall Council,http://opendatacommunities.org/id/metropolitan-district-council/walsall,WC74-138,30/11/2016,Economy & Environment,ALDERBROOK HEALTHCARE LTD,01/11/2016,"1,073.40",63000-PROFESSIONAL FEES AND SERVICES,CORONERS SERVICE,Supplies & Services,Revenue
Walsall Council,http://opendatacommunities.org/id/metropolitan-district-council/walsall,WC74-139,30/11/2016,Adult Social Care,ALDERGROVE MANOR LTD,22/11/2016,"1,839.68",73373-RESIDENTIAL & NURSING CARE PLACEMENTS,MH COMMISSIONING,Third Party Payments,Revenue
Walsall Council,http://opendatacommunities.org/id/metropolitan-district-council/walsall,WC74-140,30/11/2016,Childrens,ALDRIDGE & BARONS LIMITED,02/11/2016,525.75,52000-WITH DRIVER-HIRE OF VEHICLES,SCHOOL TRANSPORT,Transport,Revenue
Walsall Council,http://opendatacommunities.org/id/metropolitan-district-council/walsall,WC74-141,30/11/2016,Childrens,ALDRIDGE & BARONS LIMITED,02/11/2016,"18,438.15",52000-WITH DRIVER-HIRE OF VEHICLES,SCHOOL TRANSPORT,Transport,Revenue
Walsall Council,http://opendatacommunities.org/id/metropolitan-district-council/walsall,WC74-142,30/11/2016,Childrens,ALDRIDGE & BARONS LIMITED,02/11/2016,"19,540.40",52000-WITH DRIVER-HIRE OF VEHICLES,SCHOOL TRANSPORT,Transport,Revenue
Walsall Council,http://opendatacommunities.org/id/metropolitan-district-council/walsall,WC74-143,30/11/2016,Economy & Environment,ALDRIDGE RUNNING CLUB,04/11/2016,250.00,63000-PROFESSIONAL FEES AND SERVICES,INSPIRED GENERATIONS (CSAF),Supplies & Services,Revenue
Walsall Council,http://opendatacommunities.org/id/metropolitan-district-council/walsall,WC74-144,30/11/2016,Childrens,ALDRIDGE SCHOOL A SCIENCE COLLEGE.,23/11/2016,275.00,77300-ISB-FORMULA ALLOCATION,ALDRIDGE SCHOOL SCIENCE COLLEGE (ACADEMY),Transfer Payments,Revenue
Walsall Council,http://opendatacommunities.org/id/metropolitan-district-council/walsall,WC74-145,30/11/2016,Childrens,ALDRIDGE SCHOOL A SCIENCE COLLEGE.,23/11/2016,660.00,77300-ISB-FORMULA ALLOCATION,ALDRIDGE SCHOOL SCIENCE COLLEGE (ACADEMY),Transfer Payments,Revenue
Walsall Council,http://opendatacommunities.org/id/metropolitan-district-council/walsall,WC74-146,30/11/2016,Childrens,ALDRIDGE SCHOOL A SCIENCE COLLEGE.,23/11/2016,"1,250.00",77300-ISB-FORMULA ALLOCATION,ALDRIDGE SCHOOL SCIENCE COLLEGE (ACADEMY),Transfer Payments,Revenue
Walsall Council,http://opendatacommunities.org/id/metropolitan-district-council/walsall,WC74-147,30/11/2016,Childrens,ALDRIDGE SCHOOL A SCIENCE COLLEGE.,23/11/2016,"1,250.00",77300-ISB-FORMULA ALLOCATION,ALDRIDGE SCHOOL SCIENCE COLLEGE (ACADEMY),Transfer Payments,Revenue
Walsall Council,http://opendatacommunities.org/id/metropolitan-district-council/walsall,WC74-148,30/11/2016,Adult Social Care,REDACTED,07/11/2016,"1,204.00",76422-DIRECT PAYMENTS TO SOCIAL SERVICES CLIENTS,PD COMMISSIONING,Transfer Payments,Revenue
Walsall Council,http://opendatacommunities.org/id/metropolitan-district-council/walsall,WC74-149,30/11/2016,Adult Social Care,ALEXANDRA HOUSE CARE SERVICES LTD T/A STONEBRIDGE NURSING HOME,08/11/2016,"7,117.44",73373-RESIDENTIAL & NURSING CARE PLACEMENTS,OP COMMISSIONING,Third Party Payments,Revenue
Walsall Council,http://opendatacommunities.org/id/metropolitan-district-council/walsall,WC74-150,30/11/2016,Adult Social Care,ALEXANDRA HOUSE CARE SERVICES LTD T/A STONEBRIDGE NURSING HOME,29/11/2016,"7,117.44",73373-RESIDENTIAL & NURSING CARE PLACEMENTS,OP COMMISSIONING,Third Party Payments,Revenue
Walsall Council,http://opendatacommunities.org/id/metropolitan-district-council/walsall,WC74-151,30/11/2016,Childrens,REDACTED,07/11/2016,582.66,76422-DIRECT PAYMENTS TO SOCIAL SERVICES CLIENTS,FAMILY SUPPORT - DIRECT PAYMENTS,Transfer Payments,Revenue
Walsall Council,http://opendatacommunities.org/id/metropolitan-district-council/walsall,WC74-152,30/11/2016,Adult Social Care,REDACTED,07/11/2016,898.00,76422-DIRECT PAYMENTS TO SOCIAL SERVICES CLIENTS,PD COMMISSIONING,Transfer Payments,Revenue
Walsall Council,http://opendatacommunities.org/id/metropolitan-district-council/walsall,WC74-153,30/11/2016,Adult Social Care,REDACTED,07/11/2016,612.00,76422-DIRECT PAYMENTS TO SOCIAL SERVICES CLIENTS,OP COMMISSIONING,Transfer Payments,Revenue
Walsall Council,http://opendatacommunities.org/id/metropolitan-district-council/walsall,WC74-154,30/11/2016,Childrens,REDACTED,07/11/2016,453.38,62515-MISCELLANEOUS SUPPLIES,INTERNAL FOSTER CARE PROVISION,Supplies & Services,Revenue
Walsall Council,http://opendatacommunities.org/id/metropolitan-district-council/walsall,WC74-155,30/11/2016,Childrens,REDACTED,07/11/2016,492.88,74006-HOLIDAY/CHRISTMAS ALLOWANCE-FOSTER CARERS-OTH AGENCY PROVISION,INTERNAL FOSTER CARE PROVISION,Third Party Payments,Revenue
Walsall Council,http://opendatacommunities.org/id/metropolitan-district-council/walsall,WC74-156,30/11/2016,Childrens,REDACTED,21/11/2016,714.30,74006-HOLIDAY/CHRISTMAS ALLOWANCE-FOSTER CARERS-OTH AGENCY PROVISION,INTERNAL FOSTER CARE PROVISION,Third Party Payments,Revenue
Walsall Council,http://opendatacommunities.org/id/metropolitan-district-council/walsall,WC74-157,30/11/2016,Childrens,REDACTED,21/11/2016,552.96,74006-HOLIDAY/CHRISTMAS ALLOWANCE-FOSTER CARERS-OTH AGENCY PROVISION,INTERNAL FOSTER CARE PROVISION,Third Party Payments,Revenue
Walsall Council,http://opendatacommunities.org/id/metropolitan-district-council/walsall,WC74-158,30/11/2016,Economy & Environment,ALLAN HADDOW LTD,01/11/2016,"4,950.00",73025-PROFESSIONAL SERVICES-PRIV CONTRACTOR & OTHER AGENCIES,FLEET,Third Party Payments,Revenue
Walsall Council,http://opendatacommunities.org/id/metropolitan-district-council/walsall,WC74-159,30/11/2016,Economy & Environment,ALLIANCE ELECTRONICS LTD,09/11/2016,294.80,73025-PROFESSIONAL SERVICES-PRIV CONTRACTOR & OTHER AGENCIES,FLEET,Third Party Payments,Revenue
Walsall Council,http://opendatacommunities.org/id/metropolitan-district-council/walsall,WC74-160,30/11/2016,Adult Social Care,ALMA COURT,15/11/2016,"6,113.10",73373-RESIDENTIAL & NURSING CARE PLACEMENTS,MH COMMISSIONING,Third Party Payments,Revenue
Walsall Council,http://opendatacommunities.org/id/metropolitan-district-council/walsall,WC74-161,30/11/2016,Adult Social Care,ALMA COURT,15/11/2016,"6,113.10",73373-RESIDENTIAL & NURSING CARE PLACEMENTS,OP COMMISSIONING,Third Party Payments,Revenue
Walsall Council,http://opendatacommunities.org/id/metropolitan-district-council/walsall,WC74-162,30/11/2016,Adult Social Care,ALPHA HEALTH CARE LTD,01/11/2016,"-4,360.19",73373-RESIDENTIAL & NURSING CARE PLACEMENTS,OP COMMISSIONING,Third Party Payments,Revenue
Walsall Council,http://opendatacommunities.org/id/metropolitan-district-council/walsall,WC74-163,30/11/2016,Adult Social Care,ALPHA HEALTH CARE LTD,01/11/2016,-589.21,73373-RESIDENTIAL & NURSING CARE PLACEMENTS,OP COMMISSIONING,Third Party Payments,Revenue
Walsall Council,http://opendatacommunities.org/id/metropolitan-district-council/walsall,WC74-164,30/11/2016,Adult Social Care,ALPHA HEALTH CARE LTD,01/11/2016,-449.53,73373-RESIDENTIAL & NURSING CARE PLACEMENTS,OP COMMISSIONING,Third Party Payments,Revenue
Walsall Council,http://opendatacommunities.org/id/metropolitan-district-council/walsall,WC74-165,30/11/2016,Adult Social Care,ALPHA HEALTH CARE LTD,08/11/2016,708.00,73373-RESIDENTIAL & NURSING CARE PLACEMENTS,MH COMMISSIONING,Third Party Payments,Revenue
Walsall Council,http://opendatacommunities.org/id/metropolitan-district-council/walsall,WC74-166,30/11/2016,Adult Social Care,ALPHA HEALTH CARE LTD,23/11/2016,"1,050.00",73374-SUPPORTED & OTHER ACCOMMODATION,OP COMMISSIONING,Third Party Payments,Revenue
Walsall Council,http://opendatacommunities.org/id/metropolitan-district-council/walsall,WC74-167,30/11/2016,Adult Social Care,ALPHA HEALTH CARE LTD,22/11/2016,"1,620.00",73373-RESIDENTIAL & NURSING CARE PLACEMENTS,OP COMMISSIONING,Third Party Payments,Revenue
Walsall Council,http://opendatacommunities.org/id/metropolitan-district-council/walsall,WC74-168,30/11/2016,Adult Social Care,ALPHA HEALTH CARE LTD,22/11/2016,"1,620.00",73373-RESIDENTIAL & NURSING CARE PLACEMENTS,OP COMMISSIONING,Third Party Payments,Revenue
Walsall Council,http://opendatacommunities.org/id/metropolitan-district-council/walsall,WC74-169,30/11/2016,Adult Social Care,ALPHA HEALTH CARE LTD,22/11/2016,"1,620.00",73373-RESIDENTIAL & NURSING CARE PLACEMENTS,OP COMMISSIONING,Third Party Payments,Revenue
Walsall Council,http://opendatacommunities.org/id/metropolitan-district-council/walsall,WC74-170,30/11/2016,Adult Social Care,ALPHA HEALTH CARE LTD,22/11/2016,"1,620.00",73373-RESIDENTIAL & NURSING CARE PLACEMENTS,OP COMMISSIONING,Third Party Payments,Revenue
Walsall Council,http://opendatacommunities.org/id/metropolitan-district-council/walsall,WC74-171,30/11/2016,Adult Social Care,ALPHA HEALTH CARE LTD,22/11/2016,"1,620.00",73373-RESIDENTIAL & NURSING CARE PLACEMENTS,OP COMMISSIONING,Third Party Payments,Revenue
Walsall Council,http://opendatacommunities.org/id/metropolitan-district-council/walsall,WC74-172,30/11/2016,Adult Social Care,ALPHA HEALTH CARE LTD,22/11/2016,"1,649.80",73373-RESIDENTIAL & NURSING CARE PLACEMENTS,OP COMMISSIONING,Third Party Payments,Revenue
Walsall Council,http://opendatacommunities.org/id/metropolitan-district-council/walsall,WC74-173,30/11/2016,Adult Social Care,ALPHA HEALTH CARE LTD,22/11/2016,"1,649.80",73373-RESIDENTIAL & NURSING CARE PLACEMENTS,OP COMMISSIONING,Third Party Payments,Revenue
Walsall Council,http://opendatacommunities.org/id/metropolitan-district-council/walsall,WC74-174,30/11/2016,Adult Social Care,ALPHA HEALTH CARE LTD,22/11/2016,"1,649.80",73373-RESIDENTIAL & NURSING CARE PLACEMENTS,OP COMMISSIONING,Third Party Payments,Revenue
Walsall Council,http://opendatacommunities.org/id/metropolitan-district-council/walsall,WC74-175,30/11/2016,Adult Social Care,ALPHA HEALTH CARE LTD,22/11/2016,"1,649.80",73373-RESIDENTIAL & NURSING CARE PLACEMENTS,OP COMMISSIONING,Third Party Payments,Revenue
Walsall Council,http://opendatacommunities.org/id/metropolitan-district-council/walsall,WC74-176,30/11/2016,Adult Social Care,ALPHA HEALTH CARE LTD,22/11/2016,"1,649.80",73373-RESIDENTIAL & NURSING CARE PLACEMENTS,OP COMMISSIONING,Third Party Payments,Revenue
Walsall Council,http://opendatacommunities.org/id/metropolitan-district-council/walsall,WC74-177,30/11/2016,Adult Social Care,ALPHA HEALTH CARE LTD,22/11/2016,"1,649.80",73373-RESIDENTIAL & NURSING CARE PLACEMENTS,OP COMMISSIONING,Third Party Payments,Revenue
Walsall Council,http://opendatacommunities.org/id/metropolitan-district-council/walsall,WC74-178,30/11/2016,Adult Social Care,ALPHA HEALTH CARE LTD,22/11/2016,"1,649.80",73373-RESIDENTIAL & NURSING CARE PLACEMENTS,MH COMMISSIONING,Third Party Payments,Revenue
Walsall Council,http://opendatacommunities.org/id/metropolitan-district-council/walsall,WC74-179,30/11/2016,Adult Social Care,ALPHA HEALTH CARE LTD,22/11/2016,"1,649.80",73373-RESIDENTIAL & NURSING CARE PLACEMENTS,OP COMMISSIONING,Third Party Payments,Revenue
Walsall Council,http://opendatacommunities.org/id/metropolitan-district-council/walsall,WC74-180,30/11/2016,Adult Social Care,ALPHA HEALTH CARE LTD,22/11/2016,"1,649.80",73373-RESIDENTIAL & NURSING CARE PLACEMENTS,OP COMMISSIONING,Third Party Payments,Revenue
Walsall Council,http://opendatacommunities.org/id/metropolitan-district-council/walsall,WC74-181,30/11/2016,Adult Social Care,ALPHA HEALTH CARE LTD,22/11/2016,"1,649.80",73373-RESIDENTIAL & NURSING CARE PLACEMENTS,OP COMMISSIONING,Third Party Payments,Revenue
Walsall Council,http://opendatacommunities.org/id/metropolitan-district-council/walsall,WC74-182,30/11/2016,Adult Social Care,ALPHA HEALTH CARE LTD,22/11/2016,"1,649.80",73373-RESIDENTIAL & NURSING CARE PLACEMENTS,OP COMMISSIONING,Third Party Payments,Revenue
Walsall Council,http://opendatacommunities.org/id/metropolitan-district-council/walsall,WC74-183,30/11/2016,Adult Social Care,ALPHA HEALTH CARE LTD,22/11/2016,"1,649.80",73373-RESIDENTIAL & NURSING CARE PLACEMENTS,MH COMMISSIONING,Third Party Payments,Revenue
Walsall Council,http://opendatacommunities.org/id/metropolitan-district-council/walsall,WC74-184,30/11/2016,Adult Social Care,ALPHA HEALTH CARE LTD,01/11/2016,"1,658.57",73373-RESIDENTIAL & NURSING CARE PLACEMENTS,OP COMMISSIONING,Third Party Payments,Revenue
Walsall Council,http://opendatacommunities.org/id/metropolitan-district-council/walsall,WC74-185,30/11/2016,Adult Social Care,ALPHA HEALTH CARE LTD,22/11/2016,"1,753.04",73373-RESIDENTIAL & NURSING CARE PLACEMENTS,OP COMMISSIONING,Third Party Payments,Revenue
Walsall Council,http://opendatacommunities.org/id/metropolitan-district-council/walsall,WC74-186,30/11/2016,Adult Social Care,ALPHA HEALTH CARE LTD,22/11/2016,"1,800.00",73373-RESIDENTIAL & NURSING CARE PLACEMENTS,OP COMMISSIONING,Third Party Payments,Revenue
Walsall Council,http://opendatacommunities.org/id/metropolitan-district-council/walsall,WC74-187,30/11/2016,Adult Social Care,ALPHA HEALTH CARE LTD,22/11/2016,"1,800.00",73373-RESIDENTIAL & NURSING CARE PLACEMENTS,OP COMMISSIONING,Third Party Payments,Revenue
Walsall Council,http://opendatacommunities.org/id/metropolitan-district-council/walsall,WC74-188,30/11/2016,Adult Social Care,ALPHA HEALTH CARE LTD,22/11/2016,"1,800.00",73373-RESIDENTIAL & NURSING CARE PLACEMENTS,OP COMMISSIONING,Third Party Payments,Revenue
Walsall Council,http://opendatacommunities.org/id/metropolitan-district-council/walsall,WC74-189,30/11/2016,Adult Social Care,ALPHA HEALTH CARE LTD,22/11/2016,"2,095.00",73373-RESIDENTIAL & NURSING CARE PLACEMENTS,OP COMMISSIONING,Third Party Payments,Revenue
Walsall Council,http://opendatacommunities.org/id/metropolitan-district-council/walsall,WC74-190,30/11/2016,Adult Social Care,ALPHA HEALTH CARE LTD,08/11/2016,"2,326.00",73373-RESIDENTIAL & NURSING CARE PLACEMENTS,MH COMMISSIONING,Third Party Payments,Revenue
Walsall Council,http://opendatacommunities.org/id/metropolitan-district-council/walsall,WC74-191,30/11/2016,Adult Social Care,ALPHA HEALTH CARE LTD,08/11/2016,"2,326.00",73373-RESIDENTIAL & NURSING CARE PLACEMENTS,MH COMMISSIONING,Third Party Payments,Revenue
Walsall Council,http://opendatacommunities.org/id/metropolitan-district-council/walsall,WC74-192,30/11/2016,Adult Social Care,ALPHA HEALTH CARE LTD,22/11/2016,"2,326.00",73373-RESIDENTIAL & NURSING CARE PLACEMENTS,MH COMMISSIONING,Third Party Payments,Revenue
Walsall Council,http://opendatacommunities.org/id/metropolitan-district-council/walsall,WC74-193,30/11/2016,Adult Social Care,ALPHA HEALTH CARE LTD,22/11/2016,"2,690.00",73373-RESIDENTIAL & NURSING CARE PLACEMENTS,OP COMMISSIONING,Third Party Payments,Revenue
Walsall Council,http://opendatacommunities.org/id/metropolitan-district-council/walsall,WC74-194,30/11/2016,Adult Social Care,ALPHA HEALTH CARE LTD,01/11/2016,"2,864.28",73373-RESIDENTIAL & NURSING CARE PLACEMENTS,MH COMMISSIONING,Third Party Payments,Revenue
Walsall Council,http://opendatacommunities.org/id/metropolitan-district-council/walsall,WC74-195,30/11/2016,Adult Social Care,ALPHA HEALTH CARE LTD,01/11/2016,"2,864.28",73373-RESIDENTIAL & NURSING CARE PLACEMENTS,MH COMMISSIONING,Third Party Payments,Revenue
Walsall Council,http://opendatacommunities.org/id/metropolitan-district-council/walsall,WC74-196,30/11/2016,Adult Social Care,ALPHA HEALTH CARE LTD,01/11/2016,"2,864.28",73373-RESIDENTIAL & NURSING CARE PLACEMENTS,MH COMMISSIONING,Third Party Payments,Revenue
Walsall Council,http://opendatacommunities.org/id/metropolitan-district-council/walsall,WC74-197,30/11/2016,Adult Social Care,ALPHA HEALTH CARE LTD,22/11/2016,"2,864.28",73373-RESIDENTIAL & NURSING CARE PLACEMENTS,MH COMMISSIONING,Third Party Payments,Revenue
Walsall Council,http://opendatacommunities.org/id/metropolitan-district-council/walsall,WC74-198,30/11/2016,Adult Social Care,ALPHA HEALTH CARE LTD,15/11/2016,"3,064.29",73373-RESIDENTIAL & NURSING CARE PLACEMENTS,MH COMMISSIONING,Third Party Payments,Revenue
Walsall Council,http://opendatacommunities.org/id/metropolitan-district-council/walsall,WC74-199,30/11/2016,Adult Social Care,ALPHA HEALTH CARE LTD,22/11/2016,"5,800.00",73373-RESIDENTIAL & NURSING CARE PLACEMENTS,MH COMMISSIONING,Third Party Payments,Revenue
Walsall Council,http://opendatacommunities.org/id/metropolitan-district-council/walsall,WC74-200,30/11/2016,Adult Social Care,ALPHA HEALTH CARE LTD,22/11/2016,"5,929.08",73373-RESIDENTIAL & NURSING CARE PLACEMENTS,OP COMMISSIONING,Third Party Payments,Revenue
Walsall Council,http://opendatacommunities.org/id/metropolitan-district-council/walsall,WC74-201,30/11/2016,Adult Social Care,ALPHA HEALTH CARE LTD,29/11/2016,"6,421.43",73373-RESIDENTIAL & NURSING CARE PLACEMENTS,MH COMMISSIONING,Third Party Payments,Revenue
Walsall Council,http://opendatacommunities.org/id/metropolitan-district-council/walsall,WC74-202,30/11/2016,Childrens,ALPHABIOLABS,11/11/2016,215.01,73014-LEGAL FEES-PRIV CONTRACTOR FEES,GENERAL MANAGEMENT SUPPORT (INC LEGAL),Third Party Payments,Revenue
Walsall Council,http://opendatacommunities.org/id/metropolitan-district-council/walsall,WC74-203,30/11/2016,Childrens,ALTODIGITAL NETWORKS LTD,02/11/2016,350.00,60009-LEASING/HIRE/RENTAL-EQUIPMENT,STROUD FAMILY CENTRE,Supplies & Services,Revenue
Walsall Council,http://opendatacommunities.org/id/metropolitan-district-council/walsall,WC74-204,30/11/2016,Childrens,REDACTED,21/11/2016,808.04,74006-HOLIDAY/CHRISTMAS ALLOWANCE-FOSTER CARERS-OTH AGENCY PROVISION,INTERNAL FOSTER CARE PROVISION,Third Party Payments,Revenue
Walsall Council,http://opendatacommunities.org/id/metropolitan-district-council/walsall,WC74-205,30/11/2016,Childrens,REDACTED,07/11/2016,540.20,62515-MISCELLANEOUS SUPPLIES,INTERNAL FOSTER CARE PROVISION,Supplies & Services,Revenue
Walsall Council,http://opendatacommunities.org/id/metropolitan-district-council/walsall,WC74-206,30/11/2016,Childrens,REDACTED,07/11/2016,650.92,74006-HOLIDAY/CHRISTMAS ALLOWANCE-FOSTER CARERS-OTH AGENCY PROVISION,INTERNAL FOSTER CARE PROVISION,Third Party Payments,Revenue
Walsall Council,http://opendatacommunities.org/id/metropolitan-district-council/walsall,WC74-207,30/11/2016,Childrens,REDACTED,07/11/2016,511.09,76422-DIRECT PAYMENTS TO SOCIAL SERVICES CLIENTS,FAMILY SUPPORT - DIRECT PAYMENTS,Transfer Payments,Revenue
Walsall Council,http://opendatacommunities.org/id/metropolitan-district-council/walsall,WC74-208,30/11/2016,Change and Governance,AMEY LG LIMITED,18/11/2016,290.32,60008-MAINTENANCE-FURNITURE & EQUIPMENT,AREA PARTNERSHIPS,Supplies & Services,Revenue
Walsall Council,http://opendatacommunities.org/id/metropolitan-district-council/walsall,WC74-209,30/11/2016,Economy & Environment,AMEY LG LIMITED,21/11/2016,339.97,01006-SITE WORKS MAIN CONTRACTORS,CFR 1147 SAFETY RELATED REQUESTS,Capital,Capital
Walsall Council,http://opendatacommunities.org/id/metropolitan-district-council/walsall,WC74-210,30/11/2016,Economy & Environment,AMEY LG LIMITED,01/11/2016,642.76,73002-SECURITY-PRIV CONTRACTOR FEES,TRAFFIC CONTROL,Third Party Payments,Revenue
Walsall Council,http://opendatacommunities.org/id/metropolitan-district-council/walsall,WC74-211,30/11/2016,Economy & Environment,AMEY LG LIMITED,02/11/2016,882.32,01009-SITE WORKS - OTHER CONTRACTORS,CFR 1147 BROADWAY NORTH (ARBORETUM RD-LINCOLN ROAD),Capital,Capital
Walsall Council,http://opendatacommunities.org/id/metropolitan-district-council/walsall,WC74-212,30/11/2016,Economy & Environment,AMEY LG LIMITED,23/11/2016,"2,246.82",60500-GENERAL MATERIALS,GREEN SPACE MANAGEMENT,Supplies & Services,Revenue
Walsall Council,http://opendatacommunities.org/id/metropolitan-district-council/walsall,WC74-213,30/11/2016,Economy & Environment,AMEY LG LIMITED,02/11/2016,"5,435.62",73025-PROFESSIONAL SERVICES-PRIV CONTRACTOR & OTHER AGENCIES,TRAFFIC MANAGEMENT,Third Party Payments,Revenue
Walsall Council,http://opendatacommunities.org/id/metropolitan-district-council/walsall,WC74-214,30/11/2016,Childrens,AMG NURSING CARE SERVICES,04/11/2016,"1,011.04",63000-PROFESSIONAL FEES AND SERVICES,DIRECTLY COMMISSIONED NURSING SERVICES,Supplies & Services,Revenue
Walsall Council,http://opendatacommunities.org/id/metropolitan-district-council/walsall,WC74-215,30/11/2016,Childrens,AMG NURSING CARE SERVICES,03/11/2016,"1,181.75",63000-PROFESSIONAL FEES AND SERVICES,DIRECTLY COMMISSIONED NURSING SERVICES,Supplies & Services,Revenue
Walsall Council,http://opendatacommunities.org/id/metropolitan-district-council/walsall,WC74-216,30/11/2016,Childrens,AMG NURSING CARE SERVICES,03/11/2016,"1,491.16",63000-PROFESSIONAL FEES AND SERVICES,DIRECTLY COMMISSIONED NURSING SERVICES,Supplies & Services,Revenue
Walsall Council,http://opendatacommunities.org/id/metropolitan-district-council/walsall,WC74-217,30/11/2016,Childrens,AMG NURSING CARE SERVICES,03/11/2016,"2,030.00",63000-PROFESSIONAL FEES AND SERVICES,DIRECTLY COMMISSIONED NURSING SERVICES,Supplies & Services,Revenue
Walsall Council,http://opendatacommunities.org/id/metropolitan-district-council/walsall,WC74-218,30/11/2016,Childrens,AMG NURSING CARE SERVICES,03/11/2016,"2,088.34",63000-PROFESSIONAL FEES AND SERVICES,DIRECTLY COMMISSIONED NURSING SERVICES,Supplies & Services,Revenue
Walsall Council,http://opendatacommunities.org/id/metropolitan-district-council/walsall,WC74-219,30/11/2016,Childrens,AMG NURSING CARE SERVICES,01/11/2016,"2,274.48",63000-PROFESSIONAL FEES AND SERVICES,DIRECTLY COMMISSIONED NURSING SERVICES,Supplies & Services,Revenue
Walsall Council,http://opendatacommunities.org/id/metropolitan-district-council/walsall,WC74-220,30/11/2016,Adult Social Care,REDACTED,07/11/2016,"1,133.44",76422-DIRECT PAYMENTS TO SOCIAL SERVICES CLIENTS,OP COMMISSIONING,Transfer Payments,Revenue
Walsall Council,http://opendatacommunities.org/id/metropolitan-district-council/walsall,WC74-221,30/11/2016,Childrens,REDACTED,21/11/2016,"1,140.21",74006-HOLIDAY/CHRISTMAS ALLOWANCE-FOSTER CARERS-OTH AGENCY PROVISION,INTERNAL FOSTER CARE PROVISION,Third Party Payments,Revenue
Walsall Council,http://opendatacommunities.org/id/metropolitan-district-council/walsall,WC74-222,30/11/2016,Childrens,REDACTED,21/11/2016,425.08,74006-HOLIDAY/CHRISTMAS ALLOWANCE-FOSTER CARERS-OTH AGENCY PROVISION,INTERNAL FOSTER CARE PROVISION,Third Party Payments,Revenue
Walsall Council,http://opendatacommunities.org/id/metropolitan-district-council/walsall,WC74-223,30/11/2016,Adult Social Care,REDACTED,07/11/2016,576.00,76422-DIRECT PAYMENTS TO SOCIAL SERVICES CLIENTS,OP COMMISSIONING,Transfer Payments,Revenue
Walsall Council,http://opendatacommunities.org/id/metropolitan-district-council/walsall,WC74-224,30/11/2016,Adult Social Care,REDACTED,07/11/2016,756.00,76422-DIRECT PAYMENTS TO SOCIAL SERVICES CLIENTS,OP COMMISSIONING,Transfer Payments,Revenue
Walsall Council,http://opendatacommunities.org/id/metropolitan-district-council/walsall,WC74-225,30/11/2016,Adult Social Care,ANCHOR,01/11/2016,647.38,73373-RESIDENTIAL & NURSING CARE PLACEMENTS,OP COMMISSIONING,Third Party Payments,Revenue
Walsall Council,http://opendatacommunities.org/id/metropolitan-district-council/walsall,WC74-226,30/11/2016,Adult Social Care,ANCHOR,01/11/2016,647.38,73373-RESIDENTIAL & NURSING CARE PLACEMENTS,OP COMMISSIONING,Third Party Payments,Revenue
Walsall Council,http://opendatacommunities.org/id/metropolitan-district-council/walsall,WC74-227,30/11/2016,Adult Social Care,ANCHOR,01/11/2016,950.22,73373-RESIDENTIAL & NURSING CARE PLACEMENTS,OP COMMISSIONING,Third Party Payments,Revenue
Walsall Council,http://opendatacommunities.org/id/metropolitan-district-council/walsall,WC74-228,30/11/2016,Adult Social Care,ANCHOR,01/11/2016,"1,008.07",73373-RESIDENTIAL & NURSING CARE PLACEMENTS,OP COMMISSIONING,Third Party Payments,Revenue
Walsall Council,http://opendatacommunities.org/id/metropolitan-district-council/walsall,WC74-229,30/11/2016,Adult Social Care,ANCHOR,22/11/2016,"1,140.28",73373-RESIDENTIAL & NURSING CARE PLACEMENTS,OP COMMISSIONING,Third Party Payments,Revenue
Walsall Council,http://opendatacommunities.org/id/metropolitan-district-council/walsall,WC74-230,30/11/2016,Adult Social Care,ANCHOR,01/11/2016,"1,180.76",73373-RESIDENTIAL & NURSING CARE PLACEMENTS,OP COMMISSIONING,Third Party Payments,Revenue
Walsall Council,http://opendatacommunities.org/id/metropolitan-district-council/walsall,WC74-231,30/11/2016,Adult Social Care,ANCHOR,01/11/2016,"1,180.78",73373-RESIDENTIAL & NURSING CARE PLACEMENTS,OP COMMISSIONING,Third Party Payments,Revenue
Walsall Council,http://opendatacommunities.org/id/metropolitan-district-council/walsall,WC74-232,30/11/2016,Adult Social Care,ANCHOR,01/11/2016,"1,181.59",73373-RESIDENTIAL & NURSING CARE PLACEMENTS,OP COMMISSIONING,Third Party Payments,Revenue
Walsall Council,http://opendatacommunities.org/id/metropolitan-district-council/walsall,WC74-233,30/11/2016,Adult Social Care,ANCHOR,01/11/2016,"1,181.59",73373-RESIDENTIAL & NURSING CARE PLACEMENTS,OP COMMISSIONING,Third Party Payments,Revenue
Walsall Council,http://opendatacommunities.org/id/metropolitan-district-council/walsall,WC74-234,30/11/2016,Adult Social Care,ANCHOR,01/11/2016,"1,181.59",73373-RESIDENTIAL & NURSING CARE PLACEMENTS,OP COMMISSIONING,Third Party Payments,Revenue
Walsall Council,http://opendatacommunities.org/id/metropolitan-district-council/walsall,WC74-235,30/11/2016,Adult Social Care,ANCHOR,01/11/2016,"1,181.59",73373-RESIDENTIAL & NURSING CARE PLACEMENTS,OP COMMISSIONING,Third Party Payments,Revenue
Walsall Council,http://opendatacommunities.org/id/metropolitan-district-council/walsall,WC74-236,30/11/2016,Adult Social Care,ANCHOR,01/11/2016,"1,181.59",73373-RESIDENTIAL & NURSING CARE PLACEMENTS,OP COMMISSIONING,Third Party Payments,Revenue
Walsall Council,http://opendatacommunities.org/id/metropolitan-district-council/walsall,WC74-237,30/11/2016,Adult Social Care,ANCHOR,01/11/2016,"1,181.59",73373-RESIDENTIAL & NURSING CARE PLACEMENTS,OP COMMISSIONING,Third Party Payments,Revenue
Walsall Council,http://opendatacommunities.org/id/metropolitan-district-council/walsall,WC74-238,30/11/2016,Adult Social Care,ANCHOR,01/11/2016,"1,181.59",73373-RESIDENTIAL & NURSING CARE PLACEMENTS,OP COMMISSIONING,Third Party Payments,Revenue
Walsall Council,http://opendatacommunities.org/id/metropolitan-district-council/walsall,WC74-239,30/11/2016,Adult Social Care,ANCHOR,01/11/2016,"1,181.59",73373-RESIDENTIAL & NURSING CARE PLACEMENTS,OP COMMISSIONING,Third Party Payments,Revenue
Walsall Council,http://opendatacommunities.org/id/metropolitan-district-council/walsall,WC74-240,30/11/2016,Adult Social Care,ANCHOR,01/11/2016,"1,181.62",73373-RESIDENTIAL & NURSING CARE PLACEMENTS,OP COMMISSIONING,Third Party Payments,Revenue
Walsall Council,http://opendatacommunities.org/id/metropolitan-district-council/walsall,WC74-241,30/11/2016,Adult Social Care,ANCHOR,22/11/2016,"1,285.71",73373-RESIDENTIAL & NURSING CARE PLACEMENTS,OP COMMISSIONING,Third Party Payments,Revenue
Walsall Council,http://opendatacommunities.org/id/metropolitan-district-council/walsall,WC74-242,30/11/2016,Adult Social Care,ANCHOR,01/11/2016,"1,620.00",73373-RESIDENTIAL & NURSING CARE PLACEMENTS,OP COMMISSIONING,Third Party Payments,Revenue
Walsall Council,http://opendatacommunities.org/id/metropolitan-district-council/walsall,WC74-243,30/11/2016,Adult Social Care,ANCHOR,01/11/2016,"1,620.00",73373-RESIDENTIAL & NURSING CARE PLACEMENTS,OP COMMISSIONING,Third Party Payments,Revenue
Walsall Council,http://opendatacommunities.org/id/metropolitan-district-council/walsall,WC74-244,30/11/2016,Adult Social Care,ANCHOR,22/11/2016,"1,620.00",73373-RESIDENTIAL & NURSING CARE PLACEMENTS,OP COMMISSIONING,Third Party Payments,Revenue
Walsall Council,http://opendatacommunities.org/id/metropolitan-district-council/walsall,WC74-245,30/11/2016,Adult Social Care,ANCHOR,22/11/2016,"1,620.00",73373-RESIDENTIAL & NURSING CARE PLACEMENTS,OP COMMISSIONING,Third Party Payments,Revenue
Walsall Council,http://opendatacommunities.org/id/metropolitan-district-council/walsall,WC74-246,30/11/2016,Adult Social Care,ANCHOR,22/11/2016,"1,620.00",73373-RESIDENTIAL & NURSING CARE PLACEMENTS,OP COMMISSIONING,Third Party Payments,Revenue
Walsall Council,http://opendatacommunities.org/id/metropolitan-district-council/walsall,WC74-247,30/11/2016,Adult Social Care,ANCHOR,22/11/2016,"1,671.43",73373-RESIDENTIAL & NURSING CARE PLACEMENTS,MH COMMISSIONING,Third Party Payments,Revenue
Walsall Council,http://opendatacommunities.org/id/metropolitan-district-council/walsall,WC74-248,30/11/2016,Adult Social Care,ANCHOR,01/11/2016,"1,800.00",73373-RESIDENTIAL & NURSING CARE PLACEMENTS,OP COMMISSIONING,Third Party Payments,Revenue
Walsall Council,http://opendatacommunities.org/id/metropolitan-district-council/walsall,WC74-249,30/11/2016,Adult Social Care,ANCHOR,01/11/2016,"1,800.00",73373-RESIDENTIAL & NURSING CARE PLACEMENTS,OP COMMISSIONING,Third Party Payments,Revenue
Walsall Council,http://opendatacommunities.org/id/metropolitan-district-council/walsall,WC74-250,30/11/2016,Adult Social Care,ANCHOR,01/11/2016,"1,800.00",73373-RESIDENTIAL & NURSING CARE PLACEMENTS,OP COMMISSIONING,Third Party Payments,Revenue
Walsall Council,http://opendatacommunities.org/id/metropolitan-district-council/walsall,WC74-251,30/11/2016,Adult Social Care,ANCHOR,01/11/2016,"1,800.00",73373-RESIDENTIAL & NURSING CARE PLACEMENTS,OP COMMISSIONING,Third Party Payments,Revenue
Walsall Council,http://opendatacommunities.org/id/metropolitan-district-council/walsall,WC74-252,30/11/2016,Adult Social Care,ANCHOR,01/11/2016,"1,800.00",73373-RESIDENTIAL & NURSING CARE PLACEMENTS,OP COMMISSIONING,Third Party Payments,Revenue
Walsall Council,http://opendatacommunities.org/id/metropolitan-district-council/walsall,WC74-253,30/11/2016,Adult Social Care,ANCHOR,01/11/2016,"1,800.00",73373-RESIDENTIAL & NURSING CARE PLACEMENTS,OP COMMISSIONING,Third Party Payments,Revenue
Walsall Council,http://opendatacommunities.org/id/metropolitan-district-council/walsall,WC74-254,30/11/2016,Adult Social Care,ANCHOR,01/11/2016,"1,800.00",73373-RESIDENTIAL & NURSING CARE PLACEMENTS,OP COMMISSIONING,Third Party Payments,Revenue
Walsall Council,http://opendatacommunities.org/id/metropolitan-district-council/walsall,WC74-255,30/11/2016,Adult Social Care,ANCHOR,01/11/2016,"1,800.00",73373-RESIDENTIAL & NURSING CARE PLACEMENTS,OP COMMISSIONING,Third Party Payments,Revenue
Walsall Council,http://opendatacommunities.org/id/metropolitan-district-council/walsall,WC74-256,30/11/2016,Adult Social Care,ANCHOR,01/11/2016,"1,800.00",73373-RESIDENTIAL & NURSING CARE PLACEMENTS,OP COMMISSIONING,Third Party Payments,Revenue
Walsall Council,http://opendatacommunities.org/id/metropolitan-district-council/walsall,WC74-257,30/11/2016,Adult Social Care,ANCHOR,01/11/2016,"1,800.00",73373-RESIDENTIAL & NURSING CARE PLACEMENTS,OP COMMISSIONING,Third Party Payments,Revenue
Walsall Council,http://opendatacommunities.org/id/metropolitan-district-council/walsall,WC74-258,30/11/2016,Adult Social Care,ANCHOR,01/11/2016,"1,800.00",73373-RESIDENTIAL & NURSING CARE PLACEMENTS,OP COMMISSIONING,Third Party Payments,Revenue
Walsall Council,http://opendatacommunities.org/id/metropolitan-district-council/walsall,WC74-259,30/11/2016,Adult Social Care,ANCHOR,01/11/2016,"1,800.00",73373-RESIDENTIAL & NURSING CARE PLACEMENTS,OP COMMISSIONING,Third Party Payments,Revenue
Walsall Council,http://opendatacommunities.org/id/metropolitan-district-council/walsall,WC74-260,30/11/2016,Adult Social Care,ANCHOR,01/11/2016,"1,800.00",73373-RESIDENTIAL & NURSING CARE PLACEMENTS,OP COMMISSIONING,Third Party Payments,Revenue
Walsall Council,http://opendatacommunities.org/id/metropolitan-district-council/walsall,WC74-261,30/11/2016,Adult Social Care,ANCHOR,01/11/2016,"1,800.00",73373-RESIDENTIAL & NURSING CARE PLACEMENTS,OP COMMISSIONING,Third Party Payments,Revenue
Walsall Council,http://opendatacommunities.org/id/metropolitan-district-council/walsall,WC74-262,30/11/2016,Adult Social Care,ANCHOR,01/11/2016,"1,800.00",73373-RESIDENTIAL & NURSING CARE PLACEMENTS,OP COMMISSIONING,Third Party Payments,Revenue
Walsall Council,http://opendatacommunities.org/id/metropolitan-district-council/walsall,WC74-263,30/11/2016,Adult Social Care,ANCHOR,01/11/2016,"1,800.00",73373-RESIDENTIAL & NURSING CARE PLACEMENTS,MH COMMISSIONING,Third Party Payments,Revenue
Walsall Council,http://opendatacommunities.org/id/metropolitan-district-council/walsall,WC74-264,30/11/2016,Adult Social Care,ANCHOR,01/11/2016,"1,800.00",73373-RESIDENTIAL & NURSING CARE PLACEMENTS,OP COMMISSIONING,Third Party Payments,Revenue
Walsall Council,http://opendatacommunities.org/id/metropolitan-district-council/walsall,WC74-265,30/11/2016,Adult Social Care,ANCHOR,01/11/2016,"1,800.00",73373-RESIDENTIAL & NURSING CARE PLACEMENTS,OP COMMISSIONING,Third Party Payments,Revenue
Walsall Council,http://opendatacommunities.org/id/metropolitan-district-council/walsall,WC74-266,30/11/2016,Adult Social Care,ANCHOR,01/11/2016,"1,800.00",73373-RESIDENTIAL & NURSING CARE PLACEMENTS,OP COMMISSIONING,Third Party Payments,Revenue
Walsall Council,http://opendatacommunities.org/id/metropolitan-district-council/walsall,WC74-267,30/11/2016,Adult Social Care,ANCHOR,01/11/2016,"1,800.00",73373-RESIDENTIAL & NURSING CARE PLACEMENTS,OP COMMISSIONING,Third Party Payments,Revenue
Walsall Council,http://opendatacommunities.org/id/metropolitan-district-council/walsall,WC74-268,30/11/2016,Adult Social Care,ANCHOR,01/11/2016,"1,800.00",73373-RESIDENTIAL & NURSING CARE PLACEMENTS,OP COMMISSIONING,Third Party Payments,Revenue
Walsall Council,http://opendatacommunities.org/id/metropolitan-district-council/walsall,WC74-269,30/11/2016,Adult Social Care,ANCHOR,01/11/2016,"1,800.00",73373-RESIDENTIAL & NURSING CARE PLACEMENTS,OP COMMISSIONING,Third Party Payments,Revenue
Walsall Council,http://opendatacommunities.org/id/metropolitan-district-council/walsall,WC74-270,30/11/2016,Adult Social Care,ANCHOR,01/11/2016,"1,800.00",73373-RESIDENTIAL & NURSING CARE PLACEMENTS,OP COMMISSIONING,Third Party Payments,Revenue
Walsall Council,http://opendatacommunities.org/id/metropolitan-district-council/walsall,WC74-271,30/11/2016,Adult Social Care,ANCHOR,01/11/2016,"1,800.00",73373-RESIDENTIAL & NURSING CARE PLACEMENTS,OP COMMISSIONING,Third Party Payments,Revenue
Walsall Council,http://opendatacommunities.org/id/metropolitan-district-council/walsall,WC74-272,30/11/2016,Adult Social Care,ANCHOR,01/11/2016,"1,800.00",73373-RESIDENTIAL & NURSING CARE PLACEMENTS,OP COMMISSIONING,Third Party Payments,Revenue
Walsall Council,http://opendatacommunities.org/id/metropolitan-district-council/walsall,WC74-273,30/11/2016,Adult Social Care,ANCHOR,01/11/2016,"1,800.00",73373-RESIDENTIAL & NURSING CARE PLACEMENTS,OP COMMISSIONING,Third Party Payments,Revenue
Walsall Council,http://opendatacommunities.org/id/metropolitan-district-council/walsall,WC74-274,30/11/2016,Adult Social Care,ANCHOR,01/11/2016,"1,800.00",73373-RESIDENTIAL & NURSING CARE PLACEMENTS,OP COMMISSIONING,Third Party Payments,Revenue
Walsall Council,http://opendatacommunities.org/id/metropolitan-district-council/walsall,WC74-275,30/11/2016,Adult Social Care,ANCHOR,01/11/2016,"1,800.00",73373-RESIDENTIAL & NURSING CARE PLACEMENTS,OP COMMISSIONING,Third Party Payments,Revenue
Walsall Council,http://opendatacommunities.org/id/metropolitan-district-council/walsall,WC74-276,30/11/2016,Adult Social Care,ANCHOR,01/11/2016,"1,800.00",73373-RESIDENTIAL & NURSING CARE PLACEMENTS,OP COMMISSIONING,Third Party Payments,Revenue
Walsall Council,http://opendatacommunities.org/id/metropolitan-district-council/walsall,WC74-277,30/11/2016,Adult Social Care,ANCHOR,01/11/2016,"1,800.00",73373-RESIDENTIAL & NURSING CARE PLACEMENTS,OP COMMISSIONING,Third Party Payments,Revenue
Walsall Council,http://opendatacommunities.org/id/metropolitan-district-council/walsall,WC74-278,30/11/2016,Adult Social Care,ANCHOR,22/11/2016,"1,800.00",73373-RESIDENTIAL & NURSING CARE PLACEMENTS,OP COMMISSIONING,Third Party Payments,Revenue
Walsall Council,http://opendatacommunities.org/id/metropolitan-district-council/walsall,WC74-279,30/11/2016,Adult Social Care,ANCHOR,22/11/2016,"1,800.00",73373-RESIDENTIAL & NURSING CARE PLACEMENTS,OP COMMISSIONING,Third Party Payments,Revenue
Walsall Council,http://opendatacommunities.org/id/metropolitan-district-council/walsall,WC74-280,30/11/2016,Adult Social Care,ANCHOR,22/11/2016,"1,800.00",73373-RESIDENTIAL & NURSING CARE PLACEMENTS,OP COMMISSIONING,Third Party Payments,Revenue
Walsall Council,http://opendatacommunities.org/id/metropolitan-district-council/walsall,WC74-281,30/11/2016,Adult Social Care,ANCHOR,22/11/2016,"1,800.00",73373-RESIDENTIAL & NURSING CARE PLACEMENTS,MH COMMISSIONING,Third Party Payments,Revenue
Walsall Council,http://opendatacommunities.org/id/metropolitan-district-council/walsall,WC74-282,30/11/2016,Adult Social Care,ANCHOR,22/11/2016,"1,800.00",73373-RESIDENTIAL & NURSING CARE PLACEMENTS,OP COMMISSIONING,Third Party Payments,Revenue
Walsall Council,http://opendatacommunities.org/id/metropolitan-district-council/walsall,WC74-283,30/11/2016,Adult Social Care,ANCHOR,22/11/2016,"1,800.00",73373-RESIDENTIAL & NURSING CARE PLACEMENTS,OP COMMISSIONING,Third Party Payments,Revenue
Walsall Council,http://opendatacommunities.org/id/metropolitan-district-council/walsall,WC74-284,30/11/2016,Adult Social Care,ANCHOR,22/11/2016,"1,800.00",73373-RESIDENTIAL & NURSING CARE PLACEMENTS,OP COMMISSIONING,Third Party Payments,Revenue
Walsall Council,http://opendatacommunities.org/id/metropolitan-district-council/walsall,WC74-285,30/11/2016,Adult Social Care,ANCHOR,22/11/2016,"1,800.00",73373-RESIDENTIAL & NURSING CARE PLACEMENTS,OP COMMISSIONING,Third Party Payments,Revenue
Walsall Council,http://opendatacommunities.org/id/metropolitan-district-council/walsall,WC74-286,30/11/2016,Adult Social Care,ANCHOR,22/11/2016,"1,800.00",73373-RESIDENTIAL & NURSING CARE PLACEMENTS,OP COMMISSIONING,Third Party Payments,Revenue
Walsall Council,http://opendatacommunities.org/id/metropolitan-district-council/walsall,WC74-287,30/11/2016,Adult Social Care,ANCHOR,22/11/2016,"1,800.00",73373-RESIDENTIAL & NURSING CARE PLACEMENTS,OP COMMISSIONING,Third Party Payments,Revenue
Walsall Council,http://opendatacommunities.org/id/metropolitan-district-council/walsall,WC74-288,30/11/2016,Adult Social Care,ANCHOR,22/11/2016,"1,800.00",73373-RESIDENTIAL & NURSING CARE PLACEMENTS,OP COMMISSIONING,Third Party Payments,Revenue
Walsall Council,http://opendatacommunities.org/id/metropolitan-district-council/walsall,WC74-289,30/11/2016,Adult Social Care,ANCHOR,22/11/2016,"1,800.00",73373-RESIDENTIAL & NURSING CARE PLACEMENTS,OP COMMISSIONING,Third Party Payments,Revenue
Walsall Council,http://opendatacommunities.org/id/metropolitan-district-council/walsall,WC74-290,30/11/2016,Adult Social Care,ANCHOR,22/11/2016,"1,800.00",73373-RESIDENTIAL & NURSING CARE PLACEMENTS,OP COMMISSIONING,Third Party Payments,Revenue
Walsall Council,http://opendatacommunities.org/id/metropolitan-district-council/walsall,WC74-291,30/11/2016,Adult Social Care,ANCHOR,22/11/2016,"1,800.00",73373-RESIDENTIAL & NURSING CARE PLACEMENTS,OP COMMISSIONING,Third Party Payments,Revenue
Walsall Council,http://opendatacommunities.org/id/metropolitan-district-council/walsall,WC74-292,30/11/2016,Adult Social Care,ANCHOR,22/11/2016,"1,800.00",73373-RESIDENTIAL & NURSING CARE PLACEMENTS,OP COMMISSIONING,Third Party Payments,Revenue
Walsall Council,http://opendatacommunities.org/id/metropolitan-district-council/walsall,WC74-293,30/11/2016,Adult Social Care,ANCHOR,01/11/2016,"2,708.91",73373-RESIDENTIAL & NURSING CARE PLACEMENTS,OP COMMISSIONING,Third Party Payments,Revenue
Walsall Council,http://opendatacommunities.org/id/metropolitan-district-council/walsall,WC74-294,30/11/2016,Adult Social Care,ANCHOR,01/11/2016,"2,750.22",73373-RESIDENTIAL & NURSING CARE PLACEMENTS,OP COMMISSIONING,Third Party Payments,Revenue
Walsall Council,http://opendatacommunities.org/id/metropolitan-district-council/walsall,WC74-295,30/11/2016,Childrens,REDACTED,07/11/2016,650.92,74006-HOLIDAY/CHRISTMAS ALLOWANCE-FOSTER CARERS-OTH AGENCY PROVISION,INTERNAL FOSTER CARE PROVISION,Third Party Payments,Revenue
Walsall Council,http://opendatacommunities.org/id/metropolitan-district-council/walsall,WC74-296,30/11/2016,Childrens,REDACTED,07/11/2016,"1,113.40",62515-MISCELLANEOUS SUPPLIES,INTERNAL FOSTER CARE PROVISION,Supplies & Services,Revenue
Walsall Council,http://opendatacommunities.org/id/metropolitan-district-council/walsall,WC74-297,30/11/2016,Adult Social Care,REDACTED,07/11/2016,378.00,76422-DIRECT PAYMENTS TO SOCIAL SERVICES CLIENTS,PD COMMISSIONING,Transfer Payments,Revenue
Walsall Council,http://opendatacommunities.org/id/metropolitan-district-council/walsall,WC74-298,30/11/2016,Adult Social Care,ANGEL COURT RESIDENTIAL CARE HOME,22/11/2016,"1,821.43",73373-RESIDENTIAL & NURSING CARE PLACEMENTS,OP COMMISSIONING,Third Party Payments,Revenue
Walsall Council,http://opendatacommunities.org/id/metropolitan-district-council/walsall,WC74-299,30/11/2016,Adult Social Care,ANGEL COURT RESIDENTIAL CARE HOME,01/11/2016,"1,882.15",73373-RESIDENTIAL & NURSING CARE PLACEMENTS,OP COMMISSIONING,Third Party Payments,Revenue
Walsall Council,http://opendatacommunities.org/id/metropolitan-district-council/walsall,WC74-300,30/11/2016,Adult Social Care,ANGEL COURT RESIDENTIAL CARE HOME,22/11/2016,"1,928.57",73373-RESIDENTIAL & NURSING CARE PLACEMENTS,OP COMMISSIONING,Third Party Payments,Revenue
Walsall Council,http://opendatacommunities.org/id/metropolitan-district-council/walsall,WC74-301,30/11/2016,Adult Social Care,ANGEL COURT RESIDENTIAL CARE HOME,22/11/2016,"2,006.95",73373-RESIDENTIAL & NURSING CARE PLACEMENTS,OP COMMISSIONING,Third Party Payments,Revenue
Walsall Council,http://opendatacommunities.org/id/metropolitan-district-council/walsall,WC74-302,30/11/2016,Adult Social Care,ANGEL COURT RESIDENTIAL CARE HOME,01/11/2016,"2,073.85",73373-RESIDENTIAL & NURSING CARE PLACEMENTS,OP COMMISSIONING,Third Party Payments,Revenue
Walsall Council,http://opendatacommunities.org/id/metropolitan-district-council/walsall,WC74-303,30/11/2016,Adult Social Care,ANGEL COURT RESIDENTIAL CARE HOME,22/11/2016,"2,080.71",73373-RESIDENTIAL & NURSING CARE PLACEMENTS,OP COMMISSIONING,Third Party Payments,Revenue
Walsall Council,http://opendatacommunities.org/id/metropolitan-district-council/walsall,WC74-304,30/11/2016,Childrens,REDACTED,21/11/2016,"1,919.76",74006-HOLIDAY/CHRISTMAS ALLOWANCE-FOSTER CARERS-OTH AGENCY PROVISION,INTERNAL FOSTER CARE PROVISION,Third Party Payments,Revenue
Walsall Council,http://opendatacommunities.org/id/metropolitan-district-council/walsall,WC74-305,30/11/2016,Childrens,REDACTED,21/11/2016,298.07,74006-HOLIDAY/CHRISTMAS ALLOWANCE-FOSTER CARERS-OTH AGENCY PROVISION,INTERNAL FOSTER CARE PROVISION,Third Party Payments,Revenue
Walsall Council,http://opendatacommunities.org/id/metropolitan-district-council/walsall,WC74-306,30/11/2016,Change and Governance,ANGLIA STAIRLIFTS LTD,04/11/2016,"5,095.00",01045-PRIVATE GRANTS,CFR 826 DISABLED FACILITIES GRANTS (SOCIAL SERVICES),Capital,Capital
Walsall Council,http://opendatacommunities.org/id/metropolitan-district-council/walsall,WC74-307,30/11/2016,Adult Social Care,REDACTED,07/11/2016,344.00,76422-DIRECT PAYMENTS TO SOCIAL SERVICES CLIENTS,LD COMMISSIONING,Transfer Payments,Revenue
Walsall Council,http://opendatacommunities.org/id/metropolitan-district-council/walsall,WC74-308,30/11/2016,Childrens,REDACTED,07/11/2016,925.00,62515-MISCELLANEOUS SUPPLIES,INTERNAL FOSTER CARE PROVISION,Supplies & Services,Revenue
Walsall Council,http://opendatacommunities.org/id/metropolitan-district-council/walsall,WC74-309,30/11/2016,Adult Social Care,ANSON COURT RESIDENTIAL HOME,08/11/2016,"1,735.71",73373-RESIDENTIAL & NURSING CARE PLACEMENTS,OP COMMISSIONING,Third Party Payments,Revenue
Walsall Council,http://opendatacommunities.org/id/metropolitan-district-council/walsall,WC74-310,30/11/2016,Adult Social Care,ANSON COURT RESIDENTIAL HOME,22/11/2016,"1,800.00",73373-RESIDENTIAL & NURSING CARE PLACEMENTS,OP COMMISSIONING,Third Party Payments,Revenue
Walsall Council,http://opendatacommunities.org/id/metropolitan-district-council/walsall,WC74-311,30/11/2016,Adult Social Care,ANSON COURT RESIDENTIAL HOME,22/11/2016,"1,800.00",73373-RESIDENTIAL & NURSING CARE PLACEMENTS,OP COMMISSIONING,Third Party Payments,Revenue
Walsall Council,http://opendatacommunities.org/id/metropolitan-district-council/walsall,WC74-312,30/11/2016,Adult Social Care,ANSON COURT RESIDENTIAL HOME,22/11/2016,"1,800.00",73373-RESIDENTIAL & NURSING CARE PLACEMENTS,MH COMMISSIONING,Third Party Payments,Revenue
Walsall Council,http://opendatacommunities.org/id/metropolitan-district-council/walsall,WC74-313,30/11/2016,Adult Social Care,ANSON COURT RESIDENTIAL HOME,22/11/2016,"1,800.00",73373-RESIDENTIAL & NURSING CARE PLACEMENTS,OP COMMISSIONING,Third Party Payments,Revenue
Walsall Council,http://opendatacommunities.org/id/metropolitan-district-council/walsall,WC74-314,30/11/2016,Adult Social Care,ANSON COURT RESIDENTIAL HOME,22/11/2016,"1,800.00",73373-RESIDENTIAL & NURSING CARE PLACEMENTS,OP COMMISSIONING,Third Party Payments,Revenue
Walsall Council,http://opendatacommunities.org/id/metropolitan-district-council/walsall,WC74-315,30/11/2016,Adult Social Care,ANSON COURT RESIDENTIAL HOME,22/11/2016,"1,800.00",73373-RESIDENTIAL & NURSING CARE PLACEMENTS,OP COMMISSIONING,Third Party Payments,Revenue
Walsall Council,http://opendatacommunities.org/id/metropolitan-district-council/walsall,WC74-316,30/11/2016,Adult Social Care,ANSON COURT RESIDENTIAL HOME,22/11/2016,"1,800.00",73373-RESIDENTIAL & NURSING CARE PLACEMENTS,MH COMMISSIONING,Third Party Payments,Revenue
Walsall Council,http://opendatacommunities.org/id/metropolitan-district-council/walsall,WC74-317,30/11/2016,Adult Social Care,ANSON COURT RESIDENTIAL HOME,22/11/2016,"1,800.00",73373-RESIDENTIAL & NURSING CARE PLACEMENTS,OP COMMISSIONING,Third Party Payments,Revenue
Walsall Council,http://opendatacommunities.org/id/metropolitan-district-council/walsall,WC74-318,30/11/2016,Adult Social Care,ANSON COURT RESIDENTIAL HOME,22/11/2016,"1,800.00",73373-RESIDENTIAL & NURSING CARE PLACEMENTS,MH COMMISSIONING,Third Party Payments,Revenue
Walsall Council,http://opendatacommunities.org/id/metropolitan-district-council/walsall,WC74-319,30/11/2016,Adult Social Care,ANSON COURT RESIDENTIAL HOME,22/11/2016,"1,800.00",73373-RESIDENTIAL & NURSING CARE PLACEMENTS,OP COMMISSIONING,Third Party Payments,Revenue
Walsall Council,http://opendatacommunities.org/id/metropolitan-district-council/walsall,WC74-320,30/11/2016,Adult Social Care,ANSON COURT RESIDENTIAL HOME,22/11/2016,"1,800.00",73373-RESIDENTIAL & NURSING CARE PLACEMENTS,MH COMMISSIONING,Third Party Payments,Revenue
Walsall Council,http://opendatacommunities.org/id/metropolitan-district-council/walsall,WC74-321,30/11/2016,Adult Social Care,ANSON COURT RESIDENTIAL HOME,22/11/2016,"1,800.00",73373-RESIDENTIAL & NURSING CARE PLACEMENTS,OP COMMISSIONING,Third Party Payments,Revenue
Walsall Council,http://opendatacommunities.org/id/metropolitan-district-council/walsall,WC74-322,30/11/2016,Adult Social Care,ANSON COURT RESIDENTIAL HOME,22/11/2016,"1,800.00",73373-RESIDENTIAL & NURSING CARE PLACEMENTS,OP COMMISSIONING,Third Party Payments,Revenue
Walsall Council,http://opendatacommunities.org/id/metropolitan-district-council/walsall,WC74-323,30/11/2016,Adult Social Care,ANSON COURT RESIDENTIAL HOME,22/11/2016,"1,800.00",73373-RESIDENTIAL & NURSING CARE PLACEMENTS,OP COMMISSIONING,Third Party Payments,Revenue
Walsall Council,http://opendatacommunities.org/id/metropolitan-district-council/walsall,WC74-324,30/11/2016,Adult Social Care,ANSON COURT RESIDENTIAL HOME,22/11/2016,"1,800.00",73373-RESIDENTIAL & NURSING CARE PLACEMENTS,OP COMMISSIONING,Third Party Payments,Revenue
Walsall Council,http://opendatacommunities.org/id/metropolitan-district-council/walsall,WC74-325,30/11/2016,Adult Social Care,ANSON COURT RESIDENTIAL HOME,22/11/2016,"1,800.00",73373-RESIDENTIAL & NURSING CARE PLACEMENTS,OP COMMISSIONING,Third Party Payments,Revenue
Walsall Council,http://opendatacommunities.org/id/metropolitan-district-council/walsall,WC74-326,30/11/2016,Adult Social Care,ANSON COURT RESIDENTIAL HOME,22/11/2016,"1,800.00",73373-RESIDENTIAL & NURSING CARE PLACEMENTS,OP COMMISSIONING,Third Party Payments,Revenue
Walsall Council,http://opendatacommunities.org/id/metropolitan-district-council/walsall,WC74-327,30/11/2016,Adult Social Care,ANSON COURT RESIDENTIAL HOME,22/11/2016,"1,800.00",73373-RESIDENTIAL & NURSING CARE PLACEMENTS,OP COMMISSIONING,Third Party Payments,Revenue
Walsall Council,http://opendatacommunities.org/id/metropolitan-district-council/walsall,WC74-328,30/11/2016,Adult Social Care,ANSON COURT RESIDENTIAL HOME,22/11/2016,"1,800.00",73373-RESIDENTIAL & NURSING CARE PLACEMENTS,OP COMMISSIONING,Third Party Payments,Revenue
Walsall Council,http://opendatacommunities.org/id/metropolitan-district-council/walsall,WC74-329,30/11/2016,Adult Social Care,ANSON COURT RESIDENTIAL HOME,22/11/2016,"1,800.00",73373-RESIDENTIAL & NURSING CARE PLACEMENTS,OP COMMISSIONING,Third Party Payments,Revenue
Walsall Council,http://opendatacommunities.org/id/metropolitan-district-council/walsall,WC74-330,30/11/2016,Adult Social Care,ANSON COURT RESIDENTIAL HOME,01/11/2016,"2,378.57",73373-RESIDENTIAL & NURSING CARE PLACEMENTS,MH COMMISSIONING,Third Party Payments,Revenue
Walsall Council,http://opendatacommunities.org/id/metropolitan-district-council/walsall,WC74-331,30/11/2016,Adult Social Care,ANSON COURT RESIDENTIAL HOME,22/11/2016,"4,880.00",73373-RESIDENTIAL & NURSING CARE PLACEMENTS,MH COMMISSIONING,Third Party Payments,Revenue
Walsall Council,http://opendatacommunities.org/id/metropolitan-district-council/walsall,WC74-332,30/11/2016,Childrens,REDACTED,21/11/2016,806.75,74006-HOLIDAY/CHRISTMAS ALLOWANCE-FOSTER CARERS-OTH AGENCY PROVISION,INTERNAL FOSTER CARE PROVISION,Third Party Payments,Revenue
Walsall Council,http://opendatacommunities.org/id/metropolitan-district-council/walsall,WC74-333,30/11/2016,Childrens,REDACTED,21/11/2016,312.76,74006-HOLIDAY/CHRISTMAS ALLOWANCE-FOSTER CARERS-OTH AGENCY PROVISION,INTERNAL FOSTER CARE PROVISION,Third Party Payments,Revenue
Walsall Council,http://opendatacommunities.org/id/metropolitan-district-council/walsall,WC74-334,30/11/2016,Economy & Environment,APCOA PARKING SERVICES (UK) LTD,10/11/2016,"48,662.17",73025-PROFESSIONAL SERVICES-PRIV CONTRACTOR & OTHER AGENCIES,PARKING SERVICES,Third Party Payments,Revenue
Walsall Council,http://opendatacommunities.org/id/metropolitan-district-council/walsall,WC74-335,30/11/2016,Childrens,APEX CONSULTANCY AND TRAINING SERVICES LTD,18/11/2016,"1,500.00",63000-PROFESSIONAL FEES AND SERVICES,GENERAL MANAGEMENT SUPPORT (INC LEGAL),Supplies & Services,Revenue
Walsall Council,http://opendatacommunities.org/id/metropolitan-district-council/walsall,WC74-336,30/11/2016,Adult Social Care,APNA HOUSE LTD,15/11/2016,"5,586.96",73373-RESIDENTIAL & NURSING CARE PLACEMENTS,OP COMMISSIONING,Third Party Payments,Revenue
Walsall Council,http://opendatacommunities.org/id/metropolitan-district-council/walsall,WC74-337,30/11/2016,Economy & Environment,AQUALYMPIC,23/11/2016,322.50,34305-AGENCY STAFF-EMPLOYEES,BLOXWICH LEISURE CENTRE,Employees,Revenue
Walsall Council,http://opendatacommunities.org/id/metropolitan-district-council/walsall,WC74-338,30/11/2016,Economy & Environment,AQUALYMPIC,03/11/2016,425.00,34305-AGENCY STAFF-EMPLOYEES,BLOXWICH LEISURE CENTRE,Employees,Revenue
Walsall Council,http://opendatacommunities.org/id/metropolitan-district-council/walsall,WC74-339,30/11/2016,Economy & Environment,AQUALYMPIC,24/11/2016,757.50,34305-AGENCY STAFF-EMPLOYEES,OAK PARK,Employees,Revenue
Walsall Council,http://opendatacommunities.org/id/metropolitan-district-council/walsall,WC74-340,30/11/2016,Economy & Environment,AQUALYMPIC,07/11/2016,787.50,32000-MISC FEES AND EXPENSES,WALSALL GALA CENTRE,Employees,Revenue
Walsall Council,http://opendatacommunities.org/id/metropolitan-district-council/walsall,WC74-341,30/11/2016,Economy & Environment,AQUALYMPIC,24/11/2016,"1,795.00",34305-AGENCY STAFF-EMPLOYEES,OAK PARK,Employees,Revenue
Walsall Council,http://opendatacommunities.org/id/metropolitan-district-council/walsall,WC74-342,30/11/2016,Adult Social Care,ARBORETUM NURSING HOME.,08/11/2016,-324.97,73373-RESIDENTIAL & NURSING CARE PLACEMENTS,OP COMMISSIONING,Third Party Payments,Revenue
Walsall Council,http://opendatacommunities.org/id/metropolitan-district-council/walsall,WC74-343,30/11/2016,Adult Social Care,ARBORETUM NURSING HOME.,15/11/2016,564.46,73373-RESIDENTIAL & NURSING CARE PLACEMENTS,OP COMMISSIONING,Third Party Payments,Revenue
Walsall Council,http://opendatacommunities.org/id/metropolitan-district-council/walsall,WC74-344,30/11/2016,Adult Social Care,ARBORETUM NURSING HOME.,29/11/2016,649.94,73373-RESIDENTIAL & NURSING CARE PLACEMENTS,OP COMMISSIONING,Third Party Payments,Revenue
Walsall Council,http://opendatacommunities.org/id/metropolitan-district-council/walsall,WC74-345,30/11/2016,Adult Social Care,ARBORETUM NURSING HOME.,08/11/2016,"2,274.80",73373-RESIDENTIAL & NURSING CARE PLACEMENTS,OP COMMISSIONING,Third Party Payments,Revenue
Walsall Council,http://opendatacommunities.org/id/metropolitan-district-council/walsall,WC74-346,30/11/2016,Adult Social Care,ARBORETUM NURSING HOME.,15/11/2016,"2,843.50",73373-RESIDENTIAL & NURSING CARE PLACEMENTS,OP COMMISSIONING,Third Party Payments,Revenue
Walsall Council,http://opendatacommunities.org/id/metropolitan-district-council/walsall,WC74-347,30/11/2016,Adult Social Care,ARBORETUM NURSING HOME.,15/11/2016,"2,843.50",73373-RESIDENTIAL & NURSING CARE PLACEMENTS,OP COMMISSIONING,Third Party Payments,Revenue
Walsall Council,http://opendatacommunities.org/id/metropolitan-district-council/walsall,WC74-348,30/11/2016,Adult Social Care,ARBORETUM NURSING HOME.,15/11/2016,"2,843.50",73373-RESIDENTIAL & NURSING CARE PLACEMENTS,OP COMMISSIONING,Third Party Payments,Revenue
Walsall Council,http://opendatacommunities.org/id/metropolitan-district-council/walsall,WC74-349,30/11/2016,Adult Social Care,ARBORETUM NURSING HOME.,15/11/2016,"2,898.85",73373-RESIDENTIAL & NURSING CARE PLACEMENTS,OP COMMISSIONING,Third Party Payments,Revenue
Walsall Council,http://opendatacommunities.org/id/metropolitan-district-council/walsall,WC74-350,30/11/2016,Adult Social Care,ARBORETUM NURSING HOME.,29/11/2016,"2,899.80",73373-RESIDENTIAL & NURSING CARE PLACEMENTS,OP COMMISSIONING,Third Party Payments,Revenue
Walsall Council,http://opendatacommunities.org/id/metropolitan-district-council/walsall,WC74-351,30/11/2016,Adult Social Care,ARBORETUM NURSING HOME.,15/11/2016,"2,899.85",73373-RESIDENTIAL & NURSING CARE PLACEMENTS,OP COMMISSIONING,Third Party Payments,Revenue
Walsall Council,http://opendatacommunities.org/id/metropolitan-district-council/walsall,WC74-352,30/11/2016,Adult Social Care,ARBORETUM NURSING HOME.,15/11/2016,"2,916.95",73373-RESIDENTIAL & NURSING CARE PLACEMENTS,OP COMMISSIONING,Third Party Payments,Revenue
Walsall Council,http://opendatacommunities.org/id/metropolitan-district-council/walsall,WC74-353,30/11/2016,Adult Social Care,ARBORETUM NURSING HOME.,10/11/2016,"14,900.00",73019-PSE'S-PRIV CONTRACTOR FEES,TRANSITIONAL CARE SUPPORT TEAM,Third Party Payments,Revenue
Walsall Council,http://opendatacommunities.org/id/metropolitan-district-council/walsall,WC74-354,30/11/2016,Childrens,ARC ADOPTION NORTH EAST LIMITED,23/11/2016,"60,000.00",73025-PROFESSIONAL SERVICES-PRIV CONTRACTOR & OTHER AGENCIES,ADOPTION TEAM,Third Party Payments,Revenue
Walsall Council,http://opendatacommunities.org/id/metropolitan-district-council/walsall,WC74-355,30/11/2016,Economy & Environment,ARCHWAY TCS LTD,23/11/2016,707.00,60537-VEHICLE WASH PLANT-MATERIALS,DEPOT,Supplies & Services,Revenue
Walsall Council,http://opendatacommunities.org/id/metropolitan-district-council/walsall,WC74-356,30/11/2016,Childrens,ARNFIELD CARE LIMITED,09/11/2016,"16,731.30",74036-EXTERNAL RESIDENTIAL CARE-OTH AGENCY PROVISION,INDEPENDENT RESIDENTIAL HOMES,Third Party Payments,Revenue
Walsall Council,http://opendatacommunities.org/id/metropolitan-district-council/walsall,WC74-357,30/11/2016,Childrens,ARTHUR M GRIFFITHS & SON LTD,21/11/2016,"179,652.10",01006-SITE WORKS MAIN CONTRACTORS,CFR 929 KING CHARLES PRIMARY SIGNIFICANT ENLARGEMENT,Capital,Capital
Walsall Council,http://opendatacommunities.org/id/metropolitan-district-council/walsall,WC74-358,30/11/2016,Economy & Environment,ASA AWARDS,01/11/2016,282.74,60006-NEW-FURNITURE & EQUIPMENT,WALSALL GALA CENTRE,Supplies & Services,Revenue
Walsall Council,http://opendatacommunities.org/id/metropolitan-district-council/walsall,WC74-359,30/11/2016,Economy & Environment,ASA AWARDS,24/11/2016,614.85,60006-NEW-FURNITURE & EQUIPMENT,BLOXWICH LEISURE CENTRE,Supplies & Services,Revenue
Walsall Council,http://opendatacommunities.org/id/metropolitan-district-council/walsall,WC74-360,30/11/2016,Adult Social Care,ASH GRANGE CARE HOME,10/11/2016,"-2,100.00",73019-PSE'S-PRIV CONTRACTOR FEES,TRANSITIONAL CARE SUPPORT TEAM,Third Party Payments,Revenue
Walsall Council,http://opendatacommunities.org/id/metropolitan-district-council/walsall,WC74-361,30/11/2016,Adult Social Care,ASH GRANGE CARE HOME,08/11/2016,"-2,043.22",73373-RESIDENTIAL & NURSING CARE PLACEMENTS,OP COMMISSIONING,Third Party Payments,Revenue
Walsall Council,http://opendatacommunities.org/id/metropolitan-district-council/walsall,WC74-362,30/11/2016,Adult Social Care,ASH GRANGE CARE HOME,10/11/2016,420.00,73019-PSE'S-PRIV CONTRACTOR FEES,TRANSITIONAL CARE SUPPORT TEAM,Third Party Payments,Revenue
Walsall Council,http://opendatacommunities.org/id/metropolitan-district-council/walsall,WC74-363,30/11/2016,Adult Social Care,ASH GRANGE CARE HOME,10/11/2016,420.00,73019-PSE'S-PRIV CONTRACTOR FEES,TRANSITIONAL CARE SUPPORT TEAM,Third Party Payments,Revenue
Walsall Council,http://opendatacommunities.org/id/metropolitan-district-council/walsall,WC74-364,30/11/2016,Adult Social Care,ASH GRANGE CARE HOME,08/11/2016,"1,620.00",73373-RESIDENTIAL & NURSING CARE PLACEMENTS,OP COMMISSIONING,Third Party Payments,Revenue
Walsall Council,http://opendatacommunities.org/id/metropolitan-district-council/walsall,WC74-365,30/11/2016,Adult Social Care,ASH GRANGE CARE HOME,08/11/2016,"2,288.40",73373-RESIDENTIAL & NURSING CARE PLACEMENTS,OP COMMISSIONING,Third Party Payments,Revenue
Walsall Council,http://opendatacommunities.org/id/metropolitan-district-council/walsall,WC74-366,30/11/2016,Adult Social Care,ASH GRANGE CARE HOME,08/11/2016,"2,288.40",73373-RESIDENTIAL & NURSING CARE PLACEMENTS,OP COMMISSIONING,Third Party Payments,Revenue
Walsall Council,http://opendatacommunities.org/id/metropolitan-district-council/walsall,WC74-367,30/11/2016,Adult Social Care,ASH GRANGE CARE HOME,08/11/2016,"2,288.40",73373-RESIDENTIAL & NURSING CARE PLACEMENTS,OP COMMISSIONING,Third Party Payments,Revenue
Walsall Council,http://opendatacommunities.org/id/metropolitan-district-council/walsall,WC74-368,30/11/2016,Adult Social Care,ASH GRANGE CARE HOME,08/11/2016,"2,288.40",73373-RESIDENTIAL & NURSING CARE PLACEMENTS,OP COMMISSIONING,Third Party Payments,Revenue
Walsall Council,http://opendatacommunities.org/id/metropolitan-district-council/walsall,WC74-369,30/11/2016,Adult Social Care,ASH GRANGE CARE HOME,08/11/2016,"2,288.40",73373-RESIDENTIAL & NURSING CARE PLACEMENTS,OP COMMISSIONING,Third Party Payments,Revenue
Walsall Council,http://opendatacommunities.org/id/metropolitan-district-council/walsall,WC74-370,30/11/2016,Adult Social Care,ASH GRANGE CARE HOME,08/11/2016,"2,288.40",73373-RESIDENTIAL & NURSING CARE PLACEMENTS,OP COMMISSIONING,Third Party Payments,Revenue
Walsall Council,http://opendatacommunities.org/id/metropolitan-district-council/walsall,WC74-371,30/11/2016,Adult Social Care,ASH GRANGE CARE HOME,08/11/2016,"2,288.40",73373-RESIDENTIAL & NURSING CARE PLACEMENTS,MH COMMISSIONING,Third Party Payments,Revenue
Walsall Council,http://opendatacommunities.org/id/metropolitan-district-council/walsall,WC74-372,30/11/2016,Adult Social Care,ASH GRANGE CARE HOME,08/11/2016,"2,288.40",73373-RESIDENTIAL & NURSING CARE PLACEMENTS,OP COMMISSIONING,Third Party Payments,Revenue
Walsall Council,http://opendatacommunities.org/id/metropolitan-district-council/walsall,WC74-373,30/11/2016,Adult Social Care,ASH GRANGE CARE HOME,08/11/2016,"2,288.40",73373-RESIDENTIAL & NURSING CARE PLACEMENTS,OP COMMISSIONING,Third Party Payments,Revenue
Walsall Council,http://opendatacommunities.org/id/metropolitan-district-council/walsall,WC74-374,30/11/2016,Adult Social Care,ASH GRANGE CARE HOME,08/11/2016,"2,288.40",73373-RESIDENTIAL & NURSING CARE PLACEMENTS,OP COMMISSIONING,Third Party Payments,Revenue
Walsall Council,http://opendatacommunities.org/id/metropolitan-district-council/walsall,WC74-375,30/11/2016,Adult Social Care,ASH GRANGE CARE HOME,08/11/2016,"2,288.40",73373-RESIDENTIAL & NURSING CARE PLACEMENTS,OP COMMISSIONING,Third Party Payments,Revenue
Walsall Council,http://opendatacommunities.org/id/metropolitan-district-council/walsall,WC74-376,30/11/2016,Adult Social Care,ASH GRANGE CARE HOME,22/11/2016,"2,372.04",73373-RESIDENTIAL & NURSING CARE PLACEMENTS,OP COMMISSIONING,Third Party Payments,Revenue
Walsall Council,http://opendatacommunities.org/id/metropolitan-district-council/walsall,WC74-377,30/11/2016,Adult Social Care,ASH GRANGE CARE HOME,22/11/2016,"2,372.04",73373-RESIDENTIAL & NURSING CARE PLACEMENTS,OP COMMISSIONING,Third Party Payments,Revenue
Walsall Council,http://opendatacommunities.org/id/metropolitan-district-council/walsall,WC74-378,30/11/2016,Adult Social Care,ASH GRANGE CARE HOME,08/11/2016,"3,120.72",73373-RESIDENTIAL & NURSING CARE PLACEMENTS,OP COMMISSIONING,Third Party Payments,Revenue
Walsall Council,http://opendatacommunities.org/id/metropolitan-district-council/walsall,WC74-379,30/11/2016,Adult Social Care,ASH GRANGE CARE HOME,10/11/2016,"14,700.00",73019-PSE'S-PRIV CONTRACTOR FEES,TRANSITIONAL CARE SUPPORT TEAM,Third Party Payments,Revenue
Walsall Council,http://opendatacommunities.org/id/metropolitan-district-council/walsall,WC74-380,30/11/2016,Economy & Environment,ASKEWS AND HOLTS LIBRARY SERVICES LTD,23/11/2016,257.90,60501-LIBRARY BOOKS,LIBRARY STOCK AND PERFORMANCE,Supplies & Services,Revenue
Walsall Council,http://opendatacommunities.org/id/metropolitan-district-council/walsall,WC74-381,30/11/2016,Economy & Environment,ASKEWS AND HOLTS LIBRARY SERVICES LTD,01/11/2016,265.32,60501-LIBRARY BOOKS,LIBRARY STOCK AND PERFORMANCE,Supplies & Services,Revenue
Walsall Council,http://opendatacommunities.org/id/metropolitan-district-council/walsall,WC74-382,30/11/2016,Economy & Environment,ASKEWS AND HOLTS LIBRARY SERVICES LTD,01/11/2016,305.62,60501-LIBRARY BOOKS,LIBRARY STOCK AND PERFORMANCE,Supplies & Services,Revenue
Walsall Council,http://opendatacommunities.org/id/metropolitan-district-council/walsall,WC74-383,30/11/2016,Economy & Environment,ASKEWS AND HOLTS LIBRARY SERVICES LTD,01/11/2016,503.00,60501-LIBRARY BOOKS,LIBRARY STOCK AND PERFORMANCE,Supplies & Services,Revenue
Walsall Council,http://opendatacommunities.org/id/metropolitan-district-council/walsall,WC74-384,30/11/2016,Economy & Environment,ASKEWS AND HOLTS LIBRARY SERVICES LTD,16/11/2016,511.23,60501-LIBRARY BOOKS,LIBRARY STOCK AND PERFORMANCE,Supplies & Services,Revenue
Walsall Council,http://opendatacommunities.org/id/metropolitan-district-council/walsall,WC74-385,30/11/2016,Economy & Environment,ASKEWS AND HOLTS LIBRARY SERVICES LTD,02/11/2016,713.58,60501-LIBRARY BOOKS,LIBRARY STOCK AND PERFORMANCE,Supplies & Services,Revenue
Walsall Council,http://opendatacommunities.org/id/metropolitan-district-council/walsall,WC74-386,30/11/2016,Economy & Environment,ASKEWS AND HOLTS LIBRARY SERVICES LTD,23/11/2016,713.58,60501-LIBRARY BOOKS,LIBRARY STOCK AND PERFORMANCE,Supplies & Services,Revenue
Walsall Council,http://opendatacommunities.org/id/metropolitan-district-council/walsall,WC74-387,30/11/2016,Adult Social Care,REDACTED,07/11/2016,493.00,76422-DIRECT PAYMENTS TO SOCIAL SERVICES CLIENTS,OP COMMISSIONING,Transfer Payments,Revenue
Walsall Council,http://opendatacommunities.org/id/metropolitan-district-council/walsall,WC74-388,30/11/2016,Childrens,ASTON CHILDRENS CARE,07/11/2016,"11,071.34",74036-EXTERNAL RESIDENTIAL CARE-OTH AGENCY PROVISION,INDEPENDENT RESIDENTIAL HOMES,Third Party Payments,Revenue
Walsall Council,http://opendatacommunities.org/id/metropolitan-district-council/walsall,WC74-389,30/11/2016,Economy & Environment,ATHWAL NEWS LTD,28/11/2016,524.60,60501-LIBRARY BOOKS,LIBRARY STOCK AND PERFORMANCE,Supplies & Services,Revenue
Walsall Council,http://opendatacommunities.org/id/metropolitan-district-council/walsall,WC74-390,30/11/2016,Economy & Environment,AUGEAN PLC,04/11/2016,385.35,73029-HAZARDOUS WASTE REMOVAL/DISPOSAL-PRIV CONTRACTOR FEES,WASTE DISPOSAL - RESIDUAL,Third Party Payments,Revenue
Walsall Council,http://opendatacommunities.org/id/metropolitan-district-council/walsall,WC74-391,30/11/2016,Adult Social Care,AUTISM WEST MIDLANDS,08/11/2016,"7,479.01",73373-RESIDENTIAL & NURSING CARE PLACEMENTS,LD COMMISSIONING,Third Party Payments,Revenue
Walsall Council,http://opendatacommunities.org/id/metropolitan-district-council/walsall,WC74-392,30/11/2016,Adult Social Care,AUTISM WEST MIDLANDS 001,08/11/2016,"4,999.33",73373-RESIDENTIAL & NURSING CARE PLACEMENTS,LD COMMISSIONING,Third Party Payments,Revenue
Walsall Council,http://opendatacommunities.org/id/metropolitan-district-council/walsall,WC74-393,30/11/2016,Adult Social Care,REDACTED,07/11/2016,989.04,76422-DIRECT PAYMENTS TO SOCIAL SERVICES CLIENTS,OP COMMISSIONING,Transfer Payments,Revenue
Walsall Council,http://opendatacommunities.org/id/metropolitan-district-council/walsall,WC74-394,30/11/2016,Economy & Environment,AXIELL LIMITED,11/11/2016,550.90,63000-PROFESSIONAL FEES AND SERVICES,LIBRARY DEVELOPMENT 1,Supplies & Services,Revenue
Walsall Council,http://opendatacommunities.org/id/metropolitan-district-council/walsall,WC74-395,30/11/2016,Economy & Environment,AXIOMATIC TECHNOLOGY LTD,14/11/2016,569.00,63000-PROFESSIONAL FEES AND SERVICES,FOREST ARTS CENTRE,Supplies & Services,Revenue
Walsall Council,http://opendatacommunities.org/id/metropolitan-district-council/walsall,WC74-396,30/11/2016,Childrens,REDACTED,07/11/2016,"1,284.00",76422-DIRECT PAYMENTS TO SOCIAL SERVICES CLIENTS,FAMILY SUPPORT - DIRECT PAYMENTS,Transfer Payments,Revenue
Walsall Council,http://opendatacommunities.org/id/metropolitan-district-council/walsall,WC74-397,30/11/2016,Adult Social Care,REDACTED,07/11/2016,"2,808.00",76422-DIRECT PAYMENTS TO SOCIAL SERVICES CLIENTS,LD COMMISSIONING,Transfer Payments,Revenue
Walsall Council,http://opendatacommunities.org/id/metropolitan-district-council/walsall,WC74-398,30/11/2016,Childrens,REDACTED,21/11/2016,"1,136.12",74006-HOLIDAY/CHRISTMAS ALLOWANCE-FOSTER CARERS-OTH AGENCY PROVISION,INTERNAL FOSTER CARE PROVISION,Third Party Payments,Revenue
Walsall Council,http://opendatacommunities.org/id/metropolitan-district-council/walsall,WC74-399,30/11/2016,Childrens,REDACTED,07/11/2016,985.76,74006-HOLIDAY/CHRISTMAS ALLOWANCE-FOSTER CARERS-OTH AGENCY PROVISION,INTERNAL FOSTER CARE PROVISION,Third Party Payments,Revenue
Walsall Council,http://opendatacommunities.org/id/metropolitan-district-council/walsall,WC74-400,30/11/2016,Childrens,REDACTED,07/11/2016,"1,156.76",62515-MISCELLANEOUS SUPPLIES,INTERNAL FOSTER CARE PROVISION,Supplies & Services,Revenue
Walsall Council,http://opendatacommunities.org/id/metropolitan-district-council/walsall,WC74-401,30/11/2016,Childrens,REDACTED,08/11/2016,464.00,76000-TRANSFER PAYMENTS - SOCIAL SERVICES CLIENTS,TRANSITION AND LEAVING CARE,Transfer Payments,Revenue
Walsall Council,http://opendatacommunities.org/id/metropolitan-district-council/walsall,WC74-402,30/11/2016,Childrens,REDACTED,22/11/2016,464.00,76000-TRANSFER PAYMENTS - SOCIAL SERVICES CLIENTS,TRANSITION AND LEAVING CARE,Transfer Payments,Revenue
Walsall Council,http://opendatacommunities.org/id/metropolitan-district-council/walsall,WC74-403,30/11/2016,Childrens,REDACTED,07/11/2016,906.76,62515-MISCELLANEOUS SUPPLIES,INTERNAL FOSTER CARE PROVISION,Supplies & Services,Revenue
Walsall Council,http://opendatacommunities.org/id/metropolitan-district-council/walsall,WC74-404,30/11/2016,Childrens,REDACTED,07/11/2016,915.35,74006-HOLIDAY/CHRISTMAS ALLOWANCE-FOSTER CARERS-OTH AGENCY PROVISION,INTERNAL FOSTER CARE PROVISION,Third Party Payments,Revenue
Walsall Council,http://opendatacommunities.org/id/metropolitan-district-council/walsall,WC74-405,30/11/2016,Economy & Environment,B&Q WAREHOUSE PLC,07/11/2016,315.17,60500-GENERAL MATERIALS,NAG - MAINTENANCE,Supplies & Services,Revenue
Walsall Council,http://opendatacommunities.org/id/metropolitan-district-council/walsall,WC74-406,30/11/2016,Childrens,BADENOCH & CLARK 002,08/11/2016,399.00,73025-PROFESSIONAL SERVICES-PRIV CONTRACTOR & OTHER AGENCIES,SCHOOL IMPROVEMENT-VIRTUAL SCHOOL,Third Party Payments,Revenue
Walsall Council,http://opendatacommunities.org/id/metropolitan-district-council/walsall,WC74-407,30/11/2016,Childrens,BADENOCH & CLARK 002,08/11/2016,420.00,73025-PROFESSIONAL SERVICES-PRIV CONTRACTOR & OTHER AGENCIES,SCHOOL IMPROVEMENT-VIRTUAL SCHOOL,Third Party Payments,Revenue
Walsall Council,http://opendatacommunities.org/id/metropolitan-district-council/walsall,WC74-408,30/11/2016,Childrens,BADENOCH & CLARK 002,08/11/2016,518.00,73025-PROFESSIONAL SERVICES-PRIV CONTRACTOR & OTHER AGENCIES,SCHOOL IMPROVEMENT-VIRTUAL SCHOOL,Third Party Payments,Revenue
Walsall Council,http://opendatacommunities.org/id/metropolitan-district-council/walsall,WC74-409,30/11/2016,Childrens,BADENOCH & CLARK 002,08/11/2016,518.00,73025-PROFESSIONAL SERVICES-PRIV CONTRACTOR & OTHER AGENCIES,SCHOOL IMPROVEMENT-VIRTUAL SCHOOL,Third Party Payments,Revenue
Walsall Council,http://opendatacommunities.org/id/metropolitan-district-council/walsall,WC74-410,30/11/2016,Childrens,BADENOCH & CLARK 002,08/11/2016,525.00,73025-PROFESSIONAL SERVICES-PRIV CONTRACTOR & OTHER AGENCIES,SCHOOL IMPROVEMENT-VIRTUAL SCHOOL,Third Party Payments,Revenue
Walsall Council,http://opendatacommunities.org/id/metropolitan-district-council/walsall,WC74-411,30/11/2016,Childrens,BADENOCH & CLARK 002,08/11/2016,525.00,73025-PROFESSIONAL SERVICES-PRIV CONTRACTOR & OTHER AGENCIES,SCHOOL IMPROVEMENT-VIRTUAL SCHOOL,Third Party Payments,Revenue
Walsall Council,http://opendatacommunities.org/id/metropolitan-district-council/walsall,WC74-412,30/11/2016,Economy & Environment,BAKER HALL PARTNERSHIP,09/11/2016,540.25,63000-PROFESSIONAL FEES AND SERVICES,BUILDING CONTROL REVENUE FUNDED,Supplies & Services,Revenue
Walsall Council,http://opendatacommunities.org/id/metropolitan-district-council/walsall,WC74-413,30/11/2016,Adult Social Care,REDACTED,07/11/2016,480.00,76422-DIRECT PAYMENTS TO SOCIAL SERVICES CLIENTS,MH COMMISSIONING,Transfer Payments,Revenue
Walsall Council,http://opendatacommunities.org/id/metropolitan-district-council/walsall,WC74-414,30/11/2016,Adult Social Care,REDACTED,07/11/2016,"2,849.92",76422-DIRECT PAYMENTS TO SOCIAL SERVICES CLIENTS,LD COMMISSIONING,Transfer Payments,Revenue
Walsall Council,http://opendatacommunities.org/id/metropolitan-district-council/walsall,WC74-415,30/11/2016,Adult Social Care,REDACTED,07/11/2016,800.00,76422-DIRECT PAYMENTS TO SOCIAL SERVICES CLIENTS,OP COMMISSIONING,Transfer Payments,Revenue
Walsall Council,http://opendatacommunities.org/id/metropolitan-district-council/walsall,WC74-416,30/11/2016,Adult Social Care,REDACTED,07/11/2016,"1,582.86",76422-DIRECT PAYMENTS TO SOCIAL SERVICES CLIENTS,OP COMMISSIONING,Transfer Payments,Revenue
Walsall Council,http://opendatacommunities.org/id/metropolitan-district-council/walsall,WC74-417,30/11/2016,Childrens,REDACTED,21/11/2016,714.30,74006-HOLIDAY/CHRISTMAS ALLOWANCE-FOSTER CARERS-OTH AGENCY PROVISION,INTERNAL FOSTER CARE PROVISION,Third Party Payments,Revenue
Walsall Council,http://opendatacommunities.org/id/metropolitan-district-council/walsall,WC74-418,30/11/2016,Adult Social Care,REDACTED,07/11/2016,849.64,76422-DIRECT PAYMENTS TO SOCIAL SERVICES CLIENTS,OP COMMISSIONING,Transfer Payments,Revenue
Walsall Council,http://opendatacommunities.org/id/metropolitan-district-council/walsall,WC74-419,30/11/2016,Economy & Environment,BARCHAM TREES PLC,23/11/2016,382.50,60500-GENERAL MATERIALS,SECTION 106,Supplies & Services,Revenue
Walsall Council,http://opendatacommunities.org/id/metropolitan-district-council/walsall,WC74-420,30/11/2016,Childrens,BARNARDOS SERVICES LTD,28/11/2016,"3,078.00",74037-INDEPENDENT FOSTER CARE-OTH AGENCY PROVISION,EXTERNAL FOSTER CARE PROVISION,Third Party Payments,Revenue
Walsall Council,http://opendatacommunities.org/id/metropolitan-district-council/walsall,WC74-421,30/11/2016,Childrens,BARNARDOS SERVICES LTD,28/11/2016,"3,210.00",74037-INDEPENDENT FOSTER CARE-OTH AGENCY PROVISION,EXTERNAL FOSTER CARE PROVISION,Third Party Payments,Revenue
Walsall Council,http://opendatacommunities.org/id/metropolitan-district-council/walsall,WC74-422,30/11/2016,Adult Social Care,REDACTED,07/11/2016,490.40,76422-DIRECT PAYMENTS TO SOCIAL SERVICES CLIENTS,OP COMMISSIONING,Transfer Payments,Revenue
Walsall Council,http://opendatacommunities.org/id/metropolitan-district-council/walsall,WC74-423,30/11/2016,Economy & Environment,BAT FABRICATIONS LTD,14/11/2016,630.00,60006-NEW-FURNITURE & EQUIPMENT,INFRASTRUCTURE MAINTENANCE,Supplies & Services,Revenue
Walsall Council,http://opendatacommunities.org/id/metropolitan-district-council/walsall,WC74-424,30/11/2016,Economy & Environment,BAT FABRICATIONS LTD,21/11/2016,"6,010.00",60008-MAINTENANCE-FURNITURE & EQUIPMENT,BARR BEACON RESTORATION,Supplies & Services,Revenue
Walsall Council,http://opendatacommunities.org/id/metropolitan-district-council/walsall,WC74-425,30/11/2016,Economy & Environment,BEADEN POWERLEC LIMITED,24/11/2016,406.00,60500-GENERAL MATERIALS,DEPOT,Supplies & Services,Revenue
Walsall Council,http://opendatacommunities.org/id/metropolitan-district-council/walsall,WC74-426,30/11/2016,Economy & Environment,BEADEN POWERLEC LIMITED,16/11/2016,480.00,"40000-REPAIRS,ALTERATIONS & MAINTENANCE-PREM",DARLASTON LEISURE CENTRE,Premises,Revenue
Walsall Council,http://opendatacommunities.org/id/metropolitan-district-council/walsall,WC74-427,30/11/2016,Economy & Environment,BEADEN POWERLEC LIMITED,11/11/2016,"1,045.00",60008-MAINTENANCE-FURNITURE & EQUIPMENT,PARKING SERVICES,Supplies & Services,Revenue
Walsall Council,http://opendatacommunities.org/id/metropolitan-district-council/walsall,WC74-428,30/11/2016,Economy & Environment,BEADEN POWERLEC LIMITED,11/11/2016,"1,574.00",60008-MAINTENANCE-FURNITURE & EQUIPMENT,PARKING SERVICES,Supplies & Services,Revenue
Walsall Council,http://opendatacommunities.org/id/metropolitan-district-council/walsall,WC74-429,30/11/2016,Childrens,REDACTED,07/11/2016,534.68,74006-HOLIDAY/CHRISTMAS ALLOWANCE-FOSTER CARERS-OTH AGENCY PROVISION,INTERNAL FOSTER CARE PROVISION,Third Party Payments,Revenue
Walsall Council,http://opendatacommunities.org/id/metropolitan-district-council/walsall,WC74-430,30/11/2016,Childrens,REDACTED,07/11/2016,842.54,62515-MISCELLANEOUS SUPPLIES,INTERNAL FOSTER CARE PROVISION,Supplies & Services,Revenue
Walsall Council,http://opendatacommunities.org/id/metropolitan-district-council/walsall,WC74-431,30/11/2016,Adult Social Care,BEARWOOD NURSING HOME LTD,22/11/2016,"1,649.80",73373-RESIDENTIAL & NURSING CARE PLACEMENTS,OP COMMISSIONING,Third Party Payments,Revenue
Walsall Council,http://opendatacommunities.org/id/metropolitan-district-council/walsall,WC74-432,30/11/2016,Adult Social Care,REDACTED,07/11/2016,866.25,76422-DIRECT PAYMENTS TO SOCIAL SERVICES CLIENTS,OP COMMISSIONING,Transfer Payments,Revenue
Walsall Council,http://opendatacommunities.org/id/metropolitan-district-council/walsall,WC74-433,30/11/2016,Economy & Environment,BEDAZZLE,14/11/2016,675.00,63000-PROFESSIONAL FEES AND SERVICES,FOREST ARTS CENTRE,Supplies & Services,Revenue
Walsall Council,http://opendatacommunities.org/id/metropolitan-district-council/walsall,WC74-434,30/11/2016,Childrens,REDACTED,07/11/2016,540.20,62515-MISCELLANEOUS SUPPLIES,INTERNAL FOSTER CARE PROVISION,Supplies & Services,Revenue
Walsall Council,http://opendatacommunities.org/id/metropolitan-district-council/walsall,WC74-435,30/11/2016,Childrens,REDACTED,07/11/2016,571.44,74006-HOLIDAY/CHRISTMAS ALLOWANCE-FOSTER CARERS-OTH AGENCY PROVISION,INTERNAL FOSTER CARE PROVISION,Third Party Payments,Revenue
Walsall Council,http://opendatacommunities.org/id/metropolitan-district-council/walsall,WC74-436,30/11/2016,Economy & Environment,BELVEDERE SAFETY,25/11/2016,"2,210.00",30030-EXTERNAL TRAINING,LEISURE - MANAGEMENT AND ADMIN,Employees,Revenue
Walsall Council,http://opendatacommunities.org/id/metropolitan-district-council/walsall,WC74-437,30/11/2016,Adult Social Care,REDACTED,07/11/2016,"2,310.00",76422-DIRECT PAYMENTS TO SOCIAL SERVICES CLIENTS,LD COMMISSIONING,Transfer Payments,Revenue
Walsall Council,http://opendatacommunities.org/id/metropolitan-district-council/walsall,WC74-438,30/11/2016,Childrens,BENTLEY CHILD CARE,03/11/2016,570.00,30030-EXTERNAL TRAINING,WEST LOCALITY - SCHOOL READY,Employees,Revenue
Walsall Council,http://opendatacommunities.org/id/metropolitan-district-council/walsall,WC74-439,30/11/2016,Adult Social Care,BENTLEY COURT PRIORY,29/11/2016,"1,767.86",73373-RESIDENTIAL & NURSING CARE PLACEMENTS,OP COMMISSIONING,Third Party Payments,Revenue
Walsall Council,http://opendatacommunities.org/id/metropolitan-district-council/walsall,WC74-440,30/11/2016,Adult Social Care,BENTLEY COURT PRIORY,01/11/2016,"1,826.79",73373-RESIDENTIAL & NURSING CARE PLACEMENTS,OP COMMISSIONING,Third Party Payments,Revenue
Walsall Council,http://opendatacommunities.org/id/metropolitan-district-council/walsall,WC74-441,30/11/2016,Adult Social Care,BENTLEY COURT PRIORY,29/11/2016,"1,924.50",73373-RESIDENTIAL & NURSING CARE PLACEMENTS,OP COMMISSIONING,Third Party Payments,Revenue
Walsall Council,http://opendatacommunities.org/id/metropolitan-district-council/walsall,WC74-442,30/11/2016,Adult Social Care,BENTLEY COURT PRIORY,01/11/2016,"1,988.65",73373-RESIDENTIAL & NURSING CARE PLACEMENTS,OP COMMISSIONING,Third Party Payments,Revenue
Walsall Council,http://opendatacommunities.org/id/metropolitan-district-council/walsall,WC74-443,30/11/2016,Adult Social Care,BENTLEY COURT PRIORY,29/11/2016,"2,004.17",73373-RESIDENTIAL & NURSING CARE PLACEMENTS,OP COMMISSIONING,Third Party Payments,Revenue
Walsall Council,http://opendatacommunities.org/id/metropolitan-district-council/walsall,WC74-444,30/11/2016,Adult Social Care,BENTLEY COURT PRIORY,29/11/2016,"2,041.20",73373-RESIDENTIAL & NURSING CARE PLACEMENTS,OP COMMISSIONING,Third Party Payments,Revenue
Walsall Council,http://opendatacommunities.org/id/metropolitan-district-council/walsall,WC74-445,30/11/2016,Adult Social Care,BENTLEY COURT PRIORY,01/11/2016,"2,070.98",73373-RESIDENTIAL & NURSING CARE PLACEMENTS,OP COMMISSIONING,Third Party Payments,Revenue
Walsall Council,http://opendatacommunities.org/id/metropolitan-district-council/walsall,WC74-446,30/11/2016,Adult Social Care,BENTLEY COURT PRIORY,01/11/2016,"2,109.24",73373-RESIDENTIAL & NURSING CARE PLACEMENTS,OP COMMISSIONING,Third Party Payments,Revenue
Walsall Council,http://opendatacommunities.org/id/metropolitan-district-council/walsall,WC74-447,30/11/2016,Adult Social Care,BENTLEY COURT PRIORY,29/11/2016,"2,196.21",73373-RESIDENTIAL & NURSING CARE PLACEMENTS,OP COMMISSIONING,Third Party Payments,Revenue
Walsall Council,http://opendatacommunities.org/id/metropolitan-district-council/walsall,WC74-448,30/11/2016,Adult Social Care,BENTLEY COURT PRIORY,01/11/2016,"2,269.42",73373-RESIDENTIAL & NURSING CARE PLACEMENTS,OP COMMISSIONING,Third Party Payments,Revenue
Walsall Council,http://opendatacommunities.org/id/metropolitan-district-council/walsall,WC74-449,30/11/2016,Adult Social Care,BENTLEY COURT PRIORY,15/11/2016,"2,518.53",73373-RESIDENTIAL & NURSING CARE PLACEMENTS,OP COMMISSIONING,Third Party Payments,Revenue
Walsall Council,http://opendatacommunities.org/id/metropolitan-district-council/walsall,WC74-450,30/11/2016,Holding Accounts,BERRYMANS LACE MAWER LLP,14/11/2016,641.20,67001-MISC INSURANCES - PAYMENT OF CLAIMS,PUBLIC LIABILITY,Supplies & Services,Revenue
Walsall Council,http://opendatacommunities.org/id/metropolitan-district-council/walsall,WC74-451,30/11/2016,Adult Social Care,REDACTED,07/11/2016,912.00,76422-DIRECT PAYMENTS TO SOCIAL SERVICES CLIENTS,OP COMMISSIONING,Transfer Payments,Revenue
Walsall Council,http://opendatacommunities.org/id/metropolitan-district-council/walsall,WC74-452,30/11/2016,Childrens,REDACTED,07/11/2016,612.26,74006-HOLIDAY/CHRISTMAS ALLOWANCE-FOSTER CARERS-OTH AGENCY PROVISION,INTERNAL FOSTER CARE PROVISION,Third Party Payments,Revenue
Walsall Council,http://opendatacommunities.org/id/metropolitan-district-council/walsall,WC74-453,30/11/2016,Childrens,REDACTED,07/11/2016,"1,445.32",62515-MISCELLANEOUS SUPPLIES,INTERNAL FOSTER CARE PROVISION,Supplies & Services,Revenue
Walsall Council,http://opendatacommunities.org/id/metropolitan-district-council/walsall,WC74-454,30/11/2016,Adult Social Care,REDACTED,07/11/2016,968.00,76422-DIRECT PAYMENTS TO SOCIAL SERVICES CLIENTS,OP COMMISSIONING,Transfer Payments,Revenue
Walsall Council,http://opendatacommunities.org/id/metropolitan-district-council/walsall,WC74-455,30/11/2016,Economy & Environment,BESCOT STADIUM SUNDAY MARKET LTD,09/11/2016,"3,500.00",73025-PROFESSIONAL SERVICES-PRIV CONTRACTOR & OTHER AGENCIES,WILLENHALL MARKET,Third Party Payments,Revenue
Walsall Council,http://opendatacommunities.org/id/metropolitan-district-council/walsall,WC74-456,30/11/2016,Adult Social Care,BESS CARE LIMITED,01/11/2016,612.50,73372-DOMICILIARY CARE,OP COMMISSIONING,Third Party Payments,Revenue
Walsall Council,http://opendatacommunities.org/id/metropolitan-district-council/walsall,WC74-457,30/11/2016,Adult Social Care,BESS CARE LIMITED,02/11/2016,612.50,73372-DOMICILIARY CARE,OP COMMISSIONING,Third Party Payments,Revenue
Walsall Council,http://opendatacommunities.org/id/metropolitan-district-council/walsall,WC74-458,30/11/2016,Adult Social Care,BESS CARE LIMITED,14/11/2016,612.50,73372-DOMICILIARY CARE,OP COMMISSIONING,Third Party Payments,Revenue
Walsall Council,http://opendatacommunities.org/id/metropolitan-district-council/walsall,WC74-459,30/11/2016,Adult Social Care,BESS CARE LIMITED,18/11/2016,612.50,73372-DOMICILIARY CARE,OP COMMISSIONING,Third Party Payments,Revenue
Walsall Council,http://opendatacommunities.org/id/metropolitan-district-council/walsall,WC74-460,30/11/2016,Adult Social Care,REDACTED,07/11/2016,949.52,76422-DIRECT PAYMENTS TO SOCIAL SERVICES CLIENTS,MH COMMISSIONING,Transfer Payments,Revenue
Walsall Council,http://opendatacommunities.org/id/metropolitan-district-council/walsall,WC74-461,30/11/2016,Adult Social Care,REDACTED,07/11/2016,"2,767.84",76422-DIRECT PAYMENTS TO SOCIAL SERVICES CLIENTS,OP COMMISSIONING,Transfer Payments,Revenue
Walsall Council,http://opendatacommunities.org/id/metropolitan-district-council/walsall,WC74-462,30/11/2016,Change and Governance,BFA SAFETY TRAINING,01/11/2016,295.00,30030-EXTERNAL TRAINING,HEALTH & SAFETY (TRADED),Employees,Revenue
Walsall Council,http://opendatacommunities.org/id/metropolitan-district-council/walsall,WC74-463,30/11/2016,Change and Governance,BFA SAFETY TRAINING,01/11/2016,495.00,30030-EXTERNAL TRAINING,HEALTH & SAFETY (TRADED),Employees,Revenue
Walsall Council,http://opendatacommunities.org/id/metropolitan-district-council/walsall,WC74-464,30/11/2016,Change and Governance,BFA SAFETY TRAINING,01/11/2016,495.00,30030-EXTERNAL TRAINING,HEALTH & SAFETY (TRADED),Employees,Revenue
Walsall Council,http://opendatacommunities.org/id/metropolitan-district-council/walsall,WC74-465,30/11/2016,Change and Governance,BFA SAFETY TRAINING,01/11/2016,595.00,30030-EXTERNAL TRAINING,HEALTH & SAFETY (TRADED),Employees,Revenue
Walsall Council,http://opendatacommunities.org/id/metropolitan-district-council/walsall,WC74-466,30/11/2016,Change and Governance,BFA SAFETY TRAINING,01/11/2016,795.00,30030-EXTERNAL TRAINING,HEALTH & SAFETY (TRADED),Employees,Revenue
Walsall Council,http://opendatacommunities.org/id/metropolitan-district-council/walsall,WC74-467,30/11/2016,Economy & Environment,BIBLIOTHECA LTD,07/11/2016,"3,750.00",01044-PURCHASE OF FURNITURE & EQUIPMENT,CFR 1156 OPEN PLUS IN LIBRARIES,Capital,Capital
Walsall Council,http://opendatacommunities.org/id/metropolitan-district-council/walsall,WC74-468,30/11/2016,Childrens,REDACTED,07/11/2016,487.72,76422-DIRECT PAYMENTS TO SOCIAL SERVICES CLIENTS,FAMILY SUPPORT - DIRECT PAYMENTS,Transfer Payments,Revenue
Walsall Council,http://opendatacommunities.org/id/metropolitan-district-council/walsall,WC74-469,30/11/2016,Childrens,REDACTED,07/11/2016,572.00,76422-DIRECT PAYMENTS TO SOCIAL SERVICES CLIENTS,FAMILY SUPPORT - DIRECT PAYMENTS,Transfer Payments,Revenue
Walsall Council,http://opendatacommunities.org/id/metropolitan-district-council/walsall,WC74-470,30/11/2016,Economy & Environment,BIOGAS TECHNOLOGY LIMITED,23/11/2016,347.00,60008-MAINTENANCE-FURNITURE & EQUIPMENT,POLLUTION DIVISION,Supplies & Services,Revenue
Walsall Council,http://opendatacommunities.org/id/metropolitan-district-council/walsall,WC74-471,30/11/2016,Childrens,BIRCHILLS C OF E COMMUNITY ACADEMY,17/11/2016,"3,000.00",73025-PROFESSIONAL SERVICES-PRIV CONTRACTOR & OTHER AGENCIES,SCHOOL IMPROVEMENT-CORE,Third Party Payments,Revenue
Walsall Council,http://opendatacommunities.org/id/metropolitan-district-council/walsall,WC74-472,30/11/2016,Economy & Environment,BIRMINGHAM CITY COUNCIL,03/11/2016,437.33,62515-MISCELLANEOUS SUPPLIES,ALDRIDGE DISTRICT CENTRE,Supplies & Services,Revenue
Walsall Council,http://opendatacommunities.org/id/metropolitan-district-council/walsall,WC74-473,30/11/2016,Economy & Environment,BIRMINGHAM CITY COUNCIL,11/11/2016,"5,077.42",71000-PAYMENTS FOR SERVICES FROM OTHER LOCAL AUTHORITIES,PLANNING POLICY,Third Party Payments,Revenue
Walsall Council,http://opendatacommunities.org/id/metropolitan-district-council/walsall,WC74-474,30/11/2016,Economy & Environment,BIRMINGHAM CITY COUNCIL,14/11/2016,"5,077.42",71000-PAYMENTS FOR SERVICES FROM OTHER LOCAL AUTHORITIES,PLANNING POLICY,Third Party Payments,Revenue
Walsall Council,http://opendatacommunities.org/id/metropolitan-district-council/walsall,WC74-475,30/11/2016,Childrens,BIRMINGHAM CITY COUNCIL,23/11/2016,"5,859.19",66502-TOP UP FUNDING -GRANTS TO SCHOOLS,INDEPENDENT PROVIDERS - SPECIAL & AP,Third Party Payments,Revenue
Walsall Council,http://opendatacommunities.org/id/metropolitan-district-council/walsall,WC74-476,30/11/2016,Childrens,BIRMINGHAM CITY COUNCIL,23/11/2016,"5,859.19",66502-TOP UP FUNDING -GRANTS TO SCHOOLS,INDEPENDENT PROVIDERS - SPECIAL & AP,Third Party Payments,Revenue
Walsall Council,http://opendatacommunities.org/id/metropolitan-district-council/walsall,WC74-477,30/11/2016,Childrens,BIRMINGHAM CITY COUNCIL,23/11/2016,"5,859.19",66502-TOP UP FUNDING -GRANTS TO SCHOOLS,INDEPENDENT PROVIDERS - SPECIAL & AP,Third Party Payments,Revenue
Walsall Council,http://opendatacommunities.org/id/metropolitan-district-council/walsall,WC74-478,30/11/2016,Childrens,BIRMINGHAM CITY COUNCIL,23/11/2016,"7,587.04",66502-TOP UP FUNDING -GRANTS TO SCHOOLS,INDEPENDENT PROVIDERS - SPECIAL & AP,Third Party Payments,Revenue
Walsall Council,http://opendatacommunities.org/id/metropolitan-district-council/walsall,WC74-479,30/11/2016,Childrens,BIRMINGHAM CITY COUNCIL,23/11/2016,"7,834.12",66502-TOP UP FUNDING -GRANTS TO SCHOOLS,INDEPENDENT PROVIDERS - SPECIAL & AP,Third Party Payments,Revenue
Walsall Council,http://opendatacommunities.org/id/metropolitan-district-council/walsall,WC74-480,30/11/2016,Economy & Environment,BIRMINGHAM CITY COUNCIL,11/11/2016,"10,154.83",71000-PAYMENTS FOR SERVICES FROM OTHER LOCAL AUTHORITIES,ROAD SAFETY & SUSTAINABLE TRAVEL,Third Party Payments,Revenue
Walsall Council,http://opendatacommunities.org/id/metropolitan-district-council/walsall,WC74-481,30/11/2016,Economy & Environment,BIRMINGHAM CITY COUNCIL,14/11/2016,"10,154.83",71000-PAYMENTS FOR SERVICES FROM OTHER LOCAL AUTHORITIES,ROAD SAFETY & SUSTAINABLE TRAVEL,Third Party Payments,Revenue
Walsall Council,http://opendatacommunities.org/id/metropolitan-district-council/walsall,WC74-482,30/11/2016,Adult Social Care,BLACK COUNTRY PARTNERSHIP NHS,01/11/2016,"5,094.00",73375-IN PATIENT BEDS,BCPFT,Third Party Payments,Revenue
Walsall Council,http://opendatacommunities.org/id/metropolitan-district-council/walsall,WC74-483,30/11/2016,Adult Social Care,BLACK COUNTRY PARTNERSHIP NHS,01/11/2016,"15,600.00",73375-IN PATIENT BEDS,BCPFT,Third Party Payments,Revenue
Walsall Council,http://opendatacommunities.org/id/metropolitan-district-council/walsall,WC74-484,30/11/2016,Adult Social Care,BLACK COUNTRY PARTNERSHIP NHS,01/11/2016,"16,303.00",73375-IN PATIENT BEDS,LD COMMISSIONING,Third Party Payments,Revenue
Walsall Council,http://opendatacommunities.org/id/metropolitan-district-council/walsall,WC74-485,30/11/2016,Adult Social Care,BLACK COUNTRY PARTNERSHIP NHS,01/11/2016,"18,198.00",73375-IN PATIENT BEDS,BCPFT,Third Party Payments,Revenue
Walsall Council,http://opendatacommunities.org/id/metropolitan-district-council/walsall,WC74-486,30/11/2016,Adult Social Care,BLACK COUNTRY PARTNERSHIP NHS,01/11/2016,"18,198.00",73375-IN PATIENT BEDS,BCPFT,Third Party Payments,Revenue
Walsall Council,http://opendatacommunities.org/id/metropolitan-district-council/walsall,WC74-487,30/11/2016,Adult Social Care,BLACK COUNTRY PARTNERSHIP NHS,01/11/2016,"18,198.00",73375-IN PATIENT BEDS,BCPFT,Third Party Payments,Revenue
Walsall Council,http://opendatacommunities.org/id/metropolitan-district-council/walsall,WC74-488,30/11/2016,Adult Social Care,BLACK COUNTRY PARTNERSHIP NHS,01/11/2016,"155,340.62",63000-PROFESSIONAL FEES AND SERVICES,BCPFT,Supplies & Services,Revenue
Walsall Council,http://opendatacommunities.org/id/metropolitan-district-council/walsall,WC74-489,30/11/2016,Adult Social Care,BLACK COUNTRY PARTNERSHIP NHS,23/11/2016,"155,340.62",71007-CONTRIBUTION TO PCT,BCPFT,Third Party Payments,Revenue
Walsall Council,http://opendatacommunities.org/id/metropolitan-district-council/walsall,WC74-490,30/11/2016,Childrens,BLAKENALL HEATH JMI SCHOOL,24/11/2016,"5,311.00",77200-TRANSFER PAYMENTS-OTHER SCHOOLCHILDREN/STUDENT RELATED ITEMS,BLAKENALL HEATH JUNIOR SCHOOL,Transfer Payments,Revenue
Walsall Council,http://opendatacommunities.org/id/metropolitan-district-council/walsall,WC74-491,30/11/2016,Childrens,BLAKENALL HEATH JMI SCHOOL,08/11/2016,"91,561.92",77300-ISB-FORMULA ALLOCATION,BLAKENALL HEATH JUNIOR SCHOOL,Transfer Payments,Revenue
Walsall Council,http://opendatacommunities.org/id/metropolitan-district-council/walsall,WC74-492,30/11/2016,Childrens,BLAYZE LTD,01/11/2016,270.00,73014-LEGAL FEES-PRIV CONTRACTOR FEES,GENERAL MANAGEMENT SUPPORT (INC LEGAL),Third Party Payments,Revenue
Walsall Council,http://opendatacommunities.org/id/metropolitan-district-council/walsall,WC74-493,30/11/2016,Adult Social Care,BLOXWICH COMMUNITY PARTNERSHIP.,01/11/2016,"1,400.00",70000-SOCIAL SERVICES-FEES TO VOLUNTARY BODIES,COMPLEX NEEDS CONTRACTS/SLA's,Third Party Payments,Revenue
Walsall Council,http://opendatacommunities.org/id/metropolitan-district-council/walsall,WC74-494,30/11/2016,Childrens,BLUE COAT CHURCH OF ENGLAND ACADEMY,23/11/2016,"1,600.00",77300-ISB-FORMULA ALLOCATION,BLUE COAT CofE ACADEMY,Transfer Payments,Revenue
Walsall Council,http://opendatacommunities.org/id/metropolitan-district-council/walsall,WC74-495,30/11/2016,Adult Social Care,BLUEBIRD CARE (MID STAFFS),01/11/2016,540.00,73372-DOMICILIARY CARE,OP COMMISSIONING,Third Party Payments,Revenue
Walsall Council,http://opendatacommunities.org/id/metropolitan-district-council/walsall,WC74-496,30/11/2016,Adult Social Care,BLUEBIRD CARE (MID STAFFS),08/11/2016,576.00,73372-DOMICILIARY CARE,OP COMMISSIONING,Third Party Payments,Revenue
Walsall Council,http://opendatacommunities.org/id/metropolitan-district-council/walsall,WC74-497,30/11/2016,Adult Social Care,BLUEBIRD CARE (MID STAFFS),08/11/2016,576.00,73372-DOMICILIARY CARE,OP COMMISSIONING,Third Party Payments,Revenue
Walsall Council,http://opendatacommunities.org/id/metropolitan-district-council/walsall,WC74-498,30/11/2016,Economy & Environment,BOLINDA UK LTD,09/11/2016,"1,449.99",60501-LIBRARY BOOKS,LIBRARY STOCK AND PERFORMANCE,Supplies & Services,Revenue
Walsall Council,http://opendatacommunities.org/id/metropolitan-district-council/walsall,WC74-499,30/11/2016,Economy & Environment,BONINGALE NURSERIES,11/11/2016,"1,100.00",41001-GROUNDS MAINTENANCE,SECTION 106,Premises,Revenue
Walsall Council,http://opendatacommunities.org/id/metropolitan-district-council/walsall,WC74-500,30/11/2016,Economy & Environment,BOOKS ASIA,15/11/2016,267.50,60501-LIBRARY BOOKS,LIBRARY STOCK AND PERFORMANCE,Supplies & Services,Revenue
Walsall Council,http://opendatacommunities.org/id/metropolitan-district-council/walsall,WC74-501,30/11/2016,Childrens,BOULTON TRAVEL LIMITED,02/11/2016,"1,651.00",52000-WITH DRIVER-HIRE OF VEHICLES,SCHOOL TRANSPORT,Transport,Revenue
Walsall Council,http://opendatacommunities.org/id/metropolitan-district-council/walsall,WC74-502,30/11/2016,Childrens,BOULTON TRAVEL LIMITED,02/11/2016,"1,808.00",52000-WITH DRIVER-HIRE OF VEHICLES,SCHOOL TRANSPORT,Transport,Revenue
Walsall Council,http://opendatacommunities.org/id/metropolitan-district-council/walsall,WC74-503,30/11/2016,Adult Social Care,BOWDEN DERRA PARK,29/11/2016,"10,502.76",73373-RESIDENTIAL & NURSING CARE PLACEMENTS,LD COMMISSIONING,Third Party Payments,Revenue
Walsall Council,http://opendatacommunities.org/id/metropolitan-district-council/walsall,WC74-504,30/11/2016,Change and Governance,BRADLEY ENVIRONMENTAL,07/11/2016,234.00,01006-SITE WORKS MAIN CONTRACTORS,CFR 801 ASBESTOS REMOVAL EAST,Capital,Capital
Walsall Council,http://opendatacommunities.org/id/metropolitan-district-council/walsall,WC74-505,30/11/2016,Economy & Environment,BRADVALE LTD T/A INSPIRE HEALTHCARE SERVICES,03/11/2016,288.88,60008-MAINTENANCE-FURNITURE & EQUIPMENT,WALSALL GALA CENTRE,Supplies & Services,Revenue
Walsall Council,http://opendatacommunities.org/id/metropolitan-district-council/walsall,WC74-506,30/11/2016,Economy & Environment,BRADVALE LTD T/A INSPIRE HEALTHCARE SERVICES,02/11/2016,353.23,60008-MAINTENANCE-FURNITURE & EQUIPMENT,BLOXWICH LEISURE CENTRE,Supplies & Services,Revenue
Walsall Council,http://opendatacommunities.org/id/metropolitan-district-council/walsall,WC74-507,30/11/2016,Economy & Environment,BRADVALE LTD T/A INSPIRE HEALTHCARE SERVICES,10/11/2016,418.23,60008-MAINTENANCE-FURNITURE & EQUIPMENT,BLOXWICH LEISURE CENTRE,Supplies & Services,Revenue
Walsall Council,http://opendatacommunities.org/id/metropolitan-district-council/walsall,WC74-508,30/11/2016,Economy & Environment,BRADVALE LTD T/A INSPIRE HEALTHCARE SERVICES,17/11/2016,555.51,60500-GENERAL MATERIALS,ARBORETUM VISITOR CENTRE,Supplies & Services,Revenue
Walsall Council,http://opendatacommunities.org/id/metropolitan-district-council/walsall,WC74-509,30/11/2016,Adult Social Care,REDACTED,07/11/2016,440.00,76422-DIRECT PAYMENTS TO SOCIAL SERVICES CLIENTS,LD COMMISSIONING,Transfer Payments,Revenue
Walsall Council,http://opendatacommunities.org/id/metropolitan-district-council/walsall,WC74-510,30/11/2016,Childrens,REDACTED,07/11/2016,"1,445.32",62515-MISCELLANEOUS SUPPLIES,INTERNAL FOSTER CARE PROVISION,Supplies & Services,Revenue
Walsall Council,http://opendatacommunities.org/id/metropolitan-district-council/walsall,WC74-511,30/11/2016,Childrens,REDACTED,07/11/2016,"1,620.64",74006-HOLIDAY/CHRISTMAS ALLOWANCE-FOSTER CARERS-OTH AGENCY PROVISION,INTERNAL FOSTER CARE PROVISION,Third Party Payments,Revenue
Walsall Council,http://opendatacommunities.org/id/metropolitan-district-council/walsall,WC74-512,30/11/2016,Economy & Environment,BRENNTAG UK LIMITED,01/11/2016,354.50,60503-CHEMICALS & SCIENTIFIC MATS-MATERIALS,OAK PARK,Supplies & Services,Revenue
Walsall Council,http://opendatacommunities.org/id/metropolitan-district-council/walsall,WC74-513,30/11/2016,Economy & Environment,BRENNTAG UK LIMITED,11/11/2016,364.50,60503-CHEMICALS & SCIENTIFIC MATS-MATERIALS,OAK PARK,Supplies & Services,Revenue
Walsall Council,http://opendatacommunities.org/id/metropolitan-district-council/walsall,WC74-514,30/11/2016,Adult Social Care,REDACTED,15/11/2016,"1,337.64",73374-SUPPORTED & OTHER ACCOMMODATION,LD COMMISSIONING,Third Party Payments,Revenue
Walsall Council,http://opendatacommunities.org/id/metropolitan-district-council/walsall,WC74-515,30/11/2016,Adult Social Care,REDACTED,16/11/2016,"1,597.60",73374-SUPPORTED & OTHER ACCOMMODATION,LD COMMISSIONING,Third Party Payments,Revenue
Walsall Council,http://opendatacommunities.org/id/metropolitan-district-council/walsall,WC74-516,30/11/2016,Adult Social Care,REDACTED,07/11/2016,"1,726.40",76422-DIRECT PAYMENTS TO SOCIAL SERVICES CLIENTS,OP COMMISSIONING,Transfer Payments,Revenue
Walsall Council,http://opendatacommunities.org/id/metropolitan-district-council/walsall,WC74-517,30/11/2016,Adult Social Care,REDACTED,07/11/2016,738.00,76422-DIRECT PAYMENTS TO SOCIAL SERVICES CLIENTS,OP COMMISSIONING,Transfer Payments,Revenue
Walsall Council,http://opendatacommunities.org/id/metropolitan-district-council/walsall,WC74-518,30/11/2016,Adult Social Care,BRIDGEWOOD HEALTH CARE LTD,08/11/2016,"5,513.72",73373-RESIDENTIAL & NURSING CARE PLACEMENTS,PD COMMISSIONING,Third Party Payments,Revenue
Walsall Council,http://opendatacommunities.org/id/metropolitan-district-council/walsall,WC74-519,30/11/2016,Childrens,BRIGHT HORIZONS (WISHING WILLOW),21/11/2016,"1,099.63",63120-CRECHE FACILITIES-SERVICES-FEES,FAMILY PLACEMENTS,Supplies & Services,Revenue
Walsall Council,http://opendatacommunities.org/id/metropolitan-district-council/walsall,WC74-520,30/11/2016,Change and Governance,BRISTOW & SUTOR,09/11/2016,328.46,73014-LEGAL FEES-PRIV CONTRACTOR FEES,REVENUES,Third Party Payments,Revenue
Walsall Council,http://opendatacommunities.org/id/metropolitan-district-council/walsall,WC74-521,30/11/2016,Change and Governance,BRISTOW & SUTOR,09/11/2016,542.05,73014-LEGAL FEES-PRIV CONTRACTOR FEES,REVENUES,Third Party Payments,Revenue
Walsall Council,http://opendatacommunities.org/id/metropolitan-district-council/walsall,WC74-522,30/11/2016,Economy & Environment,BRITANNIA APPRENTICESHIPS LTD,07/11/2016,375.00,66500-GRANTS TO OTHER ORGS,RES-WALSALL WORKS,Third Party Payments,Revenue
Walsall Council,http://opendatacommunities.org/id/metropolitan-district-council/walsall,WC74-523,30/11/2016,Change and Governance,BRITISH GAS BUSINESS,24/11/2016,"-20,676.40",42000-GAS-ENERGY COSTS,RECHARGEABLE UTILITIES,Premises,Revenue
Walsall Council,http://opendatacommunities.org/id/metropolitan-district-council/walsall,WC74-524,30/11/2016,Change and Governance,BRITISH GAS BUSINESS,24/11/2016,"-11,556.73",42000-GAS-ENERGY COSTS,RECHARGEABLE UTILITIES,Premises,Revenue
Walsall Council,http://opendatacommunities.org/id/metropolitan-district-council/walsall,WC74-525,30/11/2016,Change and Governance,BRITISH GAS BUSINESS,24/11/2016,"-9,320.78",42000-GAS-ENERGY COSTS,RECHARGEABLE UTILITIES,Premises,Revenue
Walsall Council,http://opendatacommunities.org/id/metropolitan-district-council/walsall,WC74-526,30/11/2016,Change and Governance,BRITISH GAS BUSINESS,24/11/2016,"-7,961.45",42000-GAS-ENERGY COSTS,RECHARGEABLE UTILITIES,Premises,Revenue
Walsall Council,http://opendatacommunities.org/id/metropolitan-district-council/walsall,WC74-527,30/11/2016,Change and Governance,BRITISH GAS BUSINESS,24/11/2016,"-7,355.28",42000-GAS-ENERGY COSTS,RECHARGEABLE UTILITIES,Premises,Revenue
Walsall Council,http://opendatacommunities.org/id/metropolitan-district-council/walsall,WC74-528,30/11/2016,Change and Governance,BRITISH GAS BUSINESS,24/11/2016,"-6,132.18",42000-GAS-ENERGY COSTS,RECHARGEABLE UTILITIES,Premises,Revenue
Walsall Council,http://opendatacommunities.org/id/metropolitan-district-council/walsall,WC74-529,30/11/2016,Change and Governance,BRITISH GAS BUSINESS,24/11/2016,"-5,816.26",42000-GAS-ENERGY COSTS,RECHARGEABLE UTILITIES,Premises,Revenue
Walsall Council,http://opendatacommunities.org/id/metropolitan-district-council/walsall,WC74-530,30/11/2016,Change and Governance,BRITISH GAS BUSINESS,24/11/2016,"-5,636.06",42000-GAS-ENERGY COSTS,RECHARGEABLE UTILITIES,Premises,Revenue
Walsall Council,http://opendatacommunities.org/id/metropolitan-district-council/walsall,WC74-531,30/11/2016,Change and Governance,BRITISH GAS BUSINESS,24/11/2016,"-5,396.15",42000-GAS-ENERGY COSTS,RECHARGEABLE UTILITIES,Premises,Revenue
Walsall Council,http://opendatacommunities.org/id/metropolitan-district-council/walsall,WC74-532,30/11/2016,Change and Governance,BRITISH GAS BUSINESS,24/11/2016,"-4,240.03",42000-GAS-ENERGY COSTS,RECHARGEABLE UTILITIES,Premises,Revenue
Walsall Council,http://opendatacommunities.org/id/metropolitan-district-council/walsall,WC74-533,30/11/2016,Change and Governance,BRITISH GAS BUSINESS,24/11/2016,"-4,123.43",42000-GAS-ENERGY COSTS,RECHARGEABLE UTILITIES,Premises,Revenue
Walsall Council,http://opendatacommunities.org/id/metropolitan-district-council/walsall,WC74-534,30/11/2016,Change and Governance,BRITISH GAS BUSINESS,24/11/2016,"-3,565.16",42000-GAS-ENERGY COSTS,RECHARGEABLE UTILITIES,Premises,Revenue
Walsall Council,http://opendatacommunities.org/id/metropolitan-district-council/walsall,WC74-535,30/11/2016,Change and Governance,BRITISH GAS BUSINESS,24/11/2016,"-3,123.41",42000-GAS-ENERGY COSTS,RECHARGEABLE UTILITIES,Premises,Revenue
Walsall Council,http://opendatacommunities.org/id/metropolitan-district-council/walsall,WC74-536,30/11/2016,Change and Governance,BRITISH GAS BUSINESS,24/11/2016,"-3,100.38",42000-GAS-ENERGY COSTS,RECHARGEABLE UTILITIES,Premises,Revenue
Walsall Council,http://opendatacommunities.org/id/metropolitan-district-council/walsall,WC74-537,30/11/2016,Change and Governance,BRITISH GAS BUSINESS,24/11/2016,"-2,660.42",42000-GAS-ENERGY COSTS,RECHARGEABLE UTILITIES,Premises,Revenue
Walsall Council,http://opendatacommunities.org/id/metropolitan-district-council/walsall,WC74-538,30/11/2016,Change and Governance,BRITISH GAS BUSINESS,24/11/2016,"-2,620.28",42000-GAS-ENERGY COSTS,RECHARGEABLE UTILITIES,Premises,Revenue
Walsall Council,http://opendatacommunities.org/id/metropolitan-district-council/walsall,WC74-539,30/11/2016,Change and Governance,BRITISH GAS BUSINESS,24/11/2016,"-1,804.37",42000-GAS-ENERGY COSTS,RECHARGEABLE UTILITIES,Premises,Revenue
Walsall Council,http://opendatacommunities.org/id/metropolitan-district-council/walsall,WC74-540,30/11/2016,Change and Governance,BRITISH GAS BUSINESS,24/11/2016,-849.95,42000-GAS-ENERGY COSTS,RECHARGEABLE UTILITIES,Premises,Revenue
Walsall Council,http://opendatacommunities.org/id/metropolitan-district-council/walsall,WC74-541,30/11/2016,Change and Governance,BRITISH GAS BUSINESS,16/11/2016,-428.86,42003-ELECTRICITY-ENERGY COSTS,DARLASTON TOWN HALL,Premises,Revenue
Walsall Council,http://opendatacommunities.org/id/metropolitan-district-council/walsall,WC74-542,30/11/2016,Change and Governance,BRITISH GAS BUSINESS,24/11/2016,-361.55,42000-GAS-ENERGY COSTS,DARLASTON TOWN HALL,Premises,Revenue
Walsall Council,http://opendatacommunities.org/id/metropolitan-district-council/walsall,WC74-543,30/11/2016,Change and Governance,BRITISH GAS BUSINESS,16/11/2016,-348.94,42003-ELECTRICITY-ENERGY COSTS,DARLASTON TOWN HALL,Premises,Revenue
Walsall Council,http://opendatacommunities.org/id/metropolitan-district-council/walsall,WC74-544,30/11/2016,Change and Governance,BRITISH GAS BUSINESS,16/11/2016,-343.82,42003-ELECTRICITY-ENERGY COSTS,DARLASTON TOWN HALL,Premises,Revenue
Walsall Council,http://opendatacommunities.org/id/metropolitan-district-council/walsall,WC74-545,30/11/2016,Change and Governance,BRITISH GAS BUSINESS,16/11/2016,-341.56,42003-ELECTRICITY-ENERGY COSTS,DARLASTON TOWN HALL,Premises,Revenue
Walsall Council,http://opendatacommunities.org/id/metropolitan-district-council/walsall,WC74-546,30/11/2016,Change and Governance,BRITISH GAS BUSINESS,24/11/2016,-334.55,42000-GAS-ENERGY COSTS,DARLASTON TOWN HALL,Premises,Revenue
Walsall Council,http://opendatacommunities.org/id/metropolitan-district-council/walsall,WC74-547,30/11/2016,Change and Governance,BRITISH GAS BUSINESS,24/11/2016,-286.16,42000-GAS-ENERGY COSTS,DARLASTON TOWN HALL,Premises,Revenue
Walsall Council,http://opendatacommunities.org/id/metropolitan-district-council/walsall,WC74-548,30/11/2016,Change and Governance,BRITISH GAS BUSINESS,16/11/2016,-278.94,42003-ELECTRICITY-ENERGY COSTS,DARLASTON TOWN HALL,Premises,Revenue
Walsall Council,http://opendatacommunities.org/id/metropolitan-district-council/walsall,WC74-549,30/11/2016,Change and Governance,BRITISH GAS BUSINESS,16/11/2016,-275.47,42003-ELECTRICITY-ENERGY COSTS,DARLASTON TOWN HALL,Premises,Revenue
Walsall Council,http://opendatacommunities.org/id/metropolitan-district-council/walsall,WC74-550,30/11/2016,Change and Governance,BRITISH GAS BUSINESS,11/11/2016,208.52,42000-GAS-ENERGY COSTS,CENTRAL OFFICE ACCOMMODATION,Premises,Revenue
Walsall Council,http://opendatacommunities.org/id/metropolitan-district-council/walsall,WC74-551,30/11/2016,Change and Governance,BRITISH GAS BUSINESS,16/11/2016,223.83,42003-ELECTRICITY-ENERGY COSTS,DARLASTON TOWN HALL,Premises,Revenue
Walsall Council,http://opendatacommunities.org/id/metropolitan-district-council/walsall,WC74-552,30/11/2016,Childrens,BRITISH GAS BUSINESS,17/11/2016,224.42,42000-GAS-ENERGY COSTS,LOCALITY FAMILY SUPPORT-NORTH,Premises,Revenue
Walsall Council,http://opendatacommunities.org/id/metropolitan-district-council/walsall,WC74-553,30/11/2016,Change and Governance,BRITISH GAS BUSINESS,24/11/2016,246.81,42000-GAS-ENERGY COSTS,CENTRALISED ENERGY,Premises,Revenue
Walsall Council,http://opendatacommunities.org/id/metropolitan-district-council/walsall,WC74-554,30/11/2016,Change and Governance,BRITISH GAS BUSINESS,24/11/2016,265.77,42000-GAS-ENERGY COSTS,RECHARGEABLE UTILITIES,Premises,Revenue
Walsall Council,http://opendatacommunities.org/id/metropolitan-district-council/walsall,WC74-555,30/11/2016,Change and Governance,BRITISH GAS BUSINESS,24/11/2016,269.69,42000-GAS-ENERGY COSTS,RECHARGEABLE UTILITIES,Premises,Revenue
Walsall Council,http://opendatacommunities.org/id/metropolitan-district-council/walsall,WC74-556,30/11/2016,Change and Governance,BRITISH GAS BUSINESS,16/11/2016,278.94,42003-ELECTRICITY-ENERGY COSTS,DARLASTON TOWN HALL,Premises,Revenue
Walsall Council,http://opendatacommunities.org/id/metropolitan-district-council/walsall,WC74-557,30/11/2016,Change and Governance,BRITISH GAS BUSINESS,11/11/2016,282.47,42000-GAS-ENERGY COSTS,CENTRALISED ENERGY,Premises,Revenue
Walsall Council,http://opendatacommunities.org/id/metropolitan-district-council/walsall,WC74-558,30/11/2016,Change and Governance,BRITISH GAS BUSINESS,24/11/2016,288.78,42000-GAS-ENERGY COSTS,RECHARGEABLE UTILITIES,Premises,Revenue
Walsall Council,http://opendatacommunities.org/id/metropolitan-district-council/walsall,WC74-559,30/11/2016,Change and Governance,BRITISH GAS BUSINESS,11/11/2016,297.06,42000-GAS-ENERGY COSTS,CENTRALISED ENERGY,Premises,Revenue
Walsall Council,http://opendatacommunities.org/id/metropolitan-district-council/walsall,WC74-560,30/11/2016,Change and Governance,BRITISH GAS BUSINESS,24/11/2016,305.31,42000-GAS-ENERGY COSTS,CENTRALISED ENERGY,Premises,Revenue
Walsall Council,http://opendatacommunities.org/id/metropolitan-district-council/walsall,WC74-561,30/11/2016,Change and Governance,BRITISH GAS BUSINESS,11/11/2016,310.18,42000-GAS-ENERGY COSTS,RECHARGEABLE UTILITIES,Premises,Revenue
Walsall Council,http://opendatacommunities.org/id/metropolitan-district-council/walsall,WC74-562,30/11/2016,Change and Governance,BRITISH GAS BUSINESS,11/11/2016,322.33,42000-GAS-ENERGY COSTS,RECHARGEABLE UTILITIES,Premises,Revenue
Walsall Council,http://opendatacommunities.org/id/metropolitan-district-council/walsall,WC74-563,30/11/2016,Change and Governance,BRITISH GAS BUSINESS,11/11/2016,329.48,42000-GAS-ENERGY COSTS,CENTRALISED ENERGY,Premises,Revenue
Walsall Council,http://opendatacommunities.org/id/metropolitan-district-council/walsall,WC74-564,30/11/2016,Change and Governance,BRITISH GAS BUSINESS,16/11/2016,341.56,42003-ELECTRICITY-ENERGY COSTS,DARLASTON TOWN HALL,Premises,Revenue
Walsall Council,http://opendatacommunities.org/id/metropolitan-district-council/walsall,WC74-565,30/11/2016,Change and Governance,BRITISH GAS BUSINESS,16/11/2016,343.82,42003-ELECTRICITY-ENERGY COSTS,DARLASTON TOWN HALL,Premises,Revenue
Walsall Council,http://opendatacommunities.org/id/metropolitan-district-council/walsall,WC74-566,30/11/2016,Change and Governance,BRITISH GAS BUSINESS,16/11/2016,348.94,42003-ELECTRICITY-ENERGY COSTS,DARLASTON TOWN HALL,Premises,Revenue
Walsall Council,http://opendatacommunities.org/id/metropolitan-district-council/walsall,WC74-567,30/11/2016,Change and Governance,BRITISH GAS BUSINESS,11/11/2016,409.63,42000-GAS-ENERGY COSTS,RECHARGEABLE UTILITIES,Premises,Revenue
Walsall Council,http://opendatacommunities.org/id/metropolitan-district-council/walsall,WC74-568,30/11/2016,Change and Governance,BRITISH GAS BUSINESS,16/11/2016,425.34,42003-ELECTRICITY-ENERGY COSTS,DARLASTON TOWN HALL,Premises,Revenue
Walsall Council,http://opendatacommunities.org/id/metropolitan-district-council/walsall,WC74-569,30/11/2016,Change and Governance,BRITISH GAS BUSINESS,16/11/2016,428.86,42003-ELECTRICITY-ENERGY COSTS,DARLASTON TOWN HALL,Premises,Revenue
Walsall Council,http://opendatacommunities.org/id/metropolitan-district-council/walsall,WC74-570,30/11/2016,Change and Governance,BRITISH GAS BUSINESS,24/11/2016,453.12,42000-GAS-ENERGY COSTS,CENTRALISED ENERGY,Premises,Revenue
Walsall Council,http://opendatacommunities.org/id/metropolitan-district-council/walsall,WC74-571,30/11/2016,Change and Governance,BRITISH GAS BUSINESS,11/11/2016,461.38,42000-GAS-ENERGY COSTS,CENTRALISED ENERGY,Premises,Revenue
Walsall Council,http://opendatacommunities.org/id/metropolitan-district-council/walsall,WC74-572,30/11/2016,Change and Governance,BRITISH GAS BUSINESS,24/11/2016,470.58,42000-GAS-ENERGY COSTS,CENTRALISED ENERGY,Premises,Revenue
Walsall Council,http://opendatacommunities.org/id/metropolitan-district-council/walsall,WC74-573,30/11/2016,Change and Governance,BRITISH GAS BUSINESS,11/11/2016,479.62,42000-GAS-ENERGY COSTS,CENTRALISED ENERGY,Premises,Revenue
Walsall Council,http://opendatacommunities.org/id/metropolitan-district-council/walsall,WC74-574,30/11/2016,Change and Governance,BRITISH GAS BUSINESS,24/11/2016,509.97,42000-GAS-ENERGY COSTS,CENTRALISED ENERGY,Premises,Revenue
Walsall Council,http://opendatacommunities.org/id/metropolitan-district-council/walsall,WC74-575,30/11/2016,Change and Governance,BRITISH GAS BUSINESS,11/11/2016,529.51,42000-GAS-ENERGY COSTS,RECHARGEABLE UTILITIES,Premises,Revenue
Walsall Council,http://opendatacommunities.org/id/metropolitan-district-council/walsall,WC74-576,30/11/2016,Change and Governance,BRITISH GAS BUSINESS,11/11/2016,578.80,42000-GAS-ENERGY COSTS,WALSALL TOWN HALL,Premises,Revenue
Walsall Council,http://opendatacommunities.org/id/metropolitan-district-council/walsall,WC74-577,30/11/2016,Change and Governance,BRITISH GAS BUSINESS,24/11/2016,748.05,42000-GAS-ENERGY COSTS,REDUNDANT BUILDINGS,Premises,Revenue
Walsall Council,http://opendatacommunities.org/id/metropolitan-district-council/walsall,WC74-578,30/11/2016,Change and Governance,BRITISH GAS BUSINESS,11/11/2016,769.10,42000-GAS-ENERGY COSTS,WALSALL TOWN HALL,Premises,Revenue
Walsall Council,http://opendatacommunities.org/id/metropolitan-district-council/walsall,WC74-579,30/11/2016,Change and Governance,BRITISH GAS BUSINESS,11/11/2016,779.42,42000-GAS-ENERGY COSTS,WALSALL TOWN HALL,Premises,Revenue
Walsall Council,http://opendatacommunities.org/id/metropolitan-district-council/walsall,WC74-580,30/11/2016,Change and Governance,BRITISH GAS BUSINESS,11/11/2016,785.98,42000-GAS-ENERGY COSTS,WALSALL TOWN HALL,Premises,Revenue
Walsall Council,http://opendatacommunities.org/id/metropolitan-district-council/walsall,WC74-581,30/11/2016,Change and Governance,BRITISH GAS BUSINESS,11/11/2016,809.62,42000-GAS-ENERGY COSTS,CENTRALISED ENERGY,Premises,Revenue
Walsall Council,http://opendatacommunities.org/id/metropolitan-district-council/walsall,WC74-582,30/11/2016,Change and Governance,BRITISH GAS BUSINESS,24/11/2016,849.95,42000-GAS-ENERGY COSTS,RECHARGEABLE UTILITIES,Premises,Revenue
Walsall Council,http://opendatacommunities.org/id/metropolitan-district-council/walsall,WC74-583,30/11/2016,Change and Governance,BRITISH GAS BUSINESS,24/11/2016,958.08,42000-GAS-ENERGY COSTS,CHALLENGE BUILDING,Premises,Revenue
Walsall Council,http://opendatacommunities.org/id/metropolitan-district-council/walsall,WC74-584,30/11/2016,Change and Governance,BRITISH GAS BUSINESS,24/11/2016,966.35,42000-GAS-ENERGY COSTS,CENTRALISED ENERGY,Premises,Revenue
Walsall Council,http://opendatacommunities.org/id/metropolitan-district-council/walsall,WC74-585,30/11/2016,Change and Governance,BRITISH GAS BUSINESS,24/11/2016,"1,028.17",42000-GAS-ENERGY COSTS,CENTRAL OFFICE ACCOMMODATION,Premises,Revenue
Walsall Council,http://opendatacommunities.org/id/metropolitan-district-council/walsall,WC74-586,30/11/2016,Change and Governance,BRITISH GAS BUSINESS,24/11/2016,"1,214.63",42000-GAS-ENERGY COSTS,RECHARGEABLE UTILITIES,Premises,Revenue
Walsall Council,http://opendatacommunities.org/id/metropolitan-district-council/walsall,WC74-587,30/11/2016,Change and Governance,BRITISH GAS BUSINESS,24/11/2016,"1,221.71",42000-GAS-ENERGY COSTS,RECHARGEABLE UTILITIES,Premises,Revenue
Walsall Council,http://opendatacommunities.org/id/metropolitan-district-council/walsall,WC74-588,30/11/2016,Change and Governance,BRITISH GAS BUSINESS,11/11/2016,"1,230.11",42000-GAS-ENERGY COSTS,CENTRALISED ENERGY,Premises,Revenue
Walsall Council,http://opendatacommunities.org/id/metropolitan-district-council/walsall,WC74-589,30/11/2016,Change and Governance,BRITISH GAS BUSINESS,24/11/2016,"1,389.31",42000-GAS-ENERGY COSTS,CENTRALISED ENERGY,Premises,Revenue
Walsall Council,http://opendatacommunities.org/id/metropolitan-district-council/walsall,WC74-590,30/11/2016,Change and Governance,BRITISH GAS BUSINESS,24/11/2016,"1,580.57",42000-GAS-ENERGY COSTS,CENTRALISED ENERGY,Premises,Revenue
Walsall Council,http://opendatacommunities.org/id/metropolitan-district-council/walsall,WC74-591,30/11/2016,Change and Governance,BRITISH GAS BUSINESS,24/11/2016,"1,639.08",42000-GAS-ENERGY COSTS,RECHARGEABLE UTILITIES,Premises,Revenue
Walsall Council,http://opendatacommunities.org/id/metropolitan-district-council/walsall,WC74-592,30/11/2016,Change and Governance,BRITISH GAS BUSINESS,11/11/2016,"1,652.95",42000-GAS-ENERGY COSTS,WALSALL TOWN HALL,Premises,Revenue
Walsall Council,http://opendatacommunities.org/id/metropolitan-district-council/walsall,WC74-593,30/11/2016,Change and Governance,BRITISH GAS BUSINESS,24/11/2016,"1,850.03",42000-GAS-ENERGY COSTS,RECHARGEABLE UTILITIES,Premises,Revenue
Walsall Council,http://opendatacommunities.org/id/metropolitan-district-council/walsall,WC74-594,30/11/2016,Change and Governance,BRITISH GAS BUSINESS,24/11/2016,"1,910.97",42000-GAS-ENERGY COSTS,RECHARGEABLE UTILITIES,Premises,Revenue
Walsall Council,http://opendatacommunities.org/id/metropolitan-district-council/walsall,WC74-595,30/11/2016,Change and Governance,BRITISH GAS BUSINESS,24/11/2016,"2,142.33",42000-GAS-ENERGY COSTS,RECHARGEABLE UTILITIES,Premises,Revenue
Walsall Council,http://opendatacommunities.org/id/metropolitan-district-council/walsall,WC74-596,30/11/2016,Change and Governance,BRITISH GAS BUSINESS,24/11/2016,"2,720.73",42000-GAS-ENERGY COSTS,RECHARGEABLE UTILITIES,Premises,Revenue
Walsall Council,http://opendatacommunities.org/id/metropolitan-district-council/walsall,WC74-597,30/11/2016,Change and Governance,BRITISH GAS BUSINESS,24/11/2016,"2,740.66",42000-GAS-ENERGY COSTS,CENTRALISED ENERGY,Premises,Revenue
Walsall Council,http://opendatacommunities.org/id/metropolitan-district-council/walsall,WC74-598,30/11/2016,Change and Governance,BRITISH GAS BUSINESS,24/11/2016,"2,974.65",42000-GAS-ENERGY COSTS,CENTRALISED ENERGY,Premises,Revenue
Walsall Council,http://opendatacommunities.org/id/metropolitan-district-council/walsall,WC74-599,30/11/2016,Change and Governance,BRITISH GAS BUSINESS,24/11/2016,"3,372.92",42000-GAS-ENERGY COSTS,RECHARGEABLE UTILITIES,Premises,Revenue
Walsall Council,http://opendatacommunities.org/id/metropolitan-district-council/walsall,WC74-600,30/11/2016,Change and Governance,BRITISH GAS BUSINESS,24/11/2016,"4,066.33",42000-GAS-ENERGY COSTS,RECHARGEABLE UTILITIES,Premises,Revenue
Walsall Council,http://opendatacommunities.org/id/metropolitan-district-council/walsall,WC74-601,30/11/2016,Change and Governance,BRITISH GAS BUSINESS,24/11/2016,"4,082.92",42000-GAS-ENERGY COSTS,RECHARGEABLE UTILITIES,Premises,Revenue
Walsall Council,http://opendatacommunities.org/id/metropolitan-district-council/walsall,WC74-602,30/11/2016,Change and Governance,BRITISH GAS BUSINESS,24/11/2016,"5,014.33",42000-GAS-ENERGY COSTS,RECHARGEABLE UTILITIES,Premises,Revenue
Walsall Council,http://opendatacommunities.org/id/metropolitan-district-council/walsall,WC74-603,30/11/2016,Change and Governance,BRITISH GAS BUSINESS,24/11/2016,"5,786.55",42000-GAS-ENERGY COSTS,RECHARGEABLE UTILITIES,Premises,Revenue
Walsall Council,http://opendatacommunities.org/id/metropolitan-district-council/walsall,WC74-604,30/11/2016,Change and Governance,BRITISH GAS BUSINESS,24/11/2016,"6,057.33",42000-GAS-ENERGY COSTS,RECHARGEABLE UTILITIES,Premises,Revenue
Walsall Council,http://opendatacommunities.org/id/metropolitan-district-council/walsall,WC74-605,30/11/2016,Change and Governance,BRITISH GAS BUSINESS,24/11/2016,"6,168.12",42000-GAS-ENERGY COSTS,RECHARGEABLE UTILITIES,Premises,Revenue
Walsall Council,http://opendatacommunities.org/id/metropolitan-district-council/walsall,WC74-606,30/11/2016,Change and Governance,BRITISH GAS BUSINESS,24/11/2016,"6,418.38",42000-GAS-ENERGY COSTS,RECHARGEABLE UTILITIES,Premises,Revenue
Walsall Council,http://opendatacommunities.org/id/metropolitan-district-council/walsall,WC74-607,30/11/2016,Change and Governance,BRITISH GAS BUSINESS,24/11/2016,"7,961.45",42000-GAS-ENERGY COSTS,RECHARGEABLE UTILITIES,Premises,Revenue
Walsall Council,http://opendatacommunities.org/id/metropolitan-district-council/walsall,WC74-608,30/11/2016,Change and Governance,BRITISH GAS BUSINESS,24/11/2016,"7,991.55",42000-GAS-ENERGY COSTS,RECHARGEABLE UTILITIES,Premises,Revenue
Walsall Council,http://opendatacommunities.org/id/metropolitan-district-council/walsall,WC74-609,30/11/2016,Change and Governance,BRITISH GAS BUSINESS,24/11/2016,"9,320.78",42000-GAS-ENERGY COSTS,RECHARGEABLE UTILITIES,Premises,Revenue
Walsall Council,http://opendatacommunities.org/id/metropolitan-district-council/walsall,WC74-610,30/11/2016,Change and Governance,BRITISH GAS BUSINESS,24/11/2016,"35,389.10",42000-GAS-ENERGY COSTS,RECHARGEABLE UTILITIES,Premises,Revenue
Walsall Council,http://opendatacommunities.org/id/metropolitan-district-council/walsall,WC74-611,30/11/2016,Economy & Environment,BRITISH TELECOMMUNICATIONS LTD,25/11/2016,"5,560.73",01009-SITE WORKS - OTHER CONTRACTORS,CFR 870 M6 JUNCTION 10 IMPROV SCHEME PROG,Capital,Capital
Walsall Council,http://opendatacommunities.org/id/metropolitan-district-council/walsall,WC74-612,30/11/2016,Economy & Environment,BRITTONS FORK LIFT LIMITED,18/11/2016,"1,200.00",62523-EVENTS,ARBORETUM,Supplies & Services,Revenue
Walsall Council,http://opendatacommunities.org/id/metropolitan-district-council/walsall,WC74-613,30/11/2016,Economy & Environment,BROADLAND GROUP LTD,08/11/2016,"2,165.00",01006-SITE WORKS MAIN CONTRACTORS,CFR 1037 ACTIVE LIVING OAK PARK (PRUDENTIAL),Capital,Capital
Walsall Council,http://opendatacommunities.org/id/metropolitan-district-council/walsall,WC74-614,30/11/2016,Economy & Environment,BROADWAY SOUTH ALLOTMENTS,15/11/2016,"1,250.00",66500-GRANTS TO OTHER ORGS,CENTRAL SERVICES ALLOTMENTS,Third Party Payments,Revenue
Walsall Council,http://opendatacommunities.org/id/metropolitan-district-council/walsall,WC74-615,30/11/2016,Holding Accounts,BROWNE JACOBSON SOLICITORS,18/11/2016,594.00,67001-MISC INSURANCES - PAYMENT OF CLAIMS,PUBLIC LIABILITY,Supplies & Services,Revenue
Walsall Council,http://opendatacommunities.org/id/metropolitan-district-council/walsall,WC74-616,30/11/2016,Holding Accounts,BROWNE JACOBSON SOLICITORS,11/11/2016,"1,440.60",67001-MISC INSURANCES - PAYMENT OF CLAIMS,PUBLIC LIABILITY,Supplies & Services,Revenue
Walsall Council,http://opendatacommunities.org/id/metropolitan-district-council/walsall,WC74-617,30/11/2016,Economy & Environment,BROWNHILLS ASPHALT & TARMAC LIMITED,01/11/2016,-350.00,"40000-REPAIRS,ALTERATIONS & MAINTENANCE-PREM",WILLENHALL LAWN CEMETERY,Premises,Revenue
Walsall Council,http://opendatacommunities.org/id/metropolitan-district-council/walsall,WC74-618,30/11/2016,Economy & Environment,BROWNHILLS ASPHALT & TARMAC LIMITED,25/11/2016,365.00,60500-GENERAL MATERIALS,INFRASTRUCTURE MAINTENANCE,Supplies & Services,Revenue
Walsall Council,http://opendatacommunities.org/id/metropolitan-district-council/walsall,WC74-619,30/11/2016,Economy & Environment,BROWNHILLS ASPHALT & TARMAC LIMITED,25/11/2016,365.00,60500-GENERAL MATERIALS,INFRASTRUCTURE MAINTENANCE,Supplies & Services,Revenue
Walsall Council,http://opendatacommunities.org/id/metropolitan-district-council/walsall,WC74-620,30/11/2016,Economy & Environment,BROWNHILLS ASPHALT & TARMAC LIMITED,25/11/2016,525.00,60500-GENERAL MATERIALS,INFRASTRUCTURE MAINTENANCE,Supplies & Services,Revenue
Walsall Council,http://opendatacommunities.org/id/metropolitan-district-council/walsall,WC74-621,30/11/2016,Economy & Environment,BROWNHILLS ASPHALT & TARMAC LIMITED,01/11/2016,546.00,60006-NEW-FURNITURE & EQUIPMENT,INFRASTRUCTURE MAINTENANCE,Supplies & Services,Revenue
Walsall Council,http://opendatacommunities.org/id/metropolitan-district-council/walsall,WC74-622,30/11/2016,Economy & Environment,BROWNHILLS ASPHALT & TARMAC LIMITED,18/11/2016,"6,515.00",01006-SITE WORKS MAIN CONTRACTORS,CFR 1054 ALLOTMENT IMPROVEMENT PROGRAMME,Capital,Capital
Walsall Council,http://opendatacommunities.org/id/metropolitan-district-council/walsall,WC74-623,30/11/2016,Childrens,BROWNHILLS COMMUNITY TECHNICAL COLLEGE,07/11/2016,"2,387.50",52000-WITH DRIVER-HIRE OF VEHICLES,SCHOOL TRANSPORT,Transport,Revenue
Walsall Council,http://opendatacommunities.org/id/metropolitan-district-council/walsall,WC74-624,30/11/2016,Childrens,BROWNHILLS COMMUNITY TECHNICAL COLLEGE,07/11/2016,"2,387.50",52000-WITH DRIVER-HIRE OF VEHICLES,SCHOOL TRANSPORT,Transport,Revenue
Walsall Council,http://opendatacommunities.org/id/metropolitan-district-council/walsall,WC74-625,30/11/2016,Economy & Environment,BROXAP LTD,16/11/2016,17.00,60500-GENERAL MATERIALS,COUNTRYSIDE MANAGEMENT-OTHER,Supplies & Services,Revenue
Walsall Council,http://opendatacommunities.org/id/metropolitan-district-council/walsall,WC74-626,30/11/2016,Economy & Environment,BROXAP LTD,16/11/2016,395.00,60500-GENERAL MATERIALS,ARBORETUM,Supplies & Services,Revenue
Walsall Council,http://opendatacommunities.org/id/metropolitan-district-council/walsall,WC74-627,30/11/2016,Adult Social Care,REDACTED,07/11/2016,"1,530.00",76422-DIRECT PAYMENTS TO SOCIAL SERVICES CLIENTS,LD COMMISSIONING,Transfer Payments,Revenue
Walsall Council,http://opendatacommunities.org/id/metropolitan-district-council/walsall,WC74-628,30/11/2016,Change and Governance,REDACTED,07/11/2016,300.00,"40000-REPAIRS,ALTERATIONS & MAINTENANCE-PREM",CENTRALISED MAINTENANCE,Premises,Revenue
Walsall Council,http://opendatacommunities.org/id/metropolitan-district-council/walsall,WC74-629,30/11/2016,Economy & Environment,REDACTED,09/11/2016,"2,081.25",63000-PROFESSIONAL FEES AND SERVICES,EXTL FUNDED CREATIVE PROJECT MANAGEMENT,Supplies & Services,Revenue
Walsall Council,http://opendatacommunities.org/id/metropolitan-district-council/walsall,WC74-630,30/11/2016,Childrens,REDACTED,07/11/2016,"20,108.57",74036-EXTERNAL RESIDENTIAL CARE-OTH AGENCY PROVISION,INDEPENDENT RESIDENTIAL HOMES,Third Party Payments,Revenue
Walsall Council,http://opendatacommunities.org/id/metropolitan-district-council/walsall,WC74-631,30/11/2016,Change and Governance,BT,01/11/2016,835.00,63603-COST OF CALLS-TELEPHONES,PROCESSING,Supplies & Services,Revenue
Walsall Council,http://opendatacommunities.org/id/metropolitan-district-council/walsall,WC74-632,30/11/2016,Economy & Environment,BT,01/11/2016,"9,222.00",63601-COSTS (NOT INTERNAL RECHARGES)-TELEPHONES,TRAFFIC CONTROL,Supplies & Services,Revenue
Walsall Council,http://opendatacommunities.org/id/metropolitan-district-council/walsall,WC74-633,30/11/2016,Childrens,BT PLC,23/11/2016,361.57,63603-COST OF CALLS-TELEPHONES,SOUTH LOCALITY - SCHOOL READY,Supplies & Services,Revenue
Walsall Council,http://opendatacommunities.org/id/metropolitan-district-council/walsall,WC74-634,30/11/2016,Childrens,BT PLC,23/11/2016,491.87,63603-COST OF CALLS-TELEPHONES,LOCALITY FAMILY SUPPORT-CENTRAL & EAST,Supplies & Services,Revenue
Walsall Council,http://opendatacommunities.org/id/metropolitan-district-council/walsall,WC74-635,30/11/2016,Change and Governance,BT PLC,23/11/2016,"1,251.50",63601-COSTS (NOT INTERNAL RECHARGES)-TELEPHONES,CENTRAL COMMUNICATIONS RECHARGES,Supplies & Services,Revenue
Walsall Council,http://opendatacommunities.org/id/metropolitan-district-council/walsall,WC74-636,30/11/2016,Change and Governance,BT PLC,07/11/2016,"1,268.35",63601-COSTS (NOT INTERNAL RECHARGES)-TELEPHONES,NETWORKS,Supplies & Services,Revenue
Walsall Council,http://opendatacommunities.org/id/metropolitan-district-council/walsall,WC74-637,30/11/2016,Change and Governance,BT PLC,07/11/2016,"1,418.10",63800-COMPUTER EQUIPMENT AND SUPPLIES,RECHARGEABLE EQUIPMENT,Supplies & Services,Revenue
Walsall Council,http://opendatacommunities.org/id/metropolitan-district-council/walsall,WC74-638,30/11/2016,Change and Governance,BT PLC,07/11/2016,"2,190.03",63800-COMPUTER EQUIPMENT AND SUPPLIES,RECHARGEABLE EQUIPMENT,Supplies & Services,Revenue
Walsall Council,http://opendatacommunities.org/id/metropolitan-district-council/walsall,WC74-639,30/11/2016,Childrens,BUFFET EXPRESS LTD,01/11/2016,350.00,61305-CATERING,MY PLACE (REVENUE),Supplies & Services,Revenue
Walsall Council,http://opendatacommunities.org/id/metropolitan-district-council/walsall,WC74-640,30/11/2016,Adult Social Care,BUPA CARE HOMES (CFHCARE) LTD,15/11/2016,"1,649.80",73373-RESIDENTIAL & NURSING CARE PLACEMENTS,OP COMMISSIONING,Third Party Payments,Revenue
Walsall Council,http://opendatacommunities.org/id/metropolitan-district-council/walsall,WC74-641,30/11/2016,Adult Social Care,BUPA CARE HOMES (CFHCARE) LTD,15/11/2016,"1,882.36",73373-RESIDENTIAL & NURSING CARE PLACEMENTS,OP COMMISSIONING,Third Party Payments,Revenue
Walsall Council,http://opendatacommunities.org/id/metropolitan-district-council/walsall,WC74-642,30/11/2016,Adult Social Care,BUPA CARE HOMES (CFHCARE) LTD,15/11/2016,"3,380.20",73373-RESIDENTIAL & NURSING CARE PLACEMENTS,OP COMMISSIONING,Third Party Payments,Revenue
Walsall Council,http://opendatacommunities.org/id/metropolitan-district-council/walsall,WC74-643,30/11/2016,Adult Social Care,BUPA TRENEWYDD CARE HOME,15/11/2016,"1,320.00",73373-RESIDENTIAL & NURSING CARE PLACEMENTS,OP COMMISSIONING,Third Party Payments,Revenue
Walsall Council,http://opendatacommunities.org/id/metropolitan-district-council/walsall,WC74-644,30/11/2016,Adult Social Care,BUPA TRENEWYDD CARE HOME,08/11/2016,"3,008.57",73373-RESIDENTIAL & NURSING CARE PLACEMENTS,OP COMMISSIONING,Third Party Payments,Revenue
Walsall Council,http://opendatacommunities.org/id/metropolitan-district-council/walsall,WC74-645,30/11/2016,Adult Social Care,BUPA TRENEWYDD CARE HOME,08/11/2016,"3,342.86",73373-RESIDENTIAL & NURSING CARE PLACEMENTS,OP COMMISSIONING,Third Party Payments,Revenue
Walsall Council,http://opendatacommunities.org/id/metropolitan-district-council/walsall,WC74-646,30/11/2016,Adult Social Care,BUPA TRENEWYDD CARE HOME,08/11/2016,"3,454.29",73373-RESIDENTIAL & NURSING CARE PLACEMENTS,OP COMMISSIONING,Third Party Payments,Revenue
Walsall Council,http://opendatacommunities.org/id/metropolitan-district-council/walsall,WC74-647,30/11/2016,Adult Social Care,BUPA TRENEWYDD CARE HOME,08/11/2016,"3,454.29",73373-RESIDENTIAL & NURSING CARE PLACEMENTS,OP COMMISSIONING,Third Party Payments,Revenue
Walsall Council,http://opendatacommunities.org/id/metropolitan-district-council/walsall,WC74-648,30/11/2016,Adult Social Care,BUPA TRENEWYDD CARE HOME,15/11/2016,"3,720.00",73373-RESIDENTIAL & NURSING CARE PLACEMENTS,OP COMMISSIONING,Third Party Payments,Revenue
Walsall Council,http://opendatacommunities.org/id/metropolitan-district-council/walsall,WC74-649,30/11/2016,Adult Social Care,BUSH HOME LTD,29/11/2016,"1,568.64",73373-RESIDENTIAL & NURSING CARE PLACEMENTS,OP COMMISSIONING,Third Party Payments,Revenue
Walsall Council,http://opendatacommunities.org/id/metropolitan-district-council/walsall,WC74-650,30/11/2016,Adult Social Care,BUSH HOME LTD,22/11/2016,"1,620.00",73373-RESIDENTIAL & NURSING CARE PLACEMENTS,OP COMMISSIONING,Third Party Payments,Revenue
Walsall Council,http://opendatacommunities.org/id/metropolitan-district-council/walsall,WC74-651,30/11/2016,Adult Social Care,BUSH HOME LTD,22/11/2016,"1,620.00",73373-RESIDENTIAL & NURSING CARE PLACEMENTS,OP COMMISSIONING,Third Party Payments,Revenue
Walsall Council,http://opendatacommunities.org/id/metropolitan-district-council/walsall,WC74-652,30/11/2016,Adult Social Care,BUSH HOME LTD,22/11/2016,"1,620.00",73373-RESIDENTIAL & NURSING CARE PLACEMENTS,OP COMMISSIONING,Third Party Payments,Revenue
Walsall Council,http://opendatacommunities.org/id/metropolitan-district-council/walsall,WC74-653,30/11/2016,Adult Social Care,BUSH HOME LTD,22/11/2016,"1,620.00",73373-RESIDENTIAL & NURSING CARE PLACEMENTS,OP COMMISSIONING,Third Party Payments,Revenue
Walsall Council,http://opendatacommunities.org/id/metropolitan-district-council/walsall,WC74-654,30/11/2016,Adult Social Care,BUSH HOME LTD,22/11/2016,"1,620.00",73373-RESIDENTIAL & NURSING CARE PLACEMENTS,OP COMMISSIONING,Third Party Payments,Revenue
Walsall Council,http://opendatacommunities.org/id/metropolitan-district-council/walsall,WC74-655,30/11/2016,Adult Social Care,BUSH HOME LTD,22/11/2016,"1,800.00",73373-RESIDENTIAL & NURSING CARE PLACEMENTS,OP COMMISSIONING,Third Party Payments,Revenue
Walsall Council,http://opendatacommunities.org/id/metropolitan-district-council/walsall,WC74-656,30/11/2016,Adult Social Care,BUSH HOME LTD,22/11/2016,"1,800.00",73373-RESIDENTIAL & NURSING CARE PLACEMENTS,OP COMMISSIONING,Third Party Payments,Revenue
Walsall Council,http://opendatacommunities.org/id/metropolitan-district-council/walsall,WC74-657,30/11/2016,Adult Social Care,BUSH HOME LTD,22/11/2016,"1,800.00",73373-RESIDENTIAL & NURSING CARE PLACEMENTS,OP COMMISSIONING,Third Party Payments,Revenue
Walsall Council,http://opendatacommunities.org/id/metropolitan-district-council/walsall,WC74-658,30/11/2016,Adult Social Care,BUSH HOME LTD,22/11/2016,"1,800.00",73373-RESIDENTIAL & NURSING CARE PLACEMENTS,OP COMMISSIONING,Third Party Payments,Revenue
Walsall Council,http://opendatacommunities.org/id/metropolitan-district-council/walsall,WC74-659,30/11/2016,Adult Social Care,BUSH HOME LTD,22/11/2016,"1,800.00",73373-RESIDENTIAL & NURSING CARE PLACEMENTS,OP COMMISSIONING,Third Party Payments,Revenue
Walsall Council,http://opendatacommunities.org/id/metropolitan-district-council/walsall,WC74-660,30/11/2016,Adult Social Care,BUSH HOME LTD,22/11/2016,"1,800.00",73373-RESIDENTIAL & NURSING CARE PLACEMENTS,OP COMMISSIONING,Third Party Payments,Revenue
Walsall Council,http://opendatacommunities.org/id/metropolitan-district-council/walsall,WC74-661,30/11/2016,Adult Social Care,BUSH HOME LTD,22/11/2016,"1,800.00",73373-RESIDENTIAL & NURSING CARE PLACEMENTS,OP COMMISSIONING,Third Party Payments,Revenue
Walsall Council,http://opendatacommunities.org/id/metropolitan-district-council/walsall,WC74-662,30/11/2016,Adult Social Care,BUSH HOME LTD,22/11/2016,"1,800.00",73373-RESIDENTIAL & NURSING CARE PLACEMENTS,OP COMMISSIONING,Third Party Payments,Revenue
Walsall Council,http://opendatacommunities.org/id/metropolitan-district-council/walsall,WC74-663,30/11/2016,Adult Social Care,BUSH HOME LTD,22/11/2016,"1,800.00",73373-RESIDENTIAL & NURSING CARE PLACEMENTS,OP COMMISSIONING,Third Party Payments,Revenue
Walsall Council,http://opendatacommunities.org/id/metropolitan-district-council/walsall,WC74-664,30/11/2016,Adult Social Care,BUSH HOME LTD,22/11/2016,"1,800.00",73373-RESIDENTIAL & NURSING CARE PLACEMENTS,OP COMMISSIONING,Third Party Payments,Revenue
Walsall Council,http://opendatacommunities.org/id/metropolitan-district-council/walsall,WC74-665,30/11/2016,Adult Social Care,BUSH HOME LTD,22/11/2016,"1,800.00",73373-RESIDENTIAL & NURSING CARE PLACEMENTS,OP COMMISSIONING,Third Party Payments,Revenue
Walsall Council,http://opendatacommunities.org/id/metropolitan-district-council/walsall,WC74-666,30/11/2016,Adult Social Care,BUSH HOME LTD,22/11/2016,"1,800.00",73373-RESIDENTIAL & NURSING CARE PLACEMENTS,OP COMMISSIONING,Third Party Payments,Revenue
Walsall Council,http://opendatacommunities.org/id/metropolitan-district-council/walsall,WC74-667,30/11/2016,Adult Social Care,BUSH HOME LTD,22/11/2016,"1,800.00",73373-RESIDENTIAL & NURSING CARE PLACEMENTS,OP COMMISSIONING,Third Party Payments,Revenue
Walsall Council,http://opendatacommunities.org/id/metropolitan-district-council/walsall,WC74-668,30/11/2016,Adult Social Care,BUSH HOME LTD,29/11/2016,"1,928.57",73373-RESIDENTIAL & NURSING CARE PLACEMENTS,MH COMMISSIONING,Third Party Payments,Revenue
Walsall Council,http://opendatacommunities.org/id/metropolitan-district-council/walsall,WC74-669,30/11/2016,Adult Social Care,BUSH HOME LTD,29/11/2016,"1,928.57",73373-RESIDENTIAL & NURSING CARE PLACEMENTS,MH COMMISSIONING,Third Party Payments,Revenue
Walsall Council,http://opendatacommunities.org/id/metropolitan-district-council/walsall,WC74-670,30/11/2016,Adult Social Care,BUSH HOME LTD,29/11/2016,"1,928.57",73373-RESIDENTIAL & NURSING CARE PLACEMENTS,MH COMMISSIONING,Third Party Payments,Revenue
Walsall Council,http://opendatacommunities.org/id/metropolitan-district-council/walsall,WC74-671,30/11/2016,Adult Social Care,BUSH HOME LTD,29/11/2016,"1,992.86",73373-RESIDENTIAL & NURSING CARE PLACEMENTS,MH COMMISSIONING,Third Party Payments,Revenue
Walsall Council,http://opendatacommunities.org/id/metropolitan-district-council/walsall,WC74-672,30/11/2016,Adult Social Care,BUSH HOME LTD,29/11/2016,"1,992.86",73373-RESIDENTIAL & NURSING CARE PLACEMENTS,MH COMMISSIONING,Third Party Payments,Revenue
Walsall Council,http://opendatacommunities.org/id/metropolitan-district-council/walsall,WC74-673,30/11/2016,Childrens,BY THE BRIDGE,07/11/2016,"3,049.50",74037-INDEPENDENT FOSTER CARE-OTH AGENCY PROVISION,EXTERNAL FOSTER CARE PROVISION,Third Party Payments,Revenue
Walsall Council,http://opendatacommunities.org/id/metropolitan-district-council/walsall,WC74-674,30/11/2016,Childrens,BY THE BRIDGE,07/11/2016,"3,129.00",74037-INDEPENDENT FOSTER CARE-OTH AGENCY PROVISION,EXTERNAL FOSTER CARE PROVISION,Third Party Payments,Revenue
Walsall Council,http://opendatacommunities.org/id/metropolitan-district-council/walsall,WC74-675,30/11/2016,Childrens,BY THE BRIDGE,07/11/2016,"3,253.20",74037-INDEPENDENT FOSTER CARE-OTH AGENCY PROVISION,EXTERNAL FOSTER CARE PROVISION,Third Party Payments,Revenue
Walsall Council,http://opendatacommunities.org/id/metropolitan-district-council/walsall,WC74-676,30/11/2016,Childrens,BY THE BRIDGE,07/11/2016,"3,321.43",74037-INDEPENDENT FOSTER CARE-OTH AGENCY PROVISION,EXTERNAL FOSTER CARE PROVISION,Third Party Payments,Revenue
Walsall Council,http://opendatacommunities.org/id/metropolitan-district-council/walsall,WC74-677,30/11/2016,Childrens,BY THE BRIDGE,07/11/2016,"4,789.29",74037-INDEPENDENT FOSTER CARE-OTH AGENCY PROVISION,EXTERNAL FOSTER CARE PROVISION,Third Party Payments,Revenue
Walsall Council,http://opendatacommunities.org/id/metropolitan-district-council/walsall,WC74-678,30/11/2016,Adult Social Care,C & V ORCHARD MANOR LTD,22/11/2016,257.14,73373-RESIDENTIAL & NURSING CARE PLACEMENTS,OP COMMISSIONING,Third Party Payments,Revenue
Walsall Council,http://opendatacommunities.org/id/metropolitan-district-council/walsall,WC74-679,30/11/2016,Adult Social Care,C & V ORCHARD MANOR LTD,22/11/2016,"1,542.86",73373-RESIDENTIAL & NURSING CARE PLACEMENTS,OP COMMISSIONING,Third Party Payments,Revenue
Walsall Council,http://opendatacommunities.org/id/metropolitan-district-council/walsall,WC74-680,30/11/2016,Adult Social Care,C & V ORCHARD MANOR LTD,22/11/2016,"1,620.00",73373-RESIDENTIAL & NURSING CARE PLACEMENTS,OP COMMISSIONING,Third Party Payments,Revenue
Walsall Council,http://opendatacommunities.org/id/metropolitan-district-council/walsall,WC74-681,30/11/2016,Adult Social Care,C & V ORCHARD MANOR LTD,22/11/2016,"1,620.00",73373-RESIDENTIAL & NURSING CARE PLACEMENTS,LD COMMISSIONING,Third Party Payments,Revenue
Walsall Council,http://opendatacommunities.org/id/metropolitan-district-council/walsall,WC74-682,30/11/2016,Adult Social Care,C & V ORCHARD MANOR LTD,22/11/2016,"1,620.00",73373-RESIDENTIAL & NURSING CARE PLACEMENTS,OP COMMISSIONING,Third Party Payments,Revenue
Walsall Council,http://opendatacommunities.org/id/metropolitan-district-council/walsall,WC74-683,30/11/2016,Adult Social Care,C & V ORCHARD MANOR LTD,22/11/2016,"1,620.00",73373-RESIDENTIAL & NURSING CARE PLACEMENTS,MH COMMISSIONING,Third Party Payments,Revenue
Walsall Council,http://opendatacommunities.org/id/metropolitan-district-council/walsall,WC74-684,30/11/2016,Adult Social Care,C & V ORCHARD MANOR LTD,22/11/2016,"1,620.00",73373-RESIDENTIAL & NURSING CARE PLACEMENTS,MH COMMISSIONING,Third Party Payments,Revenue
Walsall Council,http://opendatacommunities.org/id/metropolitan-district-council/walsall,WC74-685,30/11/2016,Adult Social Care,C & V ORCHARD MANOR LTD,22/11/2016,"1,620.00",73373-RESIDENTIAL & NURSING CARE PLACEMENTS,MH COMMISSIONING,Third Party Payments,Revenue
Walsall Council,http://opendatacommunities.org/id/metropolitan-district-council/walsall,WC74-686,30/11/2016,Adult Social Care,C & V ORCHARD MANOR LTD,22/11/2016,"1,620.60",73373-RESIDENTIAL & NURSING CARE PLACEMENTS,OP COMMISSIONING,Third Party Payments,Revenue
Walsall Council,http://opendatacommunities.org/id/metropolitan-district-council/walsall,WC74-687,30/11/2016,Adult Social Care,C & V ORCHARD MANOR LTD,22/11/2016,"1,800.00",73373-RESIDENTIAL & NURSING CARE PLACEMENTS,OP COMMISSIONING,Third Party Payments,Revenue
Walsall Council,http://opendatacommunities.org/id/metropolitan-district-council/walsall,WC74-688,30/11/2016,Adult Social Care,C & V ORCHARD MANOR LTD,22/11/2016,"1,800.00",73373-RESIDENTIAL & NURSING CARE PLACEMENTS,OP COMMISSIONING,Third Party Payments,Revenue
Walsall Council,http://opendatacommunities.org/id/metropolitan-district-council/walsall,WC74-689,30/11/2016,Adult Social Care,C & V ORCHARD MANOR LTD,22/11/2016,"1,800.00",73373-RESIDENTIAL & NURSING CARE PLACEMENTS,MH COMMISSIONING,Third Party Payments,Revenue
Walsall Council,http://opendatacommunities.org/id/metropolitan-district-council/walsall,WC74-690,30/11/2016,Adult Social Care,C & V ORCHARD MANOR LTD,22/11/2016,"1,800.00",73373-RESIDENTIAL & NURSING CARE PLACEMENTS,MH COMMISSIONING,Third Party Payments,Revenue
Walsall Council,http://opendatacommunities.org/id/metropolitan-district-council/walsall,WC74-691,30/11/2016,Adult Social Care,C & V ORCHARD MANOR LTD,22/11/2016,"3,600.00",73373-RESIDENTIAL & NURSING CARE PLACEMENTS,OP COMMISSIONING,Third Party Payments,Revenue
Walsall Council,http://opendatacommunities.org/id/metropolitan-district-council/walsall,WC74-692,30/11/2016,Adult Social Care,C & V ORCHARD RESIDENTIAL LTD,01/11/2016,"1,620.00",73373-RESIDENTIAL & NURSING CARE PLACEMENTS,OP COMMISSIONING,Third Party Payments,Revenue
Walsall Council,http://opendatacommunities.org/id/metropolitan-district-council/walsall,WC74-693,30/11/2016,Adult Social Care,C & V ORCHARD RESIDENTIAL LTD,22/11/2016,"1,620.00",73373-RESIDENTIAL & NURSING CARE PLACEMENTS,OP COMMISSIONING,Third Party Payments,Revenue
Walsall Council,http://opendatacommunities.org/id/metropolitan-district-council/walsall,WC74-694,30/11/2016,Adult Social Care,C & V ORCHARD RESIDENTIAL LTD,22/11/2016,"1,620.00",73373-RESIDENTIAL & NURSING CARE PLACEMENTS,OP COMMISSIONING,Third Party Payments,Revenue
Walsall Council,http://opendatacommunities.org/id/metropolitan-district-council/walsall,WC74-695,30/11/2016,Adult Social Care,C & V ORCHARD RESIDENTIAL LTD,22/11/2016,"1,799.96",73373-RESIDENTIAL & NURSING CARE PLACEMENTS,OP COMMISSIONING,Third Party Payments,Revenue
Walsall Council,http://opendatacommunities.org/id/metropolitan-district-council/walsall,WC74-696,30/11/2016,Adult Social Care,C & V ORCHARD RESIDENTIAL LTD,01/11/2016,"1,800.00",73373-RESIDENTIAL & NURSING CARE PLACEMENTS,OP COMMISSIONING,Third Party Payments,Revenue
Walsall Council,http://opendatacommunities.org/id/metropolitan-district-council/walsall,WC74-697,30/11/2016,Adult Social Care,C & V ORCHARD RESIDENTIAL LTD,01/11/2016,"1,800.00",73373-RESIDENTIAL & NURSING CARE PLACEMENTS,OP COMMISSIONING,Third Party Payments,Revenue
Walsall Council,http://opendatacommunities.org/id/metropolitan-district-council/walsall,WC74-698,30/11/2016,Adult Social Care,C & V ORCHARD RESIDENTIAL LTD,22/11/2016,"1,800.00",73373-RESIDENTIAL & NURSING CARE PLACEMENTS,OP COMMISSIONING,Third Party Payments,Revenue
Walsall Council,http://opendatacommunities.org/id/metropolitan-district-council/walsall,WC74-699,30/11/2016,Adult Social Care,C & V ORCHARD RESIDENTIAL LTD,22/11/2016,"1,800.00",73373-RESIDENTIAL & NURSING CARE PLACEMENTS,OP COMMISSIONING,Third Party Payments,Revenue
Walsall Council,http://opendatacommunities.org/id/metropolitan-district-council/walsall,WC74-700,30/11/2016,Adult Social Care,C & V ORCHARD RESIDENTIAL LTD,22/11/2016,"1,800.00",73373-RESIDENTIAL & NURSING CARE PLACEMENTS,OP COMMISSIONING,Third Party Payments,Revenue
Walsall Council,http://opendatacommunities.org/id/metropolitan-district-council/walsall,WC74-701,30/11/2016,Adult Social Care,C & V ORCHARD RESIDENTIAL LTD,22/11/2016,"1,800.00",73373-RESIDENTIAL & NURSING CARE PLACEMENTS,OP COMMISSIONING,Third Party Payments,Revenue
Walsall Council,http://opendatacommunities.org/id/metropolitan-district-council/walsall,WC74-702,30/11/2016,Adult Social Care,C & V ORCHARD RESIDENTIAL LTD,22/11/2016,"1,800.00",73373-RESIDENTIAL & NURSING CARE PLACEMENTS,OP COMMISSIONING,Third Party Payments,Revenue
Walsall Council,http://opendatacommunities.org/id/metropolitan-district-council/walsall,WC74-703,30/11/2016,Adult Social Care,C & V ORCHARD RESIDENTIAL LTD,22/11/2016,"1,800.00",73373-RESIDENTIAL & NURSING CARE PLACEMENTS,OP COMMISSIONING,Third Party Payments,Revenue
Walsall Council,http://opendatacommunities.org/id/metropolitan-district-council/walsall,WC74-704,30/11/2016,Adult Social Care,C & V ORCHARD RESIDENTIAL LTD,22/11/2016,"1,800.00",73373-RESIDENTIAL & NURSING CARE PLACEMENTS,MH COMMISSIONING,Third Party Payments,Revenue
Walsall Council,http://opendatacommunities.org/id/metropolitan-district-council/walsall,WC74-705,30/11/2016,Adult Social Care,C & V ORCHARD RESIDENTIAL LTD,22/11/2016,"1,800.00",73373-RESIDENTIAL & NURSING CARE PLACEMENTS,OP COMMISSIONING,Third Party Payments,Revenue
Walsall Council,http://opendatacommunities.org/id/metropolitan-district-council/walsall,WC74-706,30/11/2016,Adult Social Care,C & V ORCHARD RESIDENTIAL LTD,29/11/2016,"1,800.00",73373-RESIDENTIAL & NURSING CARE PLACEMENTS,OP COMMISSIONING,Third Party Payments,Revenue
Walsall Council,http://opendatacommunities.org/id/metropolitan-district-council/walsall,WC74-707,30/11/2016,Economy & Environment,C ART ART TRANSPORT LTD,21/11/2016,137.50,73032-TRANSPORTATION-PRIV CONTRACTOR FEES,NAG - GARMAN RYAN/PERMANENT COLLECTION,Third Party Payments,Revenue
Walsall Council,http://opendatacommunities.org/id/metropolitan-district-council/walsall,WC74-708,30/11/2016,Economy & Environment,C ART ART TRANSPORT LTD,21/11/2016,275.00,73032-TRANSPORTATION-PRIV CONTRACTOR FEES,NAG - TEMPORARY EXHIBITIONS,Third Party Payments,Revenue
Walsall Council,http://opendatacommunities.org/id/metropolitan-district-council/walsall,WC74-709,30/11/2016,Economy & Environment,C ART ART TRANSPORT LTD,21/11/2016,660.00,73032-TRANSPORTATION-PRIV CONTRACTOR FEES,NAG - TEMPORARY EXHIBITIONS,Third Party Payments,Revenue
Walsall Council,http://opendatacommunities.org/id/metropolitan-district-council/walsall,WC74-710,30/11/2016,Economy & Environment,C ART ART TRANSPORT LTD,21/11/2016,"1,345.50",73032-TRANSPORTATION-PRIV CONTRACTOR FEES,NAG - TEMPORARY EXHIBITIONS,Third Party Payments,Revenue
Walsall Council,http://opendatacommunities.org/id/metropolitan-district-council/walsall,WC74-711,30/11/2016,Economy & Environment,C ART ART TRANSPORT LTD,21/11/2016,"2,135.00",73032-TRANSPORTATION-PRIV CONTRACTOR FEES,NAG - TEMPORARY EXHIBITIONS,Third Party Payments,Revenue
Walsall Council,http://opendatacommunities.org/id/metropolitan-district-council/walsall,WC74-712,30/11/2016,Childrens,REDACTED,07/11/2016,"4,317.64",62515-MISCELLANEOUS SUPPLIES,INTERNAL FOSTER CARE PROVISION,Supplies & Services,Revenue
Walsall Council,http://opendatacommunities.org/id/metropolitan-district-council/walsall,WC74-713,30/11/2016,Childrens,REDACTED,07/11/2016,"5,160.58",74006-HOLIDAY/CHRISTMAS ALLOWANCE-FOSTER CARERS-OTH AGENCY PROVISION,INTERNAL FOSTER CARE PROVISION,Third Party Payments,Revenue
Walsall Council,http://opendatacommunities.org/id/metropolitan-district-council/walsall,WC74-714,30/11/2016,Childrens,REDACTED,07/11/2016,"1,445.32",62515-MISCELLANEOUS SUPPLIES,INTERNAL FOSTER CARE PROVISION,Supplies & Services,Revenue
Walsall Council,http://opendatacommunities.org/id/metropolitan-district-council/walsall,WC74-715,30/11/2016,Childrens,REDACTED,07/11/2016,"1,620.64",74006-HOLIDAY/CHRISTMAS ALLOWANCE-FOSTER CARERS-OTH AGENCY PROVISION,INTERNAL FOSTER CARE PROVISION,Third Party Payments,Revenue
Walsall Council,http://opendatacommunities.org/id/metropolitan-district-council/walsall,WC74-716,30/11/2016,Economy & Environment,C P DAVIDSON & SONS LTD,24/11/2016,227.50,73025-PROFESSIONAL SERVICES-PRIV CONTRACTOR & OTHER AGENCIES,FLEET,Third Party Payments,Revenue
Walsall Council,http://opendatacommunities.org/id/metropolitan-district-council/walsall,WC74-717,30/11/2016,Economy & Environment,C P DAVIDSON & SONS LTD,09/11/2016,390.00,73025-PROFESSIONAL SERVICES-PRIV CONTRACTOR & OTHER AGENCIES,FLEET,Third Party Payments,Revenue
Walsall Council,http://opendatacommunities.org/id/metropolitan-district-council/walsall,WC74-718,30/11/2016,Economy & Environment,C P DAVIDSON & SONS LTD,23/11/2016,833.27,60500-GENERAL MATERIALS,FLEET,Supplies & Services,Revenue
Walsall Council,http://opendatacommunities.org/id/metropolitan-district-council/walsall,WC74-719,30/11/2016,Childrens,REDACTED,21/11/2016,"1,527.95",74006-HOLIDAY/CHRISTMAS ALLOWANCE-FOSTER CARERS-OTH AGENCY PROVISION,INTERNAL FOSTER CARE PROVISION,Third Party Payments,Revenue
Walsall Council,http://opendatacommunities.org/id/metropolitan-district-council/walsall,WC74-720,30/11/2016,Adult Social Care,CALDENE  REST HOME,01/11/2016,"1,620.00",73373-RESIDENTIAL & NURSING CARE PLACEMENTS,OP COMMISSIONING,Third Party Payments,Revenue
Walsall Council,http://opendatacommunities.org/id/metropolitan-district-council/walsall,WC74-721,30/11/2016,Adult Social Care,CALDENE  REST HOME,01/11/2016,"1,620.00",73373-RESIDENTIAL & NURSING CARE PLACEMENTS,OP COMMISSIONING,Third Party Payments,Revenue
Walsall Council,http://opendatacommunities.org/id/metropolitan-district-council/walsall,WC74-722,30/11/2016,Adult Social Care,CALDENE  REST HOME,01/11/2016,"1,620.00",73373-RESIDENTIAL & NURSING CARE PLACEMENTS,OP COMMISSIONING,Third Party Payments,Revenue
Walsall Council,http://opendatacommunities.org/id/metropolitan-district-council/walsall,WC74-723,30/11/2016,Adult Social Care,CALDENE  REST HOME,01/11/2016,"1,620.00",73373-RESIDENTIAL & NURSING CARE PLACEMENTS,OP COMMISSIONING,Third Party Payments,Revenue
Walsall Council,http://opendatacommunities.org/id/metropolitan-district-council/walsall,WC74-724,30/11/2016,Adult Social Care,CALDMORE AREA HOUSING ASS LTD,28/11/2016,282.72,73374-SUPPORTED & OTHER ACCOMMODATION,OP COMMISSIONING,Third Party Payments,Revenue
Walsall Council,http://opendatacommunities.org/id/metropolitan-district-council/walsall,WC74-725,30/11/2016,Adult Social Care,CALDMORE AREA HOUSING ASS LTD,28/11/2016,394.63,73372-DOMICILIARY CARE,MH COMMISSIONING,Third Party Payments,Revenue
Walsall Council,http://opendatacommunities.org/id/metropolitan-district-council/walsall,WC74-726,30/11/2016,Adult Social Care,CALDMORE AREA HOUSING ASS LTD,28/11/2016,424.08,73372-DOMICILIARY CARE,MH COMMISSIONING,Third Party Payments,Revenue
Walsall Council,http://opendatacommunities.org/id/metropolitan-district-council/walsall,WC74-727,30/11/2016,Adult Social Care,CALDMORE AREA HOUSING ASS LTD,28/11/2016,515.00,73374-SUPPORTED & OTHER ACCOMMODATION,LD COMMISSIONING,Third Party Payments,Revenue
Walsall Council,http://opendatacommunities.org/id/metropolitan-district-council/walsall,WC74-728,30/11/2016,Adult Social Care,CALDMORE AREA HOUSING ASS LTD,29/11/2016,530.85,73373-RESIDENTIAL & NURSING CARE PLACEMENTS,MH COMMISSIONING,Third Party Payments,Revenue
Walsall Council,http://opendatacommunities.org/id/metropolitan-district-council/walsall,WC74-729,30/11/2016,Adult Social Care,CALDMORE AREA HOUSING ASS LTD,29/11/2016,530.85,73373-RESIDENTIAL & NURSING CARE PLACEMENTS,MH COMMISSIONING,Third Party Payments,Revenue
Walsall Council,http://opendatacommunities.org/id/metropolitan-district-council/walsall,WC74-730,30/11/2016,Adult Social Care,CALDMORE AREA HOUSING ASS LTD,01/11/2016,542.79,73373-RESIDENTIAL & NURSING CARE PLACEMENTS,MH COMMISSIONING,Third Party Payments,Revenue
Walsall Council,http://opendatacommunities.org/id/metropolitan-district-council/walsall,WC74-731,30/11/2016,Adult Social Care,CALDMORE AREA HOUSING ASS LTD,28/11/2016,556.20,73374-SUPPORTED & OTHER ACCOMMODATION,LD COMMISSIONING,Third Party Payments,Revenue
Walsall Council,http://opendatacommunities.org/id/metropolitan-district-council/walsall,WC74-732,30/11/2016,Adult Social Care,CALDMORE AREA HOUSING ASS LTD,28/11/2016,576.80,73374-SUPPORTED & OTHER ACCOMMODATION,LD COMMISSIONING,Third Party Payments,Revenue
Walsall Council,http://opendatacommunities.org/id/metropolitan-district-council/walsall,WC74-733,30/11/2016,Adult Social Care,CALDMORE AREA HOUSING ASS LTD,28/11/2016,576.80,73374-SUPPORTED & OTHER ACCOMMODATION,LD COMMISSIONING,Third Party Payments,Revenue
Walsall Council,http://opendatacommunities.org/id/metropolitan-district-council/walsall,WC74-734,30/11/2016,Adult Social Care,CALDMORE AREA HOUSING ASS LTD,28/11/2016,576.80,73374-SUPPORTED & OTHER ACCOMMODATION,LD COMMISSIONING,Third Party Payments,Revenue
Walsall Council,http://opendatacommunities.org/id/metropolitan-district-council/walsall,WC74-735,30/11/2016,Adult Social Care,CALDMORE AREA HOUSING ASS LTD,28/11/2016,576.80,73374-SUPPORTED & OTHER ACCOMMODATION,LD COMMISSIONING,Third Party Payments,Revenue
Walsall Council,http://opendatacommunities.org/id/metropolitan-district-council/walsall,WC74-736,30/11/2016,Adult Social Care,CALDMORE AREA HOUSING ASS LTD,28/11/2016,576.80,73374-SUPPORTED & OTHER ACCOMMODATION,LD COMMISSIONING,Third Party Payments,Revenue
Walsall Council,http://opendatacommunities.org/id/metropolitan-district-council/walsall,WC74-737,30/11/2016,Adult Social Care,CALDMORE AREA HOUSING ASS LTD,28/11/2016,576.80,73374-SUPPORTED & OTHER ACCOMMODATION,LD COMMISSIONING,Third Party Payments,Revenue
Walsall Council,http://opendatacommunities.org/id/metropolitan-district-council/walsall,WC74-738,30/11/2016,Adult Social Care,CALDMORE AREA HOUSING ASS LTD,28/11/2016,576.80,73374-SUPPORTED & OTHER ACCOMMODATION,LD COMMISSIONING,Third Party Payments,Revenue
Walsall Council,http://opendatacommunities.org/id/metropolitan-district-council/walsall,WC74-739,30/11/2016,Adult Social Care,CALDMORE AREA HOUSING ASS LTD,28/11/2016,576.80,73374-SUPPORTED & OTHER ACCOMMODATION,LD COMMISSIONING,Third Party Payments,Revenue
Walsall Council,http://opendatacommunities.org/id/metropolitan-district-council/walsall,WC74-740,30/11/2016,Adult Social Care,CALDMORE AREA HOUSING ASS LTD,28/11/2016,576.80,73374-SUPPORTED & OTHER ACCOMMODATION,MH COMMISSIONING,Third Party Payments,Revenue
Walsall Council,http://opendatacommunities.org/id/metropolitan-district-council/walsall,WC74-741,30/11/2016,Adult Social Care,CALDMORE AREA HOUSING ASS LTD,28/11/2016,576.80,73374-SUPPORTED & OTHER ACCOMMODATION,MH COMMISSIONING,Third Party Payments,Revenue
Walsall Council,http://opendatacommunities.org/id/metropolitan-district-council/walsall,WC74-742,30/11/2016,Adult Social Care,CALDMORE AREA HOUSING ASS LTD,28/11/2016,576.80,73374-SUPPORTED & OTHER ACCOMMODATION,MH COMMISSIONING,Third Party Payments,Revenue
Walsall Council,http://opendatacommunities.org/id/metropolitan-district-council/walsall,WC74-743,30/11/2016,Adult Social Care,CALDMORE AREA HOUSING ASS LTD,01/11/2016,633.26,73373-RESIDENTIAL & NURSING CARE PLACEMENTS,MH COMMISSIONING,Third Party Payments,Revenue
Walsall Council,http://opendatacommunities.org/id/metropolitan-district-council/walsall,WC74-744,30/11/2016,Adult Social Care,CALDMORE AREA HOUSING ASS LTD,01/11/2016,633.26,73373-RESIDENTIAL & NURSING CARE PLACEMENTS,MH COMMISSIONING,Third Party Payments,Revenue
Walsall Council,http://opendatacommunities.org/id/metropolitan-district-council/walsall,WC74-745,30/11/2016,Adult Social Care,CALDMORE AREA HOUSING ASS LTD,01/11/2016,633.26,73373-RESIDENTIAL & NURSING CARE PLACEMENTS,MH COMMISSIONING,Third Party Payments,Revenue
Walsall Council,http://opendatacommunities.org/id/metropolitan-district-council/walsall,WC74-746,30/11/2016,Adult Social Care,CALDMORE AREA HOUSING ASS LTD,28/11/2016,638.60,73374-SUPPORTED & OTHER ACCOMMODATION,LD COMMISSIONING,Third Party Payments,Revenue
Walsall Council,http://opendatacommunities.org/id/metropolitan-district-council/walsall,WC74-747,30/11/2016,Adult Social Care,CALDMORE AREA HOUSING ASS LTD,28/11/2016,679.80,73374-SUPPORTED & OTHER ACCOMMODATION,LD COMMISSIONING,Third Party Payments,Revenue
Walsall Council,http://opendatacommunities.org/id/metropolitan-district-council/walsall,WC74-748,30/11/2016,Adult Social Care,CALDMORE AREA HOUSING ASS LTD,28/11/2016,721.00,73374-SUPPORTED & OTHER ACCOMMODATION,LD COMMISSIONING,Third Party Payments,Revenue
Walsall Council,http://opendatacommunities.org/id/metropolitan-district-council/walsall,WC74-749,30/11/2016,Adult Social Care,CALDMORE AREA HOUSING ASS LTD,28/11/2016,721.00,73374-SUPPORTED & OTHER ACCOMMODATION,LD COMMISSIONING,Third Party Payments,Revenue
Walsall Council,http://opendatacommunities.org/id/metropolitan-district-council/walsall,WC74-750,30/11/2016,Adult Social Care,CALDMORE AREA HOUSING ASS LTD,28/11/2016,721.00,73374-SUPPORTED & OTHER ACCOMMODATION,LD COMMISSIONING,Third Party Payments,Revenue
Walsall Council,http://opendatacommunities.org/id/metropolitan-district-council/walsall,WC74-751,30/11/2016,Adult Social Care,CALDMORE AREA HOUSING ASS LTD,28/11/2016,721.00,73374-SUPPORTED & OTHER ACCOMMODATION,LD COMMISSIONING,Third Party Payments,Revenue
Walsall Council,http://opendatacommunities.org/id/metropolitan-district-council/walsall,WC74-752,30/11/2016,Adult Social Care,CALDMORE AREA HOUSING ASS LTD,28/11/2016,721.00,73374-SUPPORTED & OTHER ACCOMMODATION,LD COMMISSIONING,Third Party Payments,Revenue
Walsall Council,http://opendatacommunities.org/id/metropolitan-district-council/walsall,WC74-753,30/11/2016,Adult Social Care,CALDMORE AREA HOUSING ASS LTD,28/11/2016,721.00,73374-SUPPORTED & OTHER ACCOMMODATION,LD COMMISSIONING,Third Party Payments,Revenue
Walsall Council,http://opendatacommunities.org/id/metropolitan-district-council/walsall,WC74-754,30/11/2016,Adult Social Care,CALDMORE AREA HOUSING ASS LTD,08/11/2016,"1,266.52",73373-RESIDENTIAL & NURSING CARE PLACEMENTS,OP COMMISSIONING,Third Party Payments,Revenue
Walsall Council,http://opendatacommunities.org/id/metropolitan-district-council/walsall,WC74-755,30/11/2016,Adult Social Care,CALDMORE AREA HOUSING ASS LTD,08/11/2016,"2,533.04",73373-RESIDENTIAL & NURSING CARE PLACEMENTS,MH COMMISSIONING,Third Party Payments,Revenue
Walsall Council,http://opendatacommunities.org/id/metropolitan-district-council/walsall,WC74-756,30/11/2016,Adult Social Care,CALDMORE AREA HOUSING ASS LTD,08/11/2016,"2,533.04",73373-RESIDENTIAL & NURSING CARE PLACEMENTS,MH COMMISSIONING,Third Party Payments,Revenue
Walsall Council,http://opendatacommunities.org/id/metropolitan-district-council/walsall,WC74-757,30/11/2016,Adult Social Care,CALDMORE AREA HOUSING ASS LTD,08/11/2016,"2,533.04",73373-RESIDENTIAL & NURSING CARE PLACEMENTS,MH COMMISSIONING,Third Party Payments,Revenue
Walsall Council,http://opendatacommunities.org/id/metropolitan-district-council/walsall,WC74-758,30/11/2016,Adult Social Care,CALDMORE AREA HOUSING ASS LTD,08/11/2016,"2,533.04",73373-RESIDENTIAL & NURSING CARE PLACEMENTS,MH COMMISSIONING,Third Party Payments,Revenue
Walsall Council,http://opendatacommunities.org/id/metropolitan-district-council/walsall,WC74-759,30/11/2016,Adult Social Care,CALDMORE AREA HOUSING ASS LTD,08/11/2016,"2,533.04",73373-RESIDENTIAL & NURSING CARE PLACEMENTS,MH COMMISSIONING,Third Party Payments,Revenue
Walsall Council,http://opendatacommunities.org/id/metropolitan-district-council/walsall,WC74-760,30/11/2016,Adult Social Care,CALDMORE AREA HOUSING ASS LTD,08/11/2016,"2,533.04",73373-RESIDENTIAL & NURSING CARE PLACEMENTS,MH COMMISSIONING,Third Party Payments,Revenue
Walsall Council,http://opendatacommunities.org/id/metropolitan-district-council/walsall,WC74-761,30/11/2016,Adult Social Care,CALDMORE AREA HOUSING ASS LTD,08/11/2016,"2,533.04",73373-RESIDENTIAL & NURSING CARE PLACEMENTS,MH COMMISSIONING,Third Party Payments,Revenue
Walsall Council,http://opendatacommunities.org/id/metropolitan-district-council/walsall,WC74-762,30/11/2016,Adult Social Care,CALDMORE AREA HOUSING ASS LTD,08/11/2016,"2,533.04",73373-RESIDENTIAL & NURSING CARE PLACEMENTS,MH COMMISSIONING,Third Party Payments,Revenue
Walsall Council,http://opendatacommunities.org/id/metropolitan-district-council/walsall,WC74-763,30/11/2016,Adult Social Care,CALDMORE AREA HOUSING ASS LTD,08/11/2016,"2,533.04",73373-RESIDENTIAL & NURSING CARE PLACEMENTS,MH COMMISSIONING,Third Party Payments,Revenue
Walsall Council,http://opendatacommunities.org/id/metropolitan-district-council/walsall,WC74-764,30/11/2016,Adult Social Care,CALDMORE AREA HOUSING ASS LTD,08/11/2016,"2,533.04",73373-RESIDENTIAL & NURSING CARE PLACEMENTS,MH COMMISSIONING,Third Party Payments,Revenue
Walsall Council,http://opendatacommunities.org/id/metropolitan-district-council/walsall,WC74-765,30/11/2016,Childrens,REDACTED,21/11/2016,372.84,74006-HOLIDAY/CHRISTMAS ALLOWANCE-FOSTER CARERS-OTH AGENCY PROVISION,INTERNAL FOSTER CARE PROVISION,Third Party Payments,Revenue
Walsall Council,http://opendatacommunities.org/id/metropolitan-district-council/walsall,WC74-766,30/11/2016,Childrens,REDACTED,07/11/2016,315.00,76422-DIRECT PAYMENTS TO SOCIAL SERVICES CLIENTS,FAMILY SUPPORT - DIRECT PAYMENTS,Transfer Payments,Revenue
Walsall Council,http://opendatacommunities.org/id/metropolitan-district-council/walsall,WC74-767,30/11/2016,Adult Social Care,CAMBIAN HEALTHCARE LTD,01/11/2016,"13,290.90",73375-IN PATIENT BEDS,LD COMMISSIONING,Third Party Payments,Revenue
Walsall Council,http://opendatacommunities.org/id/metropolitan-district-council/walsall,WC74-768,30/11/2016,Adult Social Care,CAMBIAN LEARNING DISABILITES MIDLANDS LIMITED,01/11/2016,900.00,73375-IN PATIENT BEDS,LD COMMISSIONING,Third Party Payments,Revenue
Walsall Council,http://opendatacommunities.org/id/metropolitan-district-council/walsall,WC74-769,30/11/2016,Adult Social Care,CAMBIAN LEARNING DISABILITES MIDLANDS LIMITED,01/11/2016,"10,831.50",73375-IN PATIENT BEDS,LD COMMISSIONING,Third Party Payments,Revenue
Walsall Council,http://opendatacommunities.org/id/metropolitan-district-council/walsall,WC74-770,30/11/2016,Economy & Environment,CAMERA ONE LIMITED,14/11/2016,275.00,73025-PROFESSIONAL SERVICES-PRIV CONTRACTOR & OTHER AGENCIES,DEPOT,Third Party Payments,Revenue
Walsall Council,http://opendatacommunities.org/id/metropolitan-district-council/walsall,WC74-771,30/11/2016,Childrens,CAMPION SCHOOL,08/11/2016,"1,250.00",66502-TOP UP FUNDING -GRANTS TO SCHOOLS,INDEPENDENT PROVIDERS - SPECIAL & AP,Third Party Payments,Revenue
Walsall Council,http://opendatacommunities.org/id/metropolitan-district-council/walsall,WC74-772,30/11/2016,Childrens,CAMPION SCHOOL,08/11/2016,"1,250.00",66502-TOP UP FUNDING -GRANTS TO SCHOOLS,INDEPENDENT PROVIDERS - SPECIAL & AP,Third Party Payments,Revenue
Walsall Council,http://opendatacommunities.org/id/metropolitan-district-council/walsall,WC74-773,30/11/2016,Childrens,CAMPION SCHOOL,08/11/2016,"1,529.00",66502-TOP UP FUNDING -GRANTS TO SCHOOLS,INDEPENDENT PROVIDERS - SPECIAL & AP,Third Party Payments,Revenue
Walsall Council,http://opendatacommunities.org/id/metropolitan-district-council/walsall,WC74-774,30/11/2016,Economy & Environment,CANAL & RIVER TRUST,08/11/2016,"11,804.10",01001-OTHER CONSULTANTS FEES,CFR 876 DARLASTON PROJECT MANAGEMENT (EXTERNAL),Capital,Capital
Walsall Council,http://opendatacommunities.org/id/metropolitan-district-council/walsall,WC74-775,30/11/2016,Adult Social Care,REDACTED,07/11/2016,"3,600.00",76422-DIRECT PAYMENTS TO SOCIAL SERVICES CLIENTS,PD COMMISSIONING,Transfer Payments,Revenue
Walsall Council,http://opendatacommunities.org/id/metropolitan-district-council/walsall,WC74-776,30/11/2016,Change and Governance,CANTARUS LIMITED,09/11/2016,850.00,63800-COMPUTER EQUIPMENT AND SUPPLIES,RECHARGEABLE EQUIPMENT,Supplies & Services,Revenue
Walsall Council,http://opendatacommunities.org/id/metropolitan-district-council/walsall,WC74-777,30/11/2016,Change and Governance,CANTARUS LIMITED,09/11/2016,850.00,63800-COMPUTER EQUIPMENT AND SUPPLIES,RECHARGEABLE EQUIPMENT,Supplies & Services,Revenue
Walsall Council,http://opendatacommunities.org/id/metropolitan-district-council/walsall,WC74-778,30/11/2016,Change and Governance,CANTARUS LIMITED,09/11/2016,850.00,63800-COMPUTER EQUIPMENT AND SUPPLIES,RECHARGEABLE EQUIPMENT,Supplies & Services,Revenue
Walsall Council,http://opendatacommunities.org/id/metropolitan-district-council/walsall,WC74-779,30/11/2016,Change and Governance,CANTARUS LIMITED,09/11/2016,850.00,63800-COMPUTER EQUIPMENT AND SUPPLIES,RECHARGEABLE EQUIPMENT,Supplies & Services,Revenue
Walsall Council,http://opendatacommunities.org/id/metropolitan-district-council/walsall,WC74-780,30/11/2016,Childrens,CAPSTONE FOSTER CARE (SOUTH EAST) LIMITED,25/11/2016,977.16,74037-INDEPENDENT FOSTER CARE-OTH AGENCY PROVISION,EXTERNAL FOSTER CARE PROVISION,Third Party Payments,Revenue
Walsall Council,http://opendatacommunities.org/id/metropolitan-district-council/walsall,WC74-781,30/11/2016,Childrens,CAPSTONE FOSTER CARE (SOUTH EAST) LIMITED,25/11/2016,977.16,74037-INDEPENDENT FOSTER CARE-OTH AGENCY PROVISION,EXTERNAL FOSTER CARE PROVISION,Third Party Payments,Revenue
Walsall Council,http://opendatacommunities.org/id/metropolitan-district-council/walsall,WC74-782,30/11/2016,Childrens,CAPSTONE FOSTER CARE (SOUTH EAST) LIMITED,25/11/2016,"2,931.47",74037-INDEPENDENT FOSTER CARE-OTH AGENCY PROVISION,EXTERNAL FOSTER CARE PROVISION,Third Party Payments,Revenue
